Workbook

Sheet Intro

Sheet Notes & Assumptions

Sheet Version History
B2: Version History
B4: Version | C4: Description | E4: Published Date
B5: 1 | C5: SAU Price Control Model FY25-FY27 | E5: 1 May 2024
B6: 1.1 | C6: Update to reflect expiry of Continued Ordering Period for Battery Backup Service and UNI-V Product Features for nbn® Ethernet (Fibre) as per Notes & Assumptions tab Note 15. | E6: 24 July 2024

Sheet Annual Compliance ->

Sheet Price Control Inputs
A1: Cell colour meanings
B2: Input cell
B3: Calculation cell
B5: WAPC Allowance Calculations
B7: First financial year in which WAPC applies | C7: FY25
B8: Phase of the WAPC | C8: CPI constraint
B10: WAPC Allowance | C10: ="FY"&RIGHT($D10,2)-1 -> FY24 | D10: =C7 -> FY25 | E10: ="FY"&RIGHT($D10,2)+1 -> FY26 | F10: ="FY"&RIGHT($D10,2)+2 -> FY27
B13: Annual CPI based on December quarter of Pt-1 Actual CPI for FY24 is based on actual December Quarter CPI as published by the Australian Bureau of Statistics for the 12 months up to 31 December 2023. Forecast CPI for FY25 and FY26 is based on the Reserve Bank of Australia’s forecasts contained in the Statement of Monetary Policy. These are sourced from: Table 3.1: Detailed Forecast Table – February 2024 (https://www.rba.gov.au/publications/smp/2024/feb/outlook.html) | D13: 0.041 | E13: 0.032 | F13: 0.028
D14: Actual | E14: Forecast | F14: Forecast
B16: X factor | D16: =IF($C$8="CPI Constraint",0,"Input") -> 0 | E16: =IF($C$8="CPI Constraint",0,"Input") -> 0 | F16: 0
B17: Cost pass through adjustment factor | D17: ='Price Control Inputs'!D34 -> 0 | E17: ='Price Control Inputs'!E34 -> 0 | F17: ='Price Control Inputs'!F34 -> 0
B18: Excess adjustment factor (EM) | D18: ='Price Control Inputs'!D47 -> 0 | E18: ='Price Control Inputs'!E47 -> 0 | F18: ='Price Control Inputs'!F47 -> 0
B20: WAPC Allowance | D20: =(1+D13)*(1-D16)*(1+D17)*(1+D18)-1 -> 0.041 | E20: =(1+E13)*(1-E16)*(1+E17)*(1+E18)-1 -> 0.032 | F20: =(1+F13)*(1-F16)*(1+F17)*(1+F18)-1 -> 0.028
B22: Cost pass-through factor | C22: ='Price Control Inputs'!C10 -> FY24 | D22: ='Price Control Inputs'!D10 -> FY25 | E22: ='Price Control Inputs'!E10 -> FY26 | F22: ='Price Control Inputs'!F10 -> FY27
B23: Note: Values for FY25, FY26 and FY27 below are stated as ‘n/a’ as there were no cost pass through events in financial year t-1. The cost pass-through adjustment factor in FY24 is zero: see clause 2D.2.5(c)(i) of the SAU.
B24: Inputs | D24: Actual | E24: Forecast | F24: Forecast
B25: Input to cost pass-through adjustment factor in respect of previous year | D25: 0 | E25: =D32 -> 0 | F25: =E32 -> 0
B27: Total cost pass-through amount for current year | D27: n/a | E27: n/a | F27: n/a
B28: CPI | D28: =INDEX('Price Control Inputs'!$D$13:$F$13,,MATCH('Price Control Inputs'!D22,'Price Control Inputs'!$D$10:$F$10,0)) -> 0.041 | E28: =INDEX('Price Control Inputs'!$D$13:$F$13,,MATCH('Price Control Inputs'!E22,'Price Control Inputs'!$D$10:$F$10,0)) -> 0.032 | F28: =INDEX('Price Control Inputs'!$D$13:$F$13,,MATCH('Price Control Inputs'!F22,'Price Control Inputs'!$D$10:$F$10,0)) -> 0.028
B29: X factor | D29: =INDEX('Price Control Inputs'!$D$16:$F$16,,MATCH('Price Control Inputs'!D22,'Price Control Inputs'!$D$10:$F$10,0)) -> 0 | E29: =INDEX('Price Control Inputs'!$D$16:$F$16,,MATCH('Price Control Inputs'!E22,'Price Control Inputs'!$D$10:$F$10,0)) -> 0 | F29: =INDEX('Price Control Inputs'!$D$16:$F$16,,MATCH('Price Control Inputs'!F22,'Price Control Inputs'!$D$10:$F$10,0)) -> 0
B30: Excess adjustment factor | D30: =D47 -> 0 | E30: =E47 -> 0 | F30: =F47 -> 0
B31: Notional revenue in previous year | D31: n/a | E31: n/a | F31: n/a
B32: Input to cost pass-through adjustment factor in respect of current year | D32: =IFERROR(D27/((1+D28)*(1-D29)*(1+D30)*D31),0) -> 0 | E32: =IFERROR(E27/((1+E28)*(1-E29)*(1+E30)*E31),0) -> 0 | F32: =IFERROR(F27/((1+F28)*(1-F29)*(1+F30)*F31),0) -> 0
B34: Cost pass-through adjustment factor (PT) | D34: =(1+D32)/(1+D25)-1 -> 0 | E34: =(1+E32)/(1+E25)-1 -> 0 | F34: =(1+F32)/(1+F25)-1 -> 0
B36: Excess adjustment | C36: =C22 -> FY24 | D36: FY25 | E36: FY26 | F36: FY27
B37: Note: Values for FY25 and FY26 below are stated as ‘n/a’ as the Excess adjustment factor for those years is zero: see clause 2D.2.6(a) of the SAU.
B39: Inputs | D39: Actual | E39: Forecast | F39: Forecast
B40: CPI t-2 | D40: n/a | E40: n/a | F40: =D28 -> 0.041
B41: X factor t-2 | D41: n/a | E41: n/a | F41: =D29 -> 0
B42: Cost pass-through adjustment factor t-2 | D42: n/a | E42: n/a | F42: =E34 -> 0
B43: Excess adjustment factor t-2 | D43: n/a | E43: n/a | F43: =E30 -> 0
B45: WAP Ratio t-2 | D45: n/a | E45: n/a | F45: =SUMPRODUCT('Price and Quantity'!G$11:G$291,'Price and Quantity'!F$299:F$579)/SUMPRODUCT('Price and Quantity'!F$11:F$291,'Price and Quantity'!F$299:F$579) -> 1.040800251
B47: Excess adjustment factor (EM) | D47: 0 | E47: 0 | F47: =MIN(0,((1+F40)*(1-F41)*(1+F42)*(1+F43))/F45-1) -> 0
E87: =D87-C87 -> 0

Sheet Price and Quantity
A1: Cell colour meanings
B2: Input cell
B3: Calculation cell
B5: Price Control Price and Volume Inputs FY25 to FY27
B9: Tariff List and Pricing Roadmap Prices | F9: ="FY"&RIGHT($G$9,2)-1 -> FY24 | G9: ='Price Control Inputs'!C7 -> FY25 | H9: ="FY"&RIGHT($G$9,2)+1 -> FY26 | I9: ="FY"&RIGHT($G$9,2)+2 -> FY27 | K9: Percentage Tariff Change
B10: Table references | C10: WAPC Charge Component | D10: NBN Co Network | E10: Individual Price Control | K10: =G9 -> FY25 | L10: =H9 -> FY26 | M10: =I9 -> FY27
B11: 1.1 Flat-Rate Offers | C11: AVC TC-4 25-100/5-20 Mbps | D11: FTTB and FTTN | E11: =IFERROR(INDEX('Compliance Summary'!$B$40:$C$79,MATCH($C11,'Compliance Summary'!$C$40:$C$79,0),1),"n/a") -> Other fixed line and fixed wireless TC-4 | F11: 55 | G11: 57.22 | H11: 58.93 | I11: 60.5 | K11: =IF($E11="n/a","n/a",IFERROR(G11/F11-1,0)) -> 0.04036363636 | L11: =IF($E11="n/a","n/a",IFERROR(H11/G11-1,0)) -> 0.02988465571 | M11: =IF($E11="n/a","n/a",IFERROR(I11/H11-1,0)) -> 0.02664177838
B12: 1.1 Flat-Rate Offers | C12: AVC TC-4 50-100/20 Mbps | D12: FTTC | E12: =IFERROR(INDEX('Compliance Summary'!$B$40:$C$79,MATCH($C12,'Compliance Summary'!$C$40:$C$79,0),1),"n/a") -> Other fixed line and fixed wireless TC-4 | F12: 55 | G12: 57.22 | H12: 58.93 | I12: 60.5 | K12: =IF($E12="n/a","n/a",IFERROR(G12/F12-1,0)) -> 0.04036363636 | L12: 0.02988465571 | M12: 0.02664177838
B13: 1.1 Flat-Rate Offers | C13: AVC TC-4 100/20 Mbps | D13: Fibre and HFC | E13: =IFERROR(INDEX('Compliance Summary'!$B$40:$C$79,MATCH($C13,'Compliance Summary'!$C$40:$C$79,0),1),"n/a") -> Other fixed line and fixed wireless TC-4 | F13: 55 | G13: 57.22 | H13: 58.93 | I13: 60.5 | K13: 0.04036363636 | L13: 0.02988465571 | M13: 0.02664177838
B14: 1.1 Flat-Rate Offers | C14: AVC TC-4 200-250/8-20 Mbps | D14: Wireless | E14: =IFERROR(INDEX('Compliance Summary'!$B$40:$C$79,MATCH($C14,'Compliance Summary'!$C$40:$C$79,0),1),"n/a") -> Other fixed line and fixed wireless TC-4 | F14: 55 | G14: 57.22 | H14: 58.93 | I14: 60.5 | K14: 0.04036363636 | L14: 0.02988465571 | M14: 0.02664177838
B15: 1.1 Flat-Rate Offers | C15: AVC TC-4 50-100/20-40 Mbps | D15: FTTC | E15: =IFERROR(INDEX('Compliance Summary'!$B$40:$C$79,MATCH($C15,'Compliance Summary'!$C$40:$C$79,0),1),"n/a") -> Other fixed line and fixed wireless TC-4 | F15: 58 | G15: 60.22 | H15: 61.93 | I15: 63.5 | K15: 0.03827586207 | L15: 0.02839588177 | M15: 0.02535120297
B16: 1.1 Flat-Rate Offers | C16: AVC TC-4 25-100/5-40 Mbps | D16: FTTB and FTTN | E16: =IFERROR(INDEX('Compliance Summary'!$B$40:$C$79,MATCH($C16,'Compliance Summary'!$C$40:$C$79,0),1),"n/a") -> Other fixed line and fixed wireless TC-4 | F16: 58 | G16: 60.22 | H16: 61.93 | I16: 63.5 | K16: 0.03827586207 | L16: 0.02839588177 | M16: 0.02535120297
B17: 1.1 Flat-Rate Offers | C17: AVC TC-4 100/40 Mbps | D17: Fibre and HFC | E17: =IFERROR(INDEX('Compliance Summary'!$B$40:$C$79,MATCH($C17,'Compliance Summary'!$C$40:$C$79,0),1),"n/a") -> Other fixed line and fixed wireless TC-4 | F17: 58 | G17: 60.22 | H17: 61.93 | I17: 63.5 | K17: 0.03827586207 | L17: 0.02839588177 | M17: 0.02535120297
B18: 1.1 Flat-Rate Offers | C18: AVC TC-4 250/25 Mbps | D18: Fibre and HFC | E18: =IFERROR(INDEX('Compliance Summary'!$B$40:$C$79,MATCH($C18,'Compliance Summary'!$C$40:$C$79,0),1),"n/a") -> Other fixed line and fixed wireless TC-4 | F18: 60 | G18: 62.22 | H18: 63.93 | I18: 65.5 | K18: 0.037 | L18: 0.0274831244 | M18: 0.02455811043
B19: 1.1 Flat-Rate Offers | C19: AVC TC-4 400/10-40 Mbps | D19: Wireless | E19: =IFERROR(INDEX('Compliance Summary'!$B$40:$C$79,MATCH($C19,'Compliance Summary'!$C$40:$C$79,0),1),"n/a") -> Other fixed line and fixed wireless TC-4 | F19: 60 | G19: 62.22 | H19: 63.93 | I19: 65.5 | K19: 0.037 | L19: 0.0274831244 | M19: 0.02455811043
B20: 1.1 Flat-Rate Offers | C20: AVC TC-4 250/100 Mbps | D20: Fibre | E20: =IFERROR(INDEX('Compliance Summary'!$B$40:$C$79,MATCH($C20,'Compliance Summary'!$C$40:$C$79,0),1),"n/a") -> Other fixed line and fixed wireless TC-4 | F20: 100 | G20: 75 | H20: 76.5 | I20: 78.03 | K20: -0.25 | L20: 0.02 | M20: 0.02
B21: 1.1 Flat-Rate Offers | C21: AVC TC-4 500/200 Mbps | D21: Fibre | E21: =IFERROR(INDEX('Compliance Summary'!$B$40:$C$79,MATCH($C21,'Compliance Summary'!$C$40:$C$79,0),1),"n/a") -> Other fixed line and fixed wireless TC-4 | F21: 160 | G21: 100 | H21: 102 | I21: 104.04 | K21: -0.375 | L21: 0.02 | M21: 0.02
B22: 1.1 Flat-Rate Offers | C22: AVC TC-4 1000/50 Mbps | D22: Fibre and HFC | E22: =IFERROR(INDEX('Compliance Summary'!$B$40:$C$79,MATCH($C22,'Compliance Summary'!$C$40:$C$79,0),1),"n/a") -> Other fixed line and fixed wireless TC-4 | F22: 70 | G22: 72.22 | H22: 73.93 | I22: 75.5 | K22: 0.03171428571 | L22: 0.02367765162 | M22: 0.02123630461
B23: 1.1 Flat-Rate Offers | C23: AVC TC-4 1000/400 Mbps | D23: Fibre | E23: =IFERROR(INDEX('Compliance Summary'!$B$40:$C$79,MATCH($C23,'Compliance Summary'!$C$40:$C$79,0),1),"n/a") -> Other fixed line and fixed wireless TC-4 | F23: 230 | G23: 125 | H23: 127.5 | I23: 130.05 | K23: -0.4565217391 | L23: 0.02 | M23: 0.02
B24: 1.2 Flat-Rate Offers - Smart Places | C24: Smart Places - AVC TC-4 100/40 Mbps | D24: Fibre | E24: =IFERROR(INDEX('Compliance Summary'!$B$40:$C$79,MATCH($C24,'Compliance Summary'!$C$40:$C$79,0),1),"n/a") -> Other fixed line and fixed wireless TC-4 | F24: 58 | G24: 60.22 | H24: 61.93 | I24: 63.5 | K24: 0.03827586207 | L24: 0.02839588177 | M24: 0.02535120297
B25: 1.2 Flat-Rate Offers - Smart Places | C25: Smart Places - AVC TC-4 250/100 Mbps | D25: Fibre | E25: =IFERROR(INDEX('Compliance Summary'!$B$40:$C$79,MATCH($C25,'Compliance Summary'!$C$40:$C$79,0),1),"n/a") -> Other fixed line and fixed wireless TC-4 | F25: 100 | G25: 75 | H25: 76.5 | I25: 78.03 | K25: -0.25 | L25: 0.02 | M25: 0.02
B26: 1.2 Flat-Rate Offers - Smart Places | C26: Smart Places - AVC TC-4 500/200 Mbps | D26: Fibre | E26: =IFERROR(INDEX('Compliance Summary'!$B$40:$C$79,MATCH($C26,'Compliance Summary'!$C$40:$C$79,0),1),"n/a") -> Other fixed line and fixed wireless TC-4 | F26: 160 | G26: 100 | H26: 102 | I26: 104.04 | K26: -0.375 | L26: 0.02 | M26: 0.02
B27: 1.2 Flat-Rate Offers - Smart Places | C27: Smart Places - AVC TC-4 1000/400 Mbps | D27: Fibre | E27: =IFERROR(INDEX('Compliance Summary'!$B$40:$C$79,MATCH($C27,'Compliance Summary'!$C$40:$C$79,0),1),"n/a") -> Other fixed line and fixed wireless TC-4 | F27: 230 | G27: 125 | H27: 127.5 | I27: 130.05 | K27: -0.4565217391 | L27: 0.02 | M27: 0.02
B28: 1.3 Bundled TC-4 Offers | C28: AVC TC-4 12/1 (Basic Bundled Offer) | D28: Fibre, FTTB, FTTN, FTTC, HFC | E28: =IFERROR(INDEX('Compliance Summary'!$B$40:$C$79,MATCH($C28,'Compliance Summary'!$C$40:$C$79,0),1),"n/a") -> Other fixed line and fixed wireless TC-4 | F28: 12.01 | G28: 12.01 | H28: 12.01 | I28: 12 | K28: 0 | L28: 0 | M28: -0.0008326394671
B29: 1.3 Bundled TC-4 Offers | C29: AVC TC-4 12/1 Mbps | D29: Fibre, FTTB, FTTN, FTTC, HFC and Wireless | E29: =IFERROR(INDEX('Compliance Summary'!$B$40:$C$79,MATCH($C29,'Compliance Summary'!$C$40:$C$79,0),1),"n/a") -> Other fixed line and fixed wireless TC-4 | F29: 30.76 | G29: 32.29 | H29: 33.89 | I29: 35.58 | K29: 0.04973992198 | L29: 0.04955094456 | M29: 0.04986721747
B30: 1.3 Bundled TC-4 Offers | C30: AVC TC-4 25/5 Mbps | D30: Fibre, FTTB, FTTN,FTTC,HFC and Wireless | E30: =IFERROR(INDEX('Compliance Summary'!$B$40:$C$79,MATCH($C30,'Compliance Summary'!$C$40:$C$79,0),1),"n/a") -> Entry level TC-4 | F30: 32.36 | G30: 33.68 | H30: 34.75 | I30: 35.71 | K30: 0.04079110012 | L30: 0.0317695962 | M30: 0.02762589928
B31: 1.3 Bundled TC-4 Offers | C31: AVC TC-4 25/5-10 Mbps | D31: FTTB,FTTN | E31: =IFERROR(INDEX('Compliance Summary'!$B$40:$C$79,MATCH($C31,'Compliance Summary'!$C$40:$C$79,0),1),"n/a") -> Other fixed line and fixed wireless TC-4 | F31: 32.36 | G31: 33.68 | H31: 34.75 | I31: 35.71 | K31: 0.04079110012 | L31: 0.0317695962 | M31: 0.02762589928
B32: 1.3 Bundled TC-4 Offers | C32: AVC TC-4 25/10 Mbps | D32: Fibre, FTTC, HFC | E32: =IFERROR(INDEX('Compliance Summary'!$B$40:$C$79,MATCH($C32,'Compliance Summary'!$C$40:$C$79,0),1),"n/a") -> Other fixed line and fixed wireless TC-4 | F32: 32.36 | G32: 33.68 | H32: 34.75 | I32: 35.71 | K32: 0.04079110012 | L32: 0.0317695962 | M32: 0.02762589928
B33: 1.3 Bundled TC-4 Offers | C33: AVC TC-4 25-50/5-20 Mbps | D33: FTTB,FTTN | E33: =IFERROR(INDEX('Compliance Summary'!$B$40:$C$79,MATCH($C33,'Compliance Summary'!$C$40:$C$79,0),1),"n/a") -> Other fixed line and fixed wireless TC-4 | F33: 51.16 | G33: 53.68 | H33: 55.59 | I33: 57.26 | K33: 0.04925723221 | L33: 0.03558122206 | M33: 0.03004137435
B34: 1.3 Bundled TC-4 Offers | C34: AVC TC-4 50/20 Mbps | D34: Fibre, FTTC, HFC | E34: =IFERROR(INDEX('Compliance Summary'!$B$40:$C$79,MATCH($C34,'Compliance Summary'!$C$40:$C$79,0),1),"n/a") -> Other fixed line and fixed wireless TC-4 | F34: 51.16 | G34: 53.68 | H34: 55.59 | I34: 57.26 | K34: 0.04925723221 | L34: 0.03558122206 | M34: 0.03004137435
B35: 1.3 Bundled TC-4 Offers | C35: AVC TC-4 up to 100/up to 20 Mbps | D35: Wireless | E35: =IFERROR(INDEX('Compliance Summary'!$B$40:$C$79,MATCH($C35,'Compliance Summary'!$C$40:$C$79,0),1),"n/a") -> Other fixed line and fixed wireless TC-4 | F35: 51.16 | G35: 53.68 | H35: 55.59 | I35: 57.26 | K35: 0.04925723221 | L35: 0.03558122206 | M35: 0.03004137435
B36: 1.4 Bundled TC-4 Offers: Smart Places | C36: Smart Places - AVC TC-4 25/10 Mbps | D36: Fibre | E36: =IFERROR(INDEX('Compliance Summary'!$B$40:$C$79,MATCH($C36,'Compliance Summary'!$C$40:$C$79,0),1),"n/a") -> Other fixed line and fixed wireless TC-4 | F36: 32.36 | G36: 33.68 | H36: 34.75 | I36: 35.71 | K36: 0.04079110012 | L36: 0.0317695962 | M36: 0.02762589928
B37: 1.4 Bundled TC-4 Offers: Smart Places | C37: Smart Places - AVC TC-4 50/20 Mbps | D37: Fibre | E37: =IFERROR(INDEX('Compliance Summary'!$B$40:$C$79,MATCH($C37,'Compliance Summary'!$C$40:$C$79,0),1),"n/a") -> Other fixed line and fixed wireless TC-4 | F37: 51.16 | G37: 53.68 | H37: 55.59 | I37: 57.26 | K37: 0.04925723221 | L37: 0.03558122206 | M37: 0.03004137435
B38: 1.5 Asymmetric AVC Offers in respect of the NBN Co Satellite Network | C38: AVC TC-4 12/1 Mbps | D38: Satellite | E38: =IFERROR(INDEX('Compliance Summary'!$B$40:$C$79,MATCH($C38,'Compliance Summary'!$C$40:$C$79,0),1),"n/a") -> Satellite AVC TC-4 | F38: 24 | G38: 24 | H38: 24 | I38: 24 | K38: 0 | L38: 0 | M38: 0
B39: 1.5 Asymmetric AVC Offers in respect of the NBN Co Satellite Network | C39: AVC TC-4 25/5 Mbps | D39: Satellite | E39: =IFERROR(INDEX('Compliance Summary'!$B$40:$C$79,MATCH($C39,'Compliance Summary'!$C$40:$C$79,0),1),"n/a") -> Satellite AVC TC-4 | F39: 27 | G39: 27 | H39: 27 | I39: 27 | K39: 0 | L39: 0 | M39: 0
B40: 2.1 Bundled TC-2 Offers | C40: AVC TC-2 5/5 Mbps | D40: Fibre, FTTB, FTTN, FTTC, HFC | E40: =IFERROR(INDEX('Compliance Summary'!$B$40:$C$79,MATCH($C40,'Compliance Summary'!$C$40:$C$79,0),1),"n/a") -> n/a | F40: 50 | G40: 50 | H40: 50 | I40: 50 | K40: n/a | L40: n/a | M40: n/a
B41: 2.1 Bundled TC-2 Offers | C41: AVC TC-2 10/10 Mbps | D41: Fibre, FTTB, FTTN, FTTC, HFC | E41: =IFERROR(INDEX('Compliance Summary'!$B$40:$C$79,MATCH($C41,'Compliance Summary'!$C$40:$C$79,0),1),"n/a") -> n/a | F41: 131 | G41: 131 | H41: 131 | I41: 131 | K41: n/a | L41: n/a | M41: n/a
B42: 2.1 Bundled TC-2 Offers | C42: AVC TC-2 20/20 Mbps | D42: Fibre, FTTB, FTTN, FTTC | E42: =IFERROR(INDEX('Compliance Summary'!$B$40:$C$79,MATCH($C42,'Compliance Summary'!$C$40:$C$79,0),1),"n/a") -> n/a | F42: 192 | G42: 172 | H42: 172 | I42: 172 | K42: n/a | L42: n/a | M42: n/a
B43: 2.1 Bundled TC-2 Offers | C43: AVC TC-2 30/30 Mbps | D43: Fibre | E43: =IFERROR(INDEX('Compliance Summary'!$B$40:$C$79,MATCH($C43,'Compliance Summary'!$C$40:$C$79,0),1),"n/a") -> n/a | F43: 220 | G43: 175 | H43: 175 | I43: 175 | K43: n/a | L43: n/a | M43: n/a
B44: 2.1 Bundled TC-2 Offers | C44: AVC TC-2 40/40 Mbps | D44: Fibre | E44: =IFERROR(INDEX('Compliance Summary'!$B$40:$C$79,MATCH($C44,'Compliance Summary'!$C$40:$C$79,0),1),"n/a") -> n/a | F44: 223 | G44: 175 | H44: 175 | I44: 175 | K44: n/a | L44: n/a | M44: n/a
B45: 2.1 Bundled TC-2 Offers | C45: AVC TC-2 50/50 Mbps | D45: Fibre | E45: =IFERROR(INDEX('Compliance Summary'!$B$40:$C$79,MATCH($C45,'Compliance Summary'!$C$40:$C$79,0),1),"n/a") -> n/a | F45: 225 | G45: 175 | H45: 175 | I45: 175 | K45: n/a | L45: n/a | M45: n/a
B46: 2.1 Bundled TC-2 Offers | C46: AVC TC-2 60/60 Mbps | D46: Fibre | E46: =IFERROR(INDEX('Compliance Summary'!$B$40:$C$79,MATCH($C46,'Compliance Summary'!$C$40:$C$79,0),1),"n/a") -> n/a | F46: 581 | G46: 175 | H46: 175 | I46: 175 | K46: n/a | L46: n/a | M46: n/a
B47: 2.1 Bundled TC-2 Offers | C47: AVC TC-2 70/70 Mbps | D47: Fibre | E47: =IFERROR(INDEX('Compliance Summary'!$B$40:$C$79,MATCH($C47,'Compliance Summary'!$C$40:$C$79,0),1),"n/a") -> n/a | F47: 626 | G47: 175 | H47: 175 | I47: 175 | K47: n/a | L47: n/a | M47: n/a
B48: 2.1 Bundled TC-2 Offers | C48: AVC TC-2 80/80 Mbps | D48: Fibre | E48: =IFERROR(INDEX('Compliance Summary'!$B$40:$C$79,MATCH($C48,'Compliance Summary'!$C$40:$C$79,0),1),"n/a") -> n/a | F48: 672 | G48: 175 | H48: 175 | I48: 175 | K48: n/a | L48: n/a | M48: n/a
B49: 2.1 Bundled TC-2 Offers | C49: AVC TC-2 90/90 Mbps | D49: Fibre | E49: =IFERROR(INDEX('Compliance Summary'!$B$40:$C$79,MATCH($C49,'Compliance Summary'!$C$40:$C$79,0),1),"n/a") -> n/a | F49: 704 | G49: 175 | H49: 175 | I49: 175 | K49: n/a | L49: n/a | M49: n/a
B50: 2.1 Bundled TC-2 Offers | C50: AVC TC-2 100/100 Mbps | D50: Fibre | E50: =IFERROR(INDEX('Compliance Summary'!$B$40:$C$79,MATCH($C50,'Compliance Summary'!$C$40:$C$79,0),1),"n/a") -> n/a | F50: 714 | G50: 175 | H50: 175 | I50: 175 | K50: n/a | L50: n/a | M50: n/a
B51: 2.2 Bundled TC-2 Offers: Smart Places | C51: Smart Places - AVC TC-2 5/5 Mbps | D51: Fibre | E51: =IFERROR(INDEX('Compliance Summary'!$B$40:$C$79,MATCH($C51,'Compliance Summary'!$C$40:$C$79,0),1),"n/a") -> n/a | F51: 50 | G51: 50 | H51: 50 | I51: 50 | K51: n/a | L51: n/a | M51: n/a
B52: 2.2 Bundled TC-2 Offers: Smart Places | C52: Smart Places - AVC TC-2 10/10 Mbps | D52: Fibre | E52: =IFERROR(INDEX('Compliance Summary'!$B$40:$C$79,MATCH($C52,'Compliance Summary'!$C$40:$C$79,0),1),"n/a") -> n/a | F52: 131 | G52: 131 | H52: 131 | I52: 131 | K52: n/a | L52: n/a | M52: n/a
B53: 2.2 Bundled TC-2 Offers: Smart Places | C53: Smart Places - AVC TC-2 20/20 Mbps | D53: Fibre | E53: =IFERROR(INDEX('Compliance Summary'!$B$40:$C$79,MATCH($C53,'Compliance Summary'!$C$40:$C$79,0),1),"n/a") -> n/a | F53: 192 | G53: 172 | H53: 172 | I53: 172 | K53: n/a | L53: n/a | M53: n/a
B54: 2.2 Bundled TC-2 Offers: Smart Places | C54: Smart Places - AVC TC-2 50/50 Mbps | D54: Fibre | E54: =IFERROR(INDEX('Compliance Summary'!$B$40:$C$79,MATCH($C54,'Compliance Summary'!$C$40:$C$79,0),1),"n/a") -> n/a | F54: 225 | G54: 175 | H54: 175 | I54: 175 | K54: n/a | L54: n/a | M54: n/a
B55: 2.3 Symmetric Access Capacity Offers (TC-1) | C55: AVC TC-1 0.15 Mbps | D55: Fibre, FTTB, FTTN, FTTC, HFC, Wireless and Satellite | E55: =IFERROR(INDEX('Compliance Summary'!$B$40:$C$79,MATCH($C55,'Compliance Summary'!$C$40:$C$79,0),1),"n/a") -> n/a | F55: 10 | G55: 10 | H55: 10 | I55: 10 | K55: n/a | L55: n/a | M55: n/a
B56: 2.3 Symmetric Access Capacity Offers (TC-1) | C56: AVC TC-1 0.3 Mbps | D56: Fibre, FTTB, FTTN, FTTC, HFC and Wireless | E56: =IFERROR(INDEX('Compliance Summary'!$B$40:$C$79,MATCH($C56,'Compliance Summary'!$C$40:$C$79,0),1),"n/a") -> n/a | F56: 20 | G56: 20 | H56: 20 | I56: 20 | K56: n/a | L56: n/a | M56: n/a
B57: 2.3 Symmetric Access Capacity Offers (TC-1) | C57: AVC TC-1 0.5 Mbps | D57: Fibre, FTTB, FTTN, FTTC and HFC | E57: =IFERROR(INDEX('Compliance Summary'!$B$40:$C$79,MATCH($C57,'Compliance Summary'!$C$40:$C$79,0),1),"n/a") -> n/a | F57: 33 | G57: 33 | H57: 33 | I57: 33 | K57: n/a | L57: n/a | M57: n/a
B58: 2.3 Symmetric Access Capacity Offers (TC-1) | C58: AVC TC-1 1 Mbps | D58: Fibre, FTTB, FTTN, FTTC and HFC | E58: =IFERROR(INDEX('Compliance Summary'!$B$40:$C$79,MATCH($C58,'Compliance Summary'!$C$40:$C$79,0),1),"n/a") -> n/a | F58: 66 | G58: 66 | H58: 66 | I58: 66 | K58: n/a | L58: n/a | M58: n/a
B59: 2.3 Symmetric Access Capacity Offers (TC-1) | C59: AVC TC-1 2 Mbps | D59: Fibre, FTTB, FTTN, FTTC and HFC | E59: =IFERROR(INDEX('Compliance Summary'!$B$40:$C$79,MATCH($C59,'Compliance Summary'!$C$40:$C$79,0),1),"n/a") -> n/a | F59: 132 | G59: 132 | H59: 132 | I59: 132 | K59: n/a | L59: n/a | M59: n/a
B60: 2.3 Symmetric Access Capacity Offers (TC-1) | C60: AVC TC-1 5 Mbps | D60: Fibre, FTTB, FTTN, FTTC and HFC | E60: =IFERROR(INDEX('Compliance Summary'!$B$40:$C$79,MATCH($C60,'Compliance Summary'!$C$40:$C$79,0),1),"n/a") -> n/a | F60: 330 | G60: 330 | H60: 330 | I60: 330 | K60: n/a | L60: n/a | M60: n/a
B61: 3.2 Connectivity Virtual Circuit Offers | C61: CVC TC-4 (Satellite) | D61: Satellite | E61: =IFERROR(INDEX('Compliance Summary'!$B$40:$C$79,MATCH($C61,'Compliance Summary'!$C$40:$C$79,0),1),"n/a") -> Satellite CVC TC-4 | F61: 15.75 | G61: 15.75 | H61: 15.75 | I61: 15.75 | K61: 0 | L61: 0 | M61: 0
B62: 3.2 Connectivity Virtual Circuit Offers | C62: CVC TC-1 | D62: Fibre, FTTB, FTTN, FTTC and HFC | E62: =IFERROR(INDEX('Compliance Summary'!$B$40:$C$79,MATCH($C62,'Compliance Summary'!$C$40:$C$79,0),1),"n/a") -> n/a | F62: 17.5 | G62: 17.5 | H62: 17.5 | I62: 17.5 | K62: n/a | L62: n/a | M62: n/a
B63: 3.2 Connectivity Virtual Circuit Offers | C63: CVC TC-2 | D63: Fibre, FTTB, FTTN, FTTC and HFC | E63: =IFERROR(INDEX('Compliance Summary'!$B$40:$C$79,MATCH($C63,'Compliance Summary'!$C$40:$C$79,0),1),"n/a") -> n/a | F63: 17.5 | G63: 17.5 | H63: 17.5 | I63: 17.5 | K63: n/a | L63: n/a | M63: n/a
B64: 4 CVC Class Offers for the NBN Co Satellite Network | C64: CVC Class 0 | D64: Satellite | E64: =IFERROR(INDEX('Compliance Summary'!$B$40:$C$79,MATCH($C64,'Compliance Summary'!$C$40:$C$79,0),1),"n/a") -> Satellite CVC TC-4 | F64: 0 | G64: 0 | H64: 0 | I64: 0 | K64: 0 | L64: 0 | M64: 0
B65: 4 CVC Class Offers for the NBN Co Satellite Network | C65: CVC Class 1 | D65: Satellite | E65: =IFERROR(INDEX('Compliance Summary'!$B$40:$C$79,MATCH($C65,'Compliance Summary'!$C$40:$C$79,0),1),"n/a") -> Satellite CVC TC-4 | F65: 18 | G65: 18 | H65: 18 | I65: 18 | K65: 0 | L65: 0 | M65: 0
B66: 4 CVC Class Offers for the NBN Co Satellite Network | C66: CVC Class 2 | D66: Satellite | E66: =IFERROR(INDEX('Compliance Summary'!$B$40:$C$79,MATCH($C66,'Compliance Summary'!$C$40:$C$79,0),1),"n/a") -> Satellite CVC TC-4 | F66: 40 | G66: 40 | H66: 40 | I66: 40 | K66: 0 | L66: 0 | M66: 0
B67: 5.1 Network to Network Interface Offers | C67: NNI 1000BaseLX - per NNI Bearer - Recurring | D67: All | E67: =IFERROR(INDEX('Compliance Summary'!$B$40:$C$79,MATCH($C67,'Compliance Summary'!$C$40:$C$79,0),1),"n/a") -> n/a | F67: 100 | G67: 100 | H67: 100 | I67: 100 | K67: n/a | L67: n/a | M67: n/a
B68: 5.1 Network to Network Interface Offers | C68: NNI 10GBaseLR - per NNI Bearer - Recurring | D68: All | E68: =IFERROR(INDEX('Compliance Summary'!$B$40:$C$79,MATCH($C68,'Compliance Summary'!$C$40:$C$79,0),1),"n/a") -> n/a | F68: 400 | G68: 400 | H68: 400 | I68: 400 | K68: n/a | L68: n/a | M68: n/a
B69: 5.1 Network to Network Interface Offers | C69: NNI 100GBaseLR4 - per NNI Bearer - Recurring | D69: All | E69: =IFERROR(INDEX('Compliance Summary'!$B$40:$C$79,MATCH($C69,'Compliance Summary'!$C$40:$C$79,0),1),"n/a") -> n/a | F69: 2400 | G69: 2400 | H69: 2400 | I69: 2400 | K69: n/a | L69: n/a | M69: n/a
B70: 5.1 Network to Network Interface Offers | C70: NNI 1000BaseEX - per NNI Bearer - Recurring | D70: All | E70: =IFERROR(INDEX('Compliance Summary'!$B$40:$C$79,MATCH($C70,'Compliance Summary'!$C$40:$C$79,0),1),"n/a") -> n/a | F70: 125 | G70: 125 | H70: 125 | I70: 125 | K70: n/a | L70: n/a | M70: n/a
B71: 5.1 Network to Network Interface Offers | C71: NNI 10GBaseER - per NNI Bearer - Recurring | D71: All | E71: =IFERROR(INDEX('Compliance Summary'!$B$40:$C$79,MATCH($C71,'Compliance Summary'!$C$40:$C$79,0),1),"n/a") -> n/a | F71: 500 | G71: 500 | H71: 500 | I71: 500 | K71: n/a | L71: n/a | M71: n/a
B72: 5.1 Network to Network Interface Offers | C72: NNI 100GBaseER4 - per NNI Bearer - Recurring | D72: All | E72: =IFERROR(INDEX('Compliance Summary'!$B$40:$C$79,MATCH($C72,'Compliance Summary'!$C$40:$C$79,0),1),"n/a") -> n/a | F72: 3000 | G72: 3000 | H72: 3000 | I72: 3000 | K72: n/a | L72: n/a | M72: n/a
B73: 5.1 Network to Network Interface Offers | C73: V-NNI | D73: Fibre, FTTB, FTTN, FTTC, HFC and Wireless | E73: =IFERROR(INDEX('Compliance Summary'!$B$40:$C$79,MATCH($C73,'Compliance Summary'!$C$40:$C$79,0),1),"n/a") -> n/a | F73: 65 | G73: 65 | H73: 65 | I73: 65 | K73: n/a | L73: n/a | M73: n/a
B74: 5.1 Network to Network Interface Offers | C74: NNI Link | D74: Fibre, FTTB, FTTN, FTTC, HFC and Wireless | E74: =IFERROR(INDEX('Compliance Summary'!$B$40:$C$79,MATCH($C74,'Compliance Summary'!$C$40:$C$79,0),1),"n/a") -> n/a | F74: 0 | G74: 0 | H74: 0 | I74: 0 | K74: n/a | L74: n/a | M74: n/a
B75: 5.2 10G NNI Starter Offers | C75: NNI 10GBaseLR (in single chassis configuration or as one of a pair in a chassis diverse configuration) – per NNI Bearer | D75: All | E75: =IFERROR(INDEX('Compliance Summary'!$B$40:$C$79,MATCH($C75,'Compliance Summary'!$C$40:$C$79,0),1),"n/a") -> n/a | F75: 0 | G75: 200 | H75: 200 | I75: 200 | K75: n/a | L75: =IF($E75="n/a","n/a",IFERROR(H75/G75-1,0)) -> n/a | M75: =IF($E75="n/a","n/a",IFERROR(I75/H75-1,0)) -> n/a
B76: 5.2 10G NNI Starter Offers | C76: NNI 10GBaseER (in single chassis configuration or as one of a pair in a chassis diverse configuration) – per NNI Bearer | D76: All | E76: =IFERROR(INDEX('Compliance Summary'!$B$40:$C$79,MATCH($C76,'Compliance Summary'!$C$40:$C$79,0),1),"n/a") -> n/a | F76: 0 | G76: 250 | H76: 250 | I76: 250 | K76: =IF($E76="n/a","n/a",IFERROR(G76/F76-1,0)) -> n/a | L76: n/a | M76: n/a
B77: 6. Second UNI-V and AVC Offer | C77: Second UNI-V and AVC offer | D77: Fibre | E77: =IFERROR(INDEX('Compliance Summary'!$B$40:$C$79,MATCH($C77,'Compliance Summary'!$C$40:$C$79,0),1),"n/a") -> n/a | F77: 17.5 | G77: 17.5 | H77: 17.5 | I77: 17.5 | K77: n/a | L77: n/a | M77: n/a
B78: 7.1 Enhanced Fault Service Level Offers | C78: Enhanced SLA - 12 | D78: Fibre, FTTB, FTTN, FTTC and HFC | E78: =IFERROR(INDEX('Compliance Summary'!$B$40:$C$79,MATCH($C78,'Compliance Summary'!$C$40:$C$79,0),1),"n/a") -> n/a | F78: 15 | G78: 15 | H78: 15 | I78: 15 | K78: n/a | L78: n/a | M78: n/a
B79: 7.1 Enhanced Fault Service Level Offers | C79: Enhanced SLA - 12 (24/7) | D79: Fibre, FTTB, FTTN, FTTC and HFC | E79: =IFERROR(INDEX('Compliance Summary'!$B$40:$C$79,MATCH($C79,'Compliance Summary'!$C$40:$C$79,0),1),"n/a") -> n/a | F79: 15 | G79: 15 | H79: 15 | I79: 15 | K79: n/a | L79: n/a | M79: n/a
B80: 7.1 Enhanced Fault Service Level Offers | C80: Enhanced SLA - 8 | D80: Fibre, FTTB, FTTN, FTTC and HFC | E80: =IFERROR(INDEX('Compliance Summary'!$B$40:$C$79,MATCH($C80,'Compliance Summary'!$C$40:$C$79,0),1),"n/a") -> n/a | F80: 25 | G80: 25 | H80: 25 | I80: 25 | K80: n/a | L80: n/a | M80: n/a
B81: 7.1 Enhanced Fault Service Level Offers | C81: Enhanced SLA - 8 (24/7) | D81: Fibre, FTTB, FTTN, FTTC and HFC | E81: =IFERROR(INDEX('Compliance Summary'!$B$40:$C$79,MATCH($C81,'Compliance Summary'!$C$40:$C$79,0),1),"n/a") -> n/a | F81: 55 | G81: 55 | H81: 55 | I81: 55 | K81: n/a | L81: n/a | M81: n/a
B82: 7.1 Enhanced Fault Service Level Offers | C82: Enhanced SLA - 6 | D82: Fibre, FTTB, FTTN, FTTC and HFC | E82: =IFERROR(INDEX('Compliance Summary'!$B$40:$C$79,MATCH($C82,'Compliance Summary'!$C$40:$C$79,0),1),"n/a") -> n/a | F82: 32.5 | G82: 32.5 | H82: 32.5 | I82: 32.5 | K82: n/a | L82: n/a | M82: n/a
B83: 7.1 Enhanced Fault Service Level Offers | C83: Enhanced SLA - 6 (24/7) | D83: Fibre, FTTB, FTTN, FTTC and HFC | E83: =IFERROR(INDEX('Compliance Summary'!$B$40:$C$79,MATCH($C83,'Compliance Summary'!$C$40:$C$79,0),1),"n/a") -> n/a | F83: 65 | G83: 65 | H83: 65 | I83: 65 | K83: n/a | L83: n/a | M83: n/a
B84: 7.1 Enhanced Fault Service Level Offers | C84: Enhanced SLA - 4 | D84: Fibre, FTTB, FTTN, FTTC and HFC | E84: =IFERROR(INDEX('Compliance Summary'!$B$40:$C$79,MATCH($C84,'Compliance Summary'!$C$40:$C$79,0),1),"n/a") -> n/a | F84: 40 | G84: 40 | H84: 40 | I84: 40 | K84: n/a | L84: n/a | M84: n/a
B85: 7.1 Enhanced Fault Service Level Offers | C85: Enhanced SLA - 4 (24/7) | D85: Fibre, FTTB, FTTN, FTTC and HFC | E85: =IFERROR(INDEX('Compliance Summary'!$B$40:$C$79,MATCH($C85,'Compliance Summary'!$C$40:$C$79,0),1),"n/a") -> n/a | F85: 25 | G85: 25 | H85: 25 | I85: 25 | K85: n/a | L85: n/a | M85: n/a
B86: 7.2 Enhanced Fault Service level Offers | C86: Enhanced SLA - 90 days (24/7) | D86: Fibre, FTTB, FTTN, FTTC and HFC | E86: =IFERROR(INDEX('Compliance Summary'!$B$40:$C$79,MATCH($C86,'Compliance Summary'!$C$40:$C$79,0),1),"n/a") -> n/a | F86: 150 | G86: 150 | H86: 150 | I86: 150 | K86: n/a | L86: n/a | M86: n/a
B87: 7.3 Enhanced Fault Service Level Offers: Smart Places | C87: Smart Places - Enhanced SLA - 12 | D87: Fibre | E87: =IFERROR(INDEX('Compliance Summary'!$B$40:$C$79,MATCH($C87,'Compliance Summary'!$C$40:$C$79,0),1),"n/a") -> n/a | F87: 15 | G87: 15 | H87: 15 | I87: 15 | K87: n/a | L87: n/a | M87: n/a
B88: 7.3 Enhanced Fault Service Level Offers: Smart Places | C88: Smart Places - Enhanced SLA - 12 (24/7) | D88: Fibre | E88: =IFERROR(INDEX('Compliance Summary'!$B$40:$C$79,MATCH($C88,'Compliance Summary'!$C$40:$C$79,0),1),"n/a") -> n/a | F88: 15 | G88: 15 | H88: 15 | I88: 15 | K88: n/a | L88: n/a | M88: n/a
B89: 7.3 Enhanced Fault Service Level Offers: Smart Places | C89: Smart Places - Enhanced SLA - 8 | D89: Fibre | E89: =IFERROR(INDEX('Compliance Summary'!$B$40:$C$79,MATCH($C89,'Compliance Summary'!$C$40:$C$79,0),1),"n/a") -> n/a | F89: 25 | G89: 25 | H89: 25 | I89: 25 | K89: n/a | L89: n/a | M89: n/a
B90: 7.3 Enhanced Fault Service Level Offers: Smart Places | C90: Smart places - Enhanced SLA - 8 (24/7) | D90: Fibre | E90: =IFERROR(INDEX('Compliance Summary'!$B$40:$C$79,MATCH($C90,'Compliance Summary'!$C$40:$C$79,0),1),"n/a") -> n/a | F90: 55 | G90: 55 | H90: 55 | I90: 55 | K90: n/a | L90: n/a | M90: n/a
B91: 8.1 Installations and activations – NBN Co Networks other than the NBN Co Satellite Network | C91: Initial Standard Installation | D91: Fibre, FTTB, FTTN, FTTC, HFC and Wireless | E91: =IFERROR(INDEX('Compliance Summary'!$B$40:$C$79,MATCH($C91,'Compliance Summary'!$C$40:$C$79,0),1),"n/a") -> n/a | F91: 0 | G91: 0 | H91: 0 | I91: 0 | K91: n/a | L91: n/a | M91: n/a
B92: 8.1 Installations and activations – NBN Co Networks other than the NBN Co Satellite Network | C92: After Hours Installation | D92: Fibre, FTTB, FTTN, FTTC and HFC | E92: =IFERROR(INDEX('Compliance Summary'!$B$40:$C$79,MATCH($C92,'Compliance Summary'!$C$40:$C$79,0),1),"n/a") -> n/a | F92: 150 | G92: 150 | H92: 150 | I92: 150 | K92: n/a | L92: n/a | M92: n/a
B93: 8.1 Installations and activations – NBN Co Networks other than the NBN Co Satellite Network | C93: Fibre upgrade installation | D93: Fibre | E93: =IFERROR(INDEX('Compliance Summary'!$B$40:$C$79,MATCH($C93,'Compliance Summary'!$C$40:$C$79,0),1),"n/a") -> n/a | F93: 200 | G93: 200 | H93: 200 | I93: 200 | K93: n/a | L93: n/a | M93: n/a
B94: 8.1 Installations and activations – NBN Co Networks other than the NBN Co Satellite Network | C94: Subsequent Installation of power supply with battery backup – Fibre Network only | D94: Fibre | E94: =IFERROR(INDEX('Compliance Summary'!$B$40:$C$79,MATCH($C94,'Compliance Summary'!$C$40:$C$79,0),1),"n/a") -> n/a | F94: 0 | G94: 0 | H94: 0 | I94: 0 | K94: =IF($E94="n/a","n/a",IFERROR(G94/F94-1,0)) -> n/a | L94: =IF($E94="n/a","n/a",IFERROR(H94/G94-1,0)) -> n/a | M94: =IF($E94="n/a","n/a",IFERROR(I94/H94-1,0)) -> n/a
B95: 8.1 Installations and activations – NBN Co Networks other than the NBN Co Satellite Network | C95: W-NTD Upgrade Installation | D95: Wireless | E95: =IFERROR(INDEX('Compliance Summary'!$B$40:$C$79,MATCH($C95,'Compliance Summary'!$C$40:$C$79,0),1),"n/a") -> n/a | F95: 200 | G95: 200 | H95: 200 | I95: 200 | K95: =IF($E95="n/a","n/a",IFERROR(G95/F95-1,0)) -> n/a | L95: =IF($E95="n/a","n/a",IFERROR(H95/G95-1,0)) -> n/a | M95: =IF($E95="n/a","n/a",IFERROR(I95/H95-1,0)) -> n/a
B96: 8.1 Installations and activations – NBN Co Networks other than the NBN Co Satellite Network | C96: Access Component Reactivation | D96: Fibre, FTTB, FTTN, FTTC, HFC and Wireless | E96: =IFERROR(INDEX('Compliance Summary'!$B$40:$C$79,MATCH($C96,'Compliance Summary'!$C$40:$C$79,0),1),"n/a") -> n/a | F96: 5 | G96: 5 | H96: 5 | I96: 5 | K96: n/a | L96: n/a | M96: n/a
B97: 8.1 Installations and activations – NBN Co Networks other than the NBN Co Satellite Network | C97: CVC Set-up & Activation | D97: Fibre, FTTB, FTTN, FTTC, HFC and Wireless | E97: =IFERROR(INDEX('Compliance Summary'!$B$40:$C$79,MATCH($C97,'Compliance Summary'!$C$40:$C$79,0),1),"n/a") -> n/a | F97: 0 | G97: 0 | H97: 0 | I97: 0 | K97: n/a | L97: n/a | M97: n/a
B98: 8.1 Installations and activations – NBN Co Networks other than the NBN Co Satellite Network | C98: NNI 1000BaseLX - Set-up & Activation | D98: Fibre, FTTB, FTTN, FTTC, HFC and Wireless | E98: =IFERROR(INDEX('Compliance Summary'!$B$40:$C$79,MATCH($C98,'Compliance Summary'!$C$40:$C$79,0),1),"n/a") -> n/a | F98: 1000 | G98: 1000 | H98: 1000 | I98: 1000 | K98: n/a | L98: n/a | M98: n/a
B99: 8.1 Installations and activations – NBN Co Networks other than the NBN Co Satellite Network | C99: NNI 10GBaseLR - Set-up & Activation | D99: Fibre, FTTB, FTTN, FTTC, HFC and Wireless | E99: =IFERROR(INDEX('Compliance Summary'!$B$40:$C$79,MATCH($C99,'Compliance Summary'!$C$40:$C$79,0),1),"n/a") -> n/a | F99: 5000 | G99: 3000 | H99: 3000 | I99: 3000 | K99: n/a | L99: n/a | M99: n/a
B100: 8.1 Installations and activations – NBN Co Networks other than the NBN Co Satellite Network | C100: NNI 100GBaseLR4 - Set-up & Activation | D100: Fibre, FTTB, FTTN, FTTC, HFC and Wireless | E100: =IFERROR(INDEX('Compliance Summary'!$B$40:$C$79,MATCH($C100,'Compliance Summary'!$C$40:$C$79,0),1),"n/a") -> n/a | F100: 30000 | G100: 20000 | H100: 20000 | I100: 20000 | K100: n/a | L100: n/a | M100: n/a
B101: 8.1 Installations and activations – NBN Co Networks other than the NBN Co Satellite Network | C101: NNI 1000BaseEX - Set-up & Activation | D101: Fibre, FTTB, FTTN, FTTC, HFC and Wireless | E101: =IFERROR(INDEX('Compliance Summary'!$B$40:$C$79,MATCH($C101,'Compliance Summary'!$C$40:$C$79,0),1),"n/a") -> n/a | F101: 2000 | G101: 2000 | H101: 2000 | I101: 2000 | K101: n/a | L101: n/a | M101: n/a
B102: 8.1 Installations and activations – NBN Co Networks other than the NBN Co Satellite Network | C102: NNI 10GBaseER - Set-up & Activation | D102: Fibre, FTTB, FTTN, FTTC, HFC and Wireless | E102: =IFERROR(INDEX('Compliance Summary'!$B$40:$C$79,MATCH($C102,'Compliance Summary'!$C$40:$C$79,0),1),"n/a") -> n/a | F102: 6000 | G102: 4000 | H102: 4000 | I102: 4000 | K102: n/a | L102: n/a | M102: n/a
B103: 8.1 Installations and activations – NBN Co Networks other than the NBN Co Satellite Network | C103: NNI 100GBaseER4 - Set-up & Activation | D103: Fibre, FTTB, FTTN, FTTC, HFC and Wireless | E103: =IFERROR(INDEX('Compliance Summary'!$B$40:$C$79,MATCH($C103,'Compliance Summary'!$C$40:$C$79,0),1),"n/a") -> n/a | F103: 36000 | G103: 24000 | H103: 24000 | I103: 24000 | K103: n/a | L103: n/a | M103: n/a
B104: 8.1 Installations and activations – NBN Co Networks other than the NBN Co Satellite Network | C104: NNI Link Activation | D104: Fibre, FTTB, FTTN, FTTC, HFC and Wireless | E104: =IFERROR(INDEX('Compliance Summary'!$B$40:$C$79,MATCH($C104,'Compliance Summary'!$C$40:$C$79,0),1),"n/a") -> n/a | F104: 0 | G104: 0 | H104: 0 | I104: 0 | K104: n/a | L104: n/a | M104: n/a
B105: 8.1 Installations and activations – NBN Co Networks other than the NBN Co Satellite Network | C105: Virtual NNI Activation | D105: Fibre, FTTB, FTTN, FTTC, HFC and Wireless | E105: =IFERROR(INDEX('Compliance Summary'!$B$40:$C$79,MATCH($C105,'Compliance Summary'!$C$40:$C$79,0),1),"n/a") -> n/a | F105: 250 | G105: 250 | H105: 250 | I105: 250 | K105: n/a | L105: n/a | M105: n/a
B106: 8.1 Installations and activations – NBN Co Networks other than the NBN Co Satellite Network | C106: Service Qualification Enquiry | D106: Fibre, FTTB, FTTN, FTTC, HFC and Wireless | E106: =IFERROR(INDEX('Compliance Summary'!$B$40:$C$79,MATCH($C106,'Compliance Summary'!$C$40:$C$79,0),1),"n/a") -> n/a | F106: 0 | G106: 0 | H106: 0 | I106: 0 | K106: n/a | L106: n/a | M106: n/a
B107: 8.2 Installations and activations – Smart Places | C107: Smart Places - Initial Standard Installation | D107: Fibre | E107: =IFERROR(INDEX('Compliance Summary'!$B$40:$C$79,MATCH($C107,'Compliance Summary'!$C$40:$C$79,0),1),"n/a") -> n/a | F107: 0 | G107: 0 | H107: 0 | I107: 0 | K107: n/a | L107: n/a | M107: n/a
B108: 8.2 Installations and activations – Smart Places | C108: Smart Places - Access Component Reactivation | D108: Fibre | E108: =IFERROR(INDEX('Compliance Summary'!$B$40:$C$79,MATCH($C108,'Compliance Summary'!$C$40:$C$79,0),1),"n/a") -> n/a | F108: 5 | G108: 5 | H108: 5 | I108: 5 | K108: n/a | L108: n/a | M108: n/a
B109: 8.2 Installations and activations – Smart Places | C109: Smart Places - CVC Set-up & Activation | D109: Fibre | E109: =IFERROR(INDEX('Compliance Summary'!$B$40:$C$79,MATCH($C109,'Compliance Summary'!$C$40:$C$79,0),1),"n/a") -> n/a | F109: 0 | G109: 0 | H109: 0 | I109: 0 | K109: n/a | L109: n/a | M109: n/a
B110: 8.2 Installations and activations – Smart Places | C110: Smart Places - NNI 1000BaseLX - Set-up & Activation | D110: Fibre | E110: =IFERROR(INDEX('Compliance Summary'!$B$40:$C$79,MATCH($C110,'Compliance Summary'!$C$40:$C$79,0),1),"n/a") -> n/a | F110: 1000 | G110: 1000 | H110: 1000 | I110: 1000 | K110: n/a | L110: n/a | M110: n/a
B111: 8.2 Installations and activations – Smart Places | C111: Smart Places - NNI 10GBaseLR - Set-up & Activation | D111: Fibre | E111: =IFERROR(INDEX('Compliance Summary'!$B$40:$C$79,MATCH($C111,'Compliance Summary'!$C$40:$C$79,0),1),"n/a") -> n/a | F111: 5000 | G111: 3000 | H111: 3000 | I111: 3000 | K111: n/a | L111: n/a | M111: n/a
B112: 8.2 Installations and activations – Smart Places | C112: Smart Places - NNI 100GBaseLR4 - Set-up & Activation | D112: Fibre | E112: =IFERROR(INDEX('Compliance Summary'!$B$40:$C$79,MATCH($C112,'Compliance Summary'!$C$40:$C$79,0),1),"n/a") -> n/a | F112: 30000 | G112: 20000 | H112: 20000 | I112: 20000 | K112: n/a | L112: n/a | M112: n/a
B113: 8.2 Installations and activations – Smart Places | C113: Smart Places - NNI 1000BaseEX - Set-up & Activation | D113: Fibre | E113: =IFERROR(INDEX('Compliance Summary'!$B$40:$C$79,MATCH($C113,'Compliance Summary'!$C$40:$C$79,0),1),"n/a") -> n/a | F113: 2000 | G113: 2000 | H113: 2000 | I113: 2000 | K113: n/a | L113: n/a | M113: n/a
B114: 8.2 Installations and activations – Smart Places | C114: Smart Places - NNI 10GBaseER - Set-up & Activation | D114: Fibre | E114: =IFERROR(INDEX('Compliance Summary'!$B$40:$C$79,MATCH($C114,'Compliance Summary'!$C$40:$C$79,0),1),"n/a") -> n/a | F114: 6000 | G114: 4000 | H114: 4000 | I114: 4000 | K114: n/a | L114: n/a | M114: n/a
B115: 8.2 Installations and activations – Smart Places | C115: Smart Places - NNI 100GBaseER4 - Set-up & Activation | D115: Fibre | E115: =IFERROR(INDEX('Compliance Summary'!$B$40:$C$79,MATCH($C115,'Compliance Summary'!$C$40:$C$79,0),1),"n/a") -> n/a | F115: 36000 | G115: 24000 | H115: 24000 | I115: 24000 | K115: n/a | L115: n/a | M115: n/a
B116: 8.2 Installations and activations – Smart Places | C116: Smart Places - NNI Link Activation | D116: Fibre | E116: =IFERROR(INDEX('Compliance Summary'!$B$40:$C$79,MATCH($C116,'Compliance Summary'!$C$40:$C$79,0),1),"n/a") -> n/a | F116: 0 | G116: 0 | H116: 0 | I116: 0 | K116: n/a | L116: n/a | M116: n/a
B117: 8.2 Installations and activations – Smart Places | C117: Smart Places - Virtual NNI Activation | D117: Fibre | E117: =IFERROR(INDEX('Compliance Summary'!$B$40:$C$79,MATCH($C117,'Compliance Summary'!$C$40:$C$79,0),1),"n/a") -> n/a | F117: 250 | G117: 250 | H117: 250 | I117: 250 | K117: n/a | L117: n/a | M117: n/a
B118: 8.3 Installations and activations – NBN Co Satellite Network | C118: Initial Standard Installation (excluding any additional incidental charges which may apply for Limited Access Areas) | D118: Satellite | E118: =IFERROR(INDEX('Compliance Summary'!$B$40:$C$79,MATCH($C118,'Compliance Summary'!$C$40:$C$79,0),1),"n/a") -> n/a | F118: 0 | G118: 0 | H118: 0 | I118: 0 | K118: n/a | L118: n/a | M118: n/a
B119: 8.3 Installations and activations – NBN Co Satellite Network | C119: Access Component Reactivation (excluding any additional incidental charges which may apply for Limited Access Areas) | D119: Satellite | E119: =IFERROR(INDEX('Compliance Summary'!$B$40:$C$79,MATCH($C119,'Compliance Summary'!$C$40:$C$79,0),1),"n/a") -> n/a | F119: 5 | G119: 5 | H119: 5 | I119: 5 | K119: n/a | L119: n/a | M119: n/a
B120: 8.3 Installations and activations – NBN Co Satellite Network | C120: Subsequent Installation in Urban Area, Major Rural Area, Minor Rural Area or Remote Area - 0.8m NTD outdoor unit dish | D120: Satellite | E120: =IFERROR(INDEX('Compliance Summary'!$B$40:$C$79,MATCH($C120,'Compliance Summary'!$C$40:$C$79,0),1),"n/a") -> n/a | F120: 692 | G120: 692 | H120: 692 | I120: 692 | K120: n/a | L120: n/a | M120: n/a
B121: 8.3 Installations and activations – NBN Co Satellite Network | C121: Subsequent Installation in Urban Area, Major Rural Area, Minor Rural Area or Remote Area - 1.2m NTD outdoor unit dish | D121: Satellite | E121: =IFERROR(INDEX('Compliance Summary'!$B$40:$C$79,MATCH($C121,'Compliance Summary'!$C$40:$C$79,0),1),"n/a") -> n/a | F121: 1057 | G121: 1057 | H121: 1057 | I121: 1057 | K121: n/a | L121: n/a | M121: n/a
B122: 8.3 Installations and activations – NBN Co Satellite Network | C122: Subsequent Installation in Urban Area, Major Rural Area, Minor Rural Area or Remote Area - 1.8m NTD outdoor unit dish | D122: Satellite | E122: =IFERROR(INDEX('Compliance Summary'!$B$40:$C$79,MATCH($C122,'Compliance Summary'!$C$40:$C$79,0),1),"n/a") -> n/a | F122: 2226 | G122: 2226 | H122: 2226 | I122: 2226 | K122: n/a | L122: n/a | M122: n/a
B123: 8.3 Installations and activations – NBN Co Satellite Network | C123: Subsequent Installation in Isolated Area - 0.8m NTD outdoor unit dish | D123: Satellite | E123: =IFERROR(INDEX('Compliance Summary'!$B$40:$C$79,MATCH($C123,'Compliance Summary'!$C$40:$C$79,0),1),"n/a") -> n/a | F123: 1559 | G123: 1559 | H123: 1559 | I123: 1559 | K123: n/a | L123: n/a | M123: n/a
B124: 8.3 Installations and activations – NBN Co Satellite Network | C124: Subsequent Installation in Isolated Area - 1.2m NTD outdoor unit dish | D124: Satellite | E124: =IFERROR(INDEX('Compliance Summary'!$B$40:$C$79,MATCH($C124,'Compliance Summary'!$C$40:$C$79,0),1),"n/a") -> n/a | F124: 1751 | G124: 1751 | H124: 1751 | I124: 1751 | K124: n/a | L124: n/a | M124: n/a
B125: 8.3 Installations and activations – NBN Co Satellite Network | C125: Subsequent Installation in Isolated Area - 1.8m NTD outdoor unit dish | D125: Satellite | E125: =IFERROR(INDEX('Compliance Summary'!$B$40:$C$79,MATCH($C125,'Compliance Summary'!$C$40:$C$79,0),1),"n/a") -> n/a | F125: 3732 | G125: 3732 | H125: 3732 | I125: 3732 | K125: n/a | L125: n/a | M125: n/a
B126: 8.3 Installations and activations – NBN Co Satellite Network | C126: Subsequent Installation in Isolated Area - 1.8m NTD outdoor unit dish | D126: Satellite | E126: =IFERROR(INDEX('Compliance Summary'!$B$40:$C$79,MATCH($C126,'Compliance Summary'!$C$40:$C$79,0),1),"n/a") -> n/a | F126: 0 | G126: 0 | H126: 0 | I126: 0 | K126: n/a | L126: n/a | M126: n/a
B127: 8.3 Installations and activations – NBN Co Satellite Network | C127: NNI 1000BaseLX - Set-up & Activation | D127: Satellite | E127: =IFERROR(INDEX('Compliance Summary'!$B$40:$C$79,MATCH($C127,'Compliance Summary'!$C$40:$C$79,0),1),"n/a") -> n/a | F127: 1000 | G127: 1000 | H127: 1000 | I127: 1000 | K127: n/a | L127: n/a | M127: n/a
B128: 8.3 Installations and activations – NBN Co Satellite Network | C128: NNI 10GBaseLR - Set-up & Activation | D128: Satellite | E128: =IFERROR(INDEX('Compliance Summary'!$B$40:$C$79,MATCH($C128,'Compliance Summary'!$C$40:$C$79,0),1),"n/a") -> n/a | F128: 5000 | G128: 3000 | H128: 3000 | I128: 3000 | K128: n/a | L128: n/a | M128: n/a
B129: 8.3 Installations and activations – NBN Co Satellite Network | C129: NNI 1000BaseEX - Set-up & Activation | D129: Satellite | E129: =IFERROR(INDEX('Compliance Summary'!$B$40:$C$79,MATCH($C129,'Compliance Summary'!$C$40:$C$79,0),1),"n/a") -> n/a | F129: 2000 | G129: 2000 | H129: 2000 | I129: 2000 | K129: n/a | L129: n/a | M129: n/a
B130: 8.3 Installations and activations – NBN Co Satellite Network | C130: NNI 10GBaseER - Set-up & Activation | D130: Satellite | E130: =IFERROR(INDEX('Compliance Summary'!$B$40:$C$79,MATCH($C130,'Compliance Summary'!$C$40:$C$79,0),1),"n/a") -> n/a | F130: 6000 | G130: 4000 | H130: 4000 | I130: 4000 | K130: n/a | L130: n/a | M130: n/a
B131: 8.3 Installations and activations – NBN Co Satellite Network | C131: Site Survey Charge | D131: Satellite | E131: =IFERROR(INDEX('Compliance Summary'!$B$40:$C$79,MATCH($C131,'Compliance Summary'!$C$40:$C$79,0),1),"n/a") -> n/a | F131: 225 | G131: 225 | H131: 225 | I131: 225 | K131: n/a | L131: n/a | M131: n/a
B132: 8.4 Service modifications – NBN Co Networks other than the NBN Co Satellite Network | C132: Access Component Modification (no attendance at Premises required) | D132: Fibre, FTTB, FTTN, FTTC, HFC and Wireless | E132: =IFERROR(INDEX('Compliance Summary'!$B$40:$C$79,MATCH($C132,'Compliance Summary'!$C$40:$C$79,0),1),"n/a") -> n/a | F132: 0 | G132: 0 | H132: 0 | I132: 0 | K132: n/a | L132: n/a | M132: n/a
B133: 8.4 Service modifications – NBN Co Networks other than the NBN Co Satellite Network | C133: CVC Modification | D133: Fibre, FTTB, FTTN, FTTC, HFC and Wireless | E133: =IFERROR(INDEX('Compliance Summary'!$B$40:$C$79,MATCH($C133,'Compliance Summary'!$C$40:$C$79,0),1),"n/a") -> n/a | F133: 0 | G133: 0 | H133: 0 | I133: 0 | K133: n/a | L133: n/a | M133: n/a
B134: 8.4 Service modifications – NBN Co Networks other than the NBN Co Satellite Network | C134: NNI Modification | D134: Fibre, FTTB, FTTN, FTTC, HFC and Wireless | E134: =IFERROR(INDEX('Compliance Summary'!$B$40:$C$79,MATCH($C134,'Compliance Summary'!$C$40:$C$79,0),1),"n/a") -> n/a | F134: 0 | G134: 0 | H134: 0 | I134: 0 | K134: n/a | L134: n/a | M134: n/a
B135: 8.4 Service modifications – NBN Co Networks other than the NBN Co Satellite Network | C135: NNI Link Modification | D135: Fibre, FTTB, FTTN, FTTC, HFC and Wireless | E135: =IFERROR(INDEX('Compliance Summary'!$B$40:$C$79,MATCH($C135,'Compliance Summary'!$C$40:$C$79,0),1),"n/a") -> n/a | F135: 0 | G135: 0 | H135: 0 | I135: 0 | K135: n/a | L135: n/a | M135: n/a
B136: 8.5 Service modifications – Smart Places | C136: Smart Places - Access Component Modification (no attendance at Smart Location required) | D136: Fibre | E136: =IFERROR(INDEX('Compliance Summary'!$B$40:$C$79,MATCH($C136,'Compliance Summary'!$C$40:$C$79,0),1),"n/a") -> n/a | F136: 0 | G136: 0 | H136: 0 | I136: 0 | K136: n/a | L136: n/a | M136: n/a
B137: 8.5 Service modifications – Smart Places | C137: Smart Places - CVC Modification | D137: Fibre | E137: =IFERROR(INDEX('Compliance Summary'!$B$40:$C$79,MATCH($C137,'Compliance Summary'!$C$40:$C$79,0),1),"n/a") -> n/a | F137: 0 | G137: 0 | H137: 0 | I137: 0 | K137: n/a | L137: n/a | M137: n/a
B138: 8.5 Service modifications – Smart Places | C138: Smart Places - NNI Modification | D138: Fibre | E138: =IFERROR(INDEX('Compliance Summary'!$B$40:$C$79,MATCH($C138,'Compliance Summary'!$C$40:$C$79,0),1),"n/a") -> n/a | F138: 0 | G138: 0 | H138: 0 | I138: 0 | K138: n/a | L138: n/a | M138: n/a
B139: 8.5 Service modifications – Smart Places | C139: Smart Places - NNI Link Modification | D139: Fibre | E139: =IFERROR(INDEX('Compliance Summary'!$B$40:$C$79,MATCH($C139,'Compliance Summary'!$C$40:$C$79,0),1),"n/a") -> n/a | F139: 0 | G139: 0 | H139: 0 | I139: 0 | K139: n/a | L139: n/a | M139: n/a
B140: 8.6 Service modifications – NBN Co Satellite Network | C140: Equipment Modification (NTD Indoor Unit)(excluding any additional incidental charges which may apply for Limited Access Areas) | D140: Satellite | E140: =IFERROR(INDEX('Compliance Summary'!$B$40:$C$79,MATCH($C140,'Compliance Summary'!$C$40:$C$79,0),1),"n/a") -> n/a | F140: 420 | G140: 420 | H140: 420 | I140: 420 | K140: n/a | L140: =IF($E140="n/a","n/a",IFERROR(H140/G140-1,0)) -> n/a | M140: =IF($E140="n/a","n/a",IFERROR(I140/H140-1,0)) -> n/a
B141: 8.6 Service modifications – NBN Co Satellite Network | C141: Access Component Modification (no attendance at Premises required) | D141: Satellite | E141: =IFERROR(INDEX('Compliance Summary'!$B$40:$C$79,MATCH($C141,'Compliance Summary'!$C$40:$C$79,0),1),"n/a") -> n/a | F141: 0 | G141: 0 | H141: 0 | I141: 0 | K141: =IF($E141="n/a","n/a",IFERROR(G141/F141-1,0)) -> n/a | L141: n/a | M141: n/a
B142: 8.6 Service modifications – NBN Co Satellite Network | C142: CVC Modification | D142: Satellite | E142: =IFERROR(INDEX('Compliance Summary'!$B$40:$C$79,MATCH($C142,'Compliance Summary'!$C$40:$C$79,0),1),"n/a") -> n/a | F142: 0 | G142: 0 | H142: 0 | I142: 0 | K142: n/a | L142: n/a | M142: n/a
B143: 8.6 Service modifications – NBN Co Satellite Network | C143: NNI Modification | D143: Satellite | E143: =IFERROR(INDEX('Compliance Summary'!$B$40:$C$79,MATCH($C143,'Compliance Summary'!$C$40:$C$79,0),1),"n/a") -> n/a | F143: 0 | G143: 0 | H143: 0 | I143: 0 | K143: n/a | L143: n/a | M143: n/a
B144: 8.6 Service modifications – NBN Co Satellite Network | C144: Equipment Modification (NTD outdoor unit) in Urban Area, Major Rural Area, Minor Rural Area or Remote Area - 0.8m NTD outdoor unit dish | D144: Satellite | E144: =IFERROR(INDEX('Compliance Summary'!$B$40:$C$79,MATCH($C144,'Compliance Summary'!$C$40:$C$79,0),1),"n/a") -> n/a | F144: 754 | G144: 754 | H144: 754 | I144: 754 | K144: n/a | L144: n/a | M144: n/a
B145: 8.6 Service modifications – NBN Co Satellite Network | C145: Equipment Modification (NTD outdoor unit) in Urban Area, Major Rural Area, Minor Rural Area or Remote Area - 1.2m NTD outdoor unit dish | D145: Satellite | E145: =IFERROR(INDEX('Compliance Summary'!$B$40:$C$79,MATCH($C145,'Compliance Summary'!$C$40:$C$79,0),1),"n/a") -> n/a | F145: 1119 | G145: 1119 | H145: 1119 | I145: 1119 | K145: n/a | L145: n/a | M145: n/a
B146: 8.6 Service modifications – NBN Co Satellite Network | C146: Equipment Modification (NTD outdoor unit) in Urban Area, Major Rural Area, Minor Rural Area or Remote Area - 1.8m NTD outdoor unit dish | D146: Satellite | E146: =IFERROR(INDEX('Compliance Summary'!$B$40:$C$79,MATCH($C146,'Compliance Summary'!$C$40:$C$79,0),1),"n/a") -> n/a | F146: 2288 | G146: 2288 | H146: 2288 | I146: 2288 | K146: n/a | L146: n/a | M146: n/a
B147: 8.6 Service modifications – NBN Co Satellite Network | C147: Equipment Modification (NTD outdoor unit) in Isolated Area - 0.8m NTD outdoor unit dish | D147: Satellite | E147: =IFERROR(INDEX('Compliance Summary'!$B$40:$C$79,MATCH($C147,'Compliance Summary'!$C$40:$C$79,0),1),"n/a") -> n/a | F147: 1621 | G147: 1621 | H147: 1621 | I147: 1621 | K147: n/a | L147: n/a | M147: n/a
B148: 8.6 Service modifications – NBN Co Satellite Network | C148: Equipment Modification (NTD outdoor unit) in Isolated Area - 1.2m NTD outdoor unit dish | D148: Satellite | E148: =IFERROR(INDEX('Compliance Summary'!$B$40:$C$79,MATCH($C148,'Compliance Summary'!$C$40:$C$79,0),1),"n/a") -> n/a | F148: 1812 | G148: 1812 | H148: 1812 | I148: 1812 | K148: n/a | L148: n/a | M148: n/a
B149: 8.6 Service modifications – NBN Co Satellite Network | C149: Equipment Modification (NTD outdoor unit) in Isolated Area - 1.8m NTD outdoor unit dish | D149: Satellite | E149: =IFERROR(INDEX('Compliance Summary'!$B$40:$C$79,MATCH($C149,'Compliance Summary'!$C$40:$C$79,0),1),"n/a") -> n/a | F149: 3793 | G149: 3793 | H149: 3793 | I149: 3793 | K149: n/a | L149: n/a | M149: n/a
B150: 8.6 Service modifications – NBN Co Satellite Network | C150: Equipment Modification (NTD indoor and outdoor unit) in Urban Area, Major Rural Area, Minor Rural Area or Remote Area - 0.8m NTD outdoor unit dish | D150: Satellite | E150: =IFERROR(INDEX('Compliance Summary'!$B$40:$C$79,MATCH($C150,'Compliance Summary'!$C$40:$C$79,0),1),"n/a") -> n/a | F150: 783 | G150: 783 | H150: 783 | I150: 783 | K150: n/a | L150: n/a | M150: n/a
B151: 8.6 Service modifications – NBN Co Satellite Network | C151: Equipment Modification (NTD indoor and outdoor unit) in Urban Area, Major Rural Area, Minor Rural Area or Remote Area - 1.2m NTD outdoor unit dish | D151: Satellite | E151: =IFERROR(INDEX('Compliance Summary'!$B$40:$C$79,MATCH($C151,'Compliance Summary'!$C$40:$C$79,0),1),"n/a") -> n/a | F151: 1149 | G151: 1149 | H151: 1149 | I151: 1149 | K151: n/a | L151: n/a | M151: n/a
B152: 8.6 Service modifications – NBN Co Satellite Network | C152: Equipment Modification (NTD indoor and outdoor unit) in Urban Area, Major Rural Area, Minor Rural Area or Remote Area - 1.8m NTD outdoor unit dish | D152: Satellite | E152: =IFERROR(INDEX('Compliance Summary'!$B$40:$C$79,MATCH($C152,'Compliance Summary'!$C$40:$C$79,0),1),"n/a") -> n/a | F152: 2317 | G152: 2317 | H152: 2317 | I152: 2317 | K152: n/a | L152: n/a | M152: n/a
B153: 8.6 Service modifications – NBN Co Satellite Network | C153: Equipment Modification (NTD indoor and outdoor unit) in Isolated Area - 0.8m NTD outdoor unit dish | D153: Satellite | E153: =IFERROR(INDEX('Compliance Summary'!$B$40:$C$79,MATCH($C153,'Compliance Summary'!$C$40:$C$79,0),1),"n/a") -> n/a | F153: 1650 | G153: 1650 | H153: 1650 | I153: 1650 | K153: n/a | L153: n/a | M153: n/a
B154: 8.6 Service modifications – NBN Co Satellite Network | C154: Equipment Modification (NTD indoor and outdoor unit) in Isolated Area - 1.2m NTD outdoor unit dish | D154: Satellite | E154: =IFERROR(INDEX('Compliance Summary'!$B$40:$C$79,MATCH($C154,'Compliance Summary'!$C$40:$C$79,0),1),"n/a") -> n/a | F154: 1842 | G154: 1842 | H154: 1842 | I154: 1842 | K154: n/a | L154: n/a | M154: n/a
B155: 8.6 Service modifications – NBN Co Satellite Network | C155: Equipment Modification (NTD indoor and outdoor unit) in Isolated Area - 1.8m NTD outdoor unit dish | D155: Satellite | E155: =IFERROR(INDEX('Compliance Summary'!$B$40:$C$79,MATCH($C155,'Compliance Summary'!$C$40:$C$79,0),1),"n/a") -> n/a | F155: 3823 | G155: 3823 | H155: 3823 | I155: 3823 | K155: n/a | L155: n/a | M155: n/a
B156: 8.7 Service management – NBN Co Networks other than the NBN Co Satellite Network | C156: On Site Maintainance Call Out | D156: Fibre and Wireless | E156: =IFERROR(INDEX('Compliance Summary'!$B$40:$C$79,MATCH($C156,'Compliance Summary'!$C$40:$C$79,0),1),"n/a") -> n/a | F156: 0 | G156: 0 | H156: 0 | I156: 0 | K156: n/a | L156: n/a | M156: n/a
B157: 8.7 Service management – NBN Co Networks other than the NBN Co Satellite Network | C157: No Fault Found (No Truck Roll Required) | D157: Fibre and Wireless | E157: =IFERROR(INDEX('Compliance Summary'!$B$40:$C$79,MATCH($C157,'Compliance Summary'!$C$40:$C$79,0),1),"n/a") -> n/a | F157: 50 | G157: 50 | H157: 50 | I157: 50 | K157: n/a | L157: n/a | M157: n/a
B158: 8.7 Service management – NBN Co Networks other than the NBN Co Satellite Network | C158: No Fault Found (No Truck Roll Required) | D158: FTTB and FTTN and FTTC | E158: =IFERROR(INDEX('Compliance Summary'!$B$40:$C$79,MATCH($C158,'Compliance Summary'!$C$40:$C$79,0),1),"n/a") -> n/a | F158: 50 | G158: 50 | H158: 50 | I158: 50 | K158: n/a | L158: n/a | M158: n/a
B159: 8.7 Service management – NBN Co Networks other than the NBN Co Satellite Network | C159: No Fault Found (No Truck Roll Required) | D159: HFC | E159: =IFERROR(INDEX('Compliance Summary'!$B$40:$C$79,MATCH($C159,'Compliance Summary'!$C$40:$C$79,0),1),"n/a") -> n/a | F159: 50 | G159: 50 | H159: 50 | I159: 50 | K159: n/a | L159: n/a | M159: n/a
B160: 8.7 Service management – NBN Co Networks other than the NBN Co Satellite Network | C160: Late Cancellation (Site Visit Required) | D160: Fibre and Wireless | E160: =IFERROR(INDEX('Compliance Summary'!$B$40:$C$79,MATCH($C160,'Compliance Summary'!$C$40:$C$79,0),1),"n/a") -> n/a | F160: 0 | G160: 0 | H160: 0 | I160: 0 | K160: n/a | L160: n/a | M160: n/a
B161: 8.7 Service management – NBN Co Networks other than the NBN Co Satellite Network | C161: Late Cancellation (Site Visit Required) | D161: FTTB and FTTN and FTTC | E161: =IFERROR(INDEX('Compliance Summary'!$B$40:$C$79,MATCH($C161,'Compliance Summary'!$C$40:$C$79,0),1),"n/a") -> n/a | F161: 75 | G161: 75 | H161: 75 | I161: 75 | K161: n/a | L161: n/a | M161: n/a
B162: 8.7 Service management – NBN Co Networks other than the NBN Co Satellite Network | C162: Late Cancellation (Site Visit Required) | D162: HFC | E162: =IFERROR(INDEX('Compliance Summary'!$B$40:$C$79,MATCH($C162,'Compliance Summary'!$C$40:$C$79,0),1),"n/a") -> n/a | F162: 75 | G162: 75 | H162: 75 | I162: 75 | K162: n/a | L162: n/a | M162: n/a
B163: 8.7 Service management – NBN Co Networks other than the NBN Co Satellite Network | C163: First Missed Appointment | D163: Fibre and Wireless | E163: =IFERROR(INDEX('Compliance Summary'!$B$40:$C$79,MATCH($C163,'Compliance Summary'!$C$40:$C$79,0),1),"n/a") -> n/a | F163: 0 | G163: 0 | H163: 0 | I163: 0 | K163: n/a | L163: n/a | M163: n/a
B164: 8.7 Service management – NBN Co Networks other than the NBN Co Satellite Network | C164: First Missed Appointment | D164: FTTB and FTTN and FTTC | E164: =IFERROR(INDEX('Compliance Summary'!$B$40:$C$79,MATCH($C164,'Compliance Summary'!$C$40:$C$79,0),1),"n/a") -> n/a | F164: 50 | G164: 50 | H164: 50 | I164: 50 | K164: n/a | L164: n/a | M164: n/a
B165: 8.7 Service management – NBN Co Networks other than the NBN Co Satellite Network | C165: First Missed Appointment | D165: HFC | E165: =IFERROR(INDEX('Compliance Summary'!$B$40:$C$79,MATCH($C165,'Compliance Summary'!$C$40:$C$79,0),1),"n/a") -> n/a | F165: 50 | G165: 50 | H165: 50 | I165: 50 | K165: n/a | L165: n/a | M165: n/a
B166: 8.7 Service management – NBN Co Networks other than the NBN Co Satellite Network | C166: Subsequent Missed Appointment | D166: Fibre and Wireless | E166: =IFERROR(INDEX('Compliance Summary'!$B$40:$C$79,MATCH($C166,'Compliance Summary'!$C$40:$C$79,0),1),"n/a") -> n/a | F166: 0 | G166: 0 | H166: 0 | I166: 0 | K166: n/a | L166: n/a | M166: n/a
B167: 8.7 Service management – NBN Co Networks other than the NBN Co Satellite Network | C167: Subsequent Missed Appointment | D167: FTTB and FTTN and FTTC | E167: =IFERROR(INDEX('Compliance Summary'!$B$40:$C$79,MATCH($C167,'Compliance Summary'!$C$40:$C$79,0),1),"n/a") -> n/a | F167: 75 | G167: 75 | H167: 75 | I167: 75 | K167: n/a | L167: n/a | M167: n/a
B168: 8.7 Service management – NBN Co Networks other than the NBN Co Satellite Network | C168: Subsequent Missed Appointment | D168: HFC | E168: =IFERROR(INDEX('Compliance Summary'!$B$40:$C$79,MATCH($C168,'Compliance Summary'!$C$40:$C$79,0),1),"n/a") -> n/a | F168: 75 | G168: 75 | H168: 75 | I168: 75 | K168: n/a | L168: n/a | M168: n/a
B169: 8.7 Service management – NBN Co Networks other than the NBN Co Satellite Network | C169: Co-ordinated Appointment (Day) | D169: Fibre | E169: =IFERROR(INDEX('Compliance Summary'!$B$40:$C$79,MATCH($C169,'Compliance Summary'!$C$40:$C$79,0),1),"n/a") -> n/a | F169: 200 | G169: 200 | H169: 200 | I169: 200 | K169: n/a | L169: n/a | M169: n/a
B170: 8.7 Service management – NBN Co Networks other than the NBN Co Satellite Network | C170: Co-ordinated Appointment (Day) | D170: FTTB and FTTN and FTTC | E170: =IFERROR(INDEX('Compliance Summary'!$B$40:$C$79,MATCH($C170,'Compliance Summary'!$C$40:$C$79,0),1),"n/a") -> n/a | F170: 200 | G170: 200 | H170: 200 | I170: 200 | K170: n/a | L170: n/a | M170: n/a
B171: 8.7 Service management – NBN Co Networks other than the NBN Co Satellite Network | C171: Co-ordinated Appointment (Day) | D171: HFC | E171: =IFERROR(INDEX('Compliance Summary'!$B$40:$C$79,MATCH($C171,'Compliance Summary'!$C$40:$C$79,0),1),"n/a") -> n/a | F171: 200 | G171: 200 | H171: 200 | I171: 200 | K171: n/a | L171: n/a | M171: n/a
B172: 8.7 Service management – NBN Co Networks other than the NBN Co Satellite Network | C172: Co-ordinated Appointment (Night) | D172: Fibre | E172: =IFERROR(INDEX('Compliance Summary'!$B$40:$C$79,MATCH($C172,'Compliance Summary'!$C$40:$C$79,0),1),"n/a") -> n/a | F172: 300 | G172: 300 | H172: 300 | I172: 300 | K172: n/a | L172: n/a | M172: n/a
B173: 8.7 Service management – NBN Co Networks other than the NBN Co Satellite Network | C173: Co-ordinated Appointment (Night) | D173: FTTB and FTTN and FTTC | E173: =IFERROR(INDEX('Compliance Summary'!$B$40:$C$79,MATCH($C173,'Compliance Summary'!$C$40:$C$79,0),1),"n/a") -> n/a | F173: 300 | G173: 300 | H173: 300 | I173: 300 | K173: n/a | L173: n/a | M173: n/a
B174: 8.7 Service management – NBN Co Networks other than the NBN Co Satellite Network | C174: Co-ordinated Appointment (Night) | D174: HFC | E174: =IFERROR(INDEX('Compliance Summary'!$B$40:$C$79,MATCH($C174,'Compliance Summary'!$C$40:$C$79,0),1),"n/a") -> n/a | F174: 300 | G174: 300 | H174: 300 | I174: 300 | K174: n/a | L174: n/a | M174: n/a
B175: 8.7 Service management – NBN Co Networks other than the NBN Co Satellite Network | C175: Late Cancellation (After Hours Installation Appointment) | D175: Fibre | E175: =IFERROR(INDEX('Compliance Summary'!$B$40:$C$79,MATCH($C175,'Compliance Summary'!$C$40:$C$79,0),1),"n/a") -> n/a | F175: 150 | G175: 150 | H175: 150 | I175: 150 | K175: n/a | L175: n/a | M175: n/a
B176: 8.7 Service management – NBN Co Networks other than the NBN Co Satellite Network | C176: Late Cancellation (After Hours Installation Appointment) | D176: FTTB and FTTN and FTTC | E176: =IFERROR(INDEX('Compliance Summary'!$B$40:$C$79,MATCH($C176,'Compliance Summary'!$C$40:$C$79,0),1),"n/a") -> n/a | F176: 150 | G176: 150 | H176: 150 | I176: 150 | K176: n/a | L176: n/a | M176: n/a
B177: 8.7 Service management – NBN Co Networks other than the NBN Co Satellite Network | C177: Late Cancellation (Co-ordinated Appointment) (Day) | D177: Fibre and Wireless | E177: =IFERROR(INDEX('Compliance Summary'!$B$40:$C$79,MATCH($C177,'Compliance Summary'!$C$40:$C$79,0),1),"n/a") -> n/a | F177: 200 | G177: 200 | H177: 200 | I177: 200 | K177: n/a | L177: n/a | M177: n/a
B178: 8.7 Service management – NBN Co Networks other than the NBN Co Satellite Network | C178: Late Cancellation (Co-ordinated Appointment) (Day) | D178: FTTB and FTTN and FTTC | E178: =IFERROR(INDEX('Compliance Summary'!$B$40:$C$79,MATCH($C178,'Compliance Summary'!$C$40:$C$79,0),1),"n/a") -> n/a | F178: 200 | G178: 200 | H178: 200 | I178: 200 | K178: n/a | L178: n/a | M178: n/a
B179: 8.7 Service management – NBN Co Networks other than the NBN Co Satellite Network | C179: Late Cancellation (Co-ordinated Appointment) (Day) | D179: HFC | E179: =IFERROR(INDEX('Compliance Summary'!$B$40:$C$79,MATCH($C179,'Compliance Summary'!$C$40:$C$79,0),1),"n/a") -> n/a | F179: 200 | G179: 200 | H179: 200 | I179: 200 | K179: n/a | L179: n/a | M179: n/a
B180: 8.7 Service management – NBN Co Networks other than the NBN Co Satellite Network | C180: Late Cancellation (Co-ordinated Appointmentt) (Night) | D180: Fibre and Wireless | E180: =IFERROR(INDEX('Compliance Summary'!$B$40:$C$79,MATCH($C180,'Compliance Summary'!$C$40:$C$79,0),1),"n/a") -> n/a | F180: 300 | G180: 300 | H180: 300 | I180: 300 | K180: n/a | L180: n/a | M180: n/a
B181: 8.7 Service management – NBN Co Networks other than the NBN Co Satellite Network | C181: Late Cancellation (Co-ordinated Appointmentt) (Night) | D181: FTTB and FTTN and FTTC | E181: =IFERROR(INDEX('Compliance Summary'!$B$40:$C$79,MATCH($C181,'Compliance Summary'!$C$40:$C$79,0),1),"n/a") -> n/a | F181: 300 | G181: 300 | H181: 300 | I181: 300 | K181: n/a | L181: n/a | M181: n/a
B182: 8.7 Service management – NBN Co Networks other than the NBN Co Satellite Network | C182: Late Cancellation (Co-ordinated Appointmentt) (Night) | D182: HFC | E182: =IFERROR(INDEX('Compliance Summary'!$B$40:$C$79,MATCH($C182,'Compliance Summary'!$C$40:$C$79,0),1),"n/a") -> n/a | F182: 300 | G182: 300 | H182: 300 | I182: 300 | K182: n/a | L182: n/a | M182: n/a
B183: 8.7 Service management – NBN Co Networks other than the NBN Co Satellite Network | C183: Late Rescheduling (Co-ordinated Appointment) (Day) | D183: Fibre and Wireless | E183: =IFERROR(INDEX('Compliance Summary'!$B$40:$C$79,MATCH($C183,'Compliance Summary'!$C$40:$C$79,0),1),"n/a") -> n/a | F183: 200 | G183: 200 | H183: 200 | I183: 200 | K183: n/a | L183: n/a | M183: n/a
B184: 8.7 Service management – NBN Co Networks other than the NBN Co Satellite Network | C184: Late Rescheduling (Co-ordinated Appointment) (Day) | D184: FTTB and FTTN and FTTC | E184: =IFERROR(INDEX('Compliance Summary'!$B$40:$C$79,MATCH($C184,'Compliance Summary'!$C$40:$C$79,0),1),"n/a") -> n/a | F184: 200 | G184: 200 | H184: 200 | I184: 200 | K184: n/a | L184: n/a | M184: n/a
B185: 8.7 Service management – NBN Co Networks other than the NBN Co Satellite Network | C185: Late Rescheduling (Co-ordinated Appointment) (Day) | D185: HFC | E185: =IFERROR(INDEX('Compliance Summary'!$B$40:$C$79,MATCH($C185,'Compliance Summary'!$C$40:$C$79,0),1),"n/a") -> n/a | F185: 200 | G185: 200 | H185: 200 | I185: 200 | K185: n/a | L185: n/a | M185: n/a
B186: 8.7 Service management – NBN Co Networks other than the NBN Co Satellite Network | C186: Late Rescheduling (Co-ordinated Appointment) (Night) | D186: Fibre and Wireless | E186: =IFERROR(INDEX('Compliance Summary'!$B$40:$C$79,MATCH($C186,'Compliance Summary'!$C$40:$C$79,0),1),"n/a") -> n/a | F186: 300 | G186: 300 | H186: 300 | I186: 300 | K186: n/a | L186: n/a | M186: n/a
B187: 8.7 Service management – NBN Co Networks other than the NBN Co Satellite Network | C187: Late Rescheduling (Co-ordinated Appointment) (Night) | D187: FTTB and FTTN and FTTC | E187: =IFERROR(INDEX('Compliance Summary'!$B$40:$C$79,MATCH($C187,'Compliance Summary'!$C$40:$C$79,0),1),"n/a") -> n/a | F187: 300 | G187: 300 | H187: 300 | I187: 300 | K187: n/a | L187: n/a | M187: n/a
B188: 8.7 Service management – NBN Co Networks other than the NBN Co Satellite Network | C188: Late Rescheduling (Co-ordinated Appointment) (Night) | D188: HFC | E188: =IFERROR(INDEX('Compliance Summary'!$B$40:$C$79,MATCH($C188,'Compliance Summary'!$C$40:$C$79,0),1),"n/a") -> n/a | F188: 300 | G188: 300 | H188: 300 | I188: 300 | K188: n/a | L188: n/a | M188: n/a
B189: 8.7 Service management – NBN Co Networks other than the NBN Co Satellite Network | C189: Restoration of an Ordered Product | D189: Fibre and Wireless | E189: =IFERROR(INDEX('Compliance Summary'!$B$40:$C$79,MATCH($C189,'Compliance Summary'!$C$40:$C$79,0),1),"n/a") -> n/a | F189: 50 | G189: 50 | H189: 50 | I189: 50 | K189: n/a | L189: n/a | M189: n/a
B190: 8.7 Service management – NBN Co Networks other than the NBN Co Satellite Network | C190: Restoration of an Ordered Product | D190: FTTB and FTTN and FTTC | E190: =IFERROR(INDEX('Compliance Summary'!$B$40:$C$79,MATCH($C190,'Compliance Summary'!$C$40:$C$79,0),1),"n/a") -> n/a | F190: 50 | G190: 50 | H190: 50 | I190: 50 | K190: n/a | L190: n/a | M190: n/a
B191: 8.7 Service management – NBN Co Networks other than the NBN Co Satellite Network | C191: Restoration of an Ordered Product | D191: HFC | E191: =IFERROR(INDEX('Compliance Summary'!$B$40:$C$79,MATCH($C191,'Compliance Summary'!$C$40:$C$79,0),1),"n/a") -> n/a | F191: 50 | G191: 50 | H191: 50 | I191: 50 | K191: n/a | L191: n/a | M191: n/a
B192: 8.7 Service management – NBN Co Networks other than the NBN Co Satellite Network | C192: Missed Appointment (After Hours Installation Appointment) | D192: Fibre | E192: =IFERROR(INDEX('Compliance Summary'!$B$40:$C$79,MATCH($C192,'Compliance Summary'!$C$40:$C$79,0),1),"n/a") -> n/a | F192: 150 | G192: 150 | H192: 150 | I192: 150 | K192: n/a | L192: n/a | M192: n/a
B193: 8.7 Service management – NBN Co Networks other than the NBN Co Satellite Network | C193: Missed Appointment (After Hours Installation Appointment) | D193: FTTB and FTTN and FTTC | E193: =IFERROR(INDEX('Compliance Summary'!$B$40:$C$79,MATCH($C193,'Compliance Summary'!$C$40:$C$79,0),1),"n/a") -> n/a | F193: 150 | G193: 150 | H193: 150 | I193: 150 | K193: n/a | L193: n/a | M193: n/a
B194: 8.7 Service management – NBN Co Networks other than the NBN Co Satellite Network | C194: Missed Appointment (Co-ordinated Appointment) (Day) | D194: Fibre | E194: =IFERROR(INDEX('Compliance Summary'!$B$40:$C$79,MATCH($C194,'Compliance Summary'!$C$40:$C$79,0),1),"n/a") -> n/a | F194: 200 | G194: 200 | H194: 200 | I194: 200 | K194: n/a | L194: n/a | M194: n/a
B195: 8.7 Service management – NBN Co Networks other than the NBN Co Satellite Network | C195: Missed Appointment (Co-ordinated Appointment) (Day) | D195: FTTB and FTTN and FTTC | E195: =IFERROR(INDEX('Compliance Summary'!$B$40:$C$79,MATCH($C195,'Compliance Summary'!$C$40:$C$79,0),1),"n/a") -> n/a | F195: 200 | G195: 200 | H195: 200 | I195: 200 | K195: n/a | L195: n/a | M195: n/a
B196: 8.7 Service management – NBN Co Networks other than the NBN Co Satellite Network | C196: Missed Appointment (Co-ordinated Appointment) (Day) | D196: HFC | E196: =IFERROR(INDEX('Compliance Summary'!$B$40:$C$79,MATCH($C196,'Compliance Summary'!$C$40:$C$79,0),1),"n/a") -> n/a | F196: 200 | G196: 200 | H196: 200 | I196: 200 | K196: n/a | L196: n/a | M196: n/a
B197: 8.7 Service management – NBN Co Networks other than the NBN Co Satellite Network | C197: Missed Appointment (Co-ordinated Appointment) (Night) | D197: Fibre | E197: =IFERROR(INDEX('Compliance Summary'!$B$40:$C$79,MATCH($C197,'Compliance Summary'!$C$40:$C$79,0),1),"n/a") -> n/a | F197: 300 | G197: 300 | H197: 300 | I197: 300 | K197: n/a | L197: n/a | M197: n/a
B198: 8.7 Service management – NBN Co Networks other than the NBN Co Satellite Network | C198: Missed Appointment (Co-ordinated Appointment) (Night) | D198: FTTB and FTTN and FTTC | E198: =IFERROR(INDEX('Compliance Summary'!$B$40:$C$79,MATCH($C198,'Compliance Summary'!$C$40:$C$79,0),1),"n/a") -> n/a | F198: 300 | G198: 300 | H198: 300 | I198: 300 | K198: n/a | L198: n/a | M198: n/a
B199: 8.7 Service management – NBN Co Networks other than the NBN Co Satellite Network | C199: Missed Appointment (Co-ordinated Appointment) (Night) | D199: HFC | E199: =IFERROR(INDEX('Compliance Summary'!$B$40:$C$79,MATCH($C199,'Compliance Summary'!$C$40:$C$79,0),1),"n/a") -> n/a | F199: 300 | G199: 300 | H199: 300 | I199: 300 | K199: n/a | L199: n/a | M199: n/a
B200: 8.7 Service management – NBN Co Networks other than the NBN Co Satellite Network | C200: Incorrect Callout | D200: FTTB and FTTN and FTTC | E200: =IFERROR(INDEX('Compliance Summary'!$B$40:$C$79,MATCH($C200,'Compliance Summary'!$C$40:$C$79,0),1),"n/a") -> n/a | F200: 75 | G200: 75 | H200: 75 | I200: 75 | K200: =IF($E200="n/a","n/a",IFERROR(G200/F200-1,0)) -> n/a | L200: =IF($E200="n/a","n/a",IFERROR(H200/G200-1,0)) -> n/a | M200: =IF($E200="n/a","n/a",IFERROR(I200/H200-1,0)) -> n/a
B201: 8.7 Service management – NBN Co Networks other than the NBN Co Satellite Network | C201: Incorrect Callout | D201: HFC | E201: =IFERROR(INDEX('Compliance Summary'!$B$40:$C$79,MATCH($C201,'Compliance Summary'!$C$40:$C$79,0),1),"n/a") -> n/a | F201: 75 | G201: 75 | H201: 75 | I201: 75 | K201: n/a | L201: n/a | M201: n/a
B202: 8.7 Service management – NBN Co Networks other than the NBN Co Satellite Network | C202: Voiceband Reinstatement | D202: FTTB and FTTN | E202: =IFERROR(INDEX('Compliance Summary'!$B$40:$C$79,MATCH($C202,'Compliance Summary'!$C$40:$C$79,0),1),"n/a") -> n/a | F202: 250 | G202: 250 | H202: 250 | I202: 250 | K202: n/a | L202: n/a | M202: n/a
B203: 8.7 Service management – NBN Co Networks other than the NBN Co Satellite Network | C203: Transition Reversal | D203: FTTB and FTTN and FTTC | E203: =IFERROR(INDEX('Compliance Summary'!$B$40:$C$79,MATCH($C203,'Compliance Summary'!$C$40:$C$79,0),1),"n/a") -> n/a | F203: 250 | G203: 250 | H203: 250 | I203: 250 | K203: n/a | L203: n/a | M203: n/a
B204: 8.8 Service management – Smart Places | C204: Smart Places - On Site Maintainance Call Out | D204: Fibre | E204: =IFERROR(INDEX('Compliance Summary'!$B$40:$C$79,MATCH($C204,'Compliance Summary'!$C$40:$C$79,0),1),"n/a") -> n/a | F204: 0 | G204: 0 | H204: 0 | I204: 0 | K204: n/a | L204: n/a | M204: n/a
... 372 more rows

Sheet Compliance Summary
A1: Cell colour meanings
B2: Input cell
B3: Calculation cell
B5: Compliance Summary
B7: Applicable Financial Year for Proposed Tariff List | C7: ='Price Control Inputs'!C7 -> FY25
B9: Weighted Average Price Control
B10: Note: For the first financial year (i.e. prices that are stated in the Tariff List), nbn has confirmed that the prices comply with the WAPC formula in clause 2D.2.2 of the SAU. For the second and third financial years in the Pricing Roadmap, nbn has assessed whether the prices are expected to comply with the WAPC formula based on forecasts of CPI and forecast quantities of WAPC Charge Components and Forecast Average Combined Charges for Bundled TC-4 Offers.
C13: =C7 -> FY25 | D13: ="FY"&RIGHT($C13,2)+1 -> FY26 | E13: ="FY"&RIGHT($C13,2)+2 -> FY27
B14: WAPC Allowance | C14: =_xlfn.XLOOKUP(C13,'Price Control Inputs'!$D$10:$F$10,'Price Control Inputs'!$D$20:$F$20,,0) -> 0.041 | D14: =_xlfn.XLOOKUP(D13,'Price Control Inputs'!$D$10:$F$10,'Price Control Inputs'!$D$20:$F$20,,0) -> 0.032 | E14: =_xlfn.XLOOKUP(E13,'Price Control Inputs'!$D$10:$F$10,'Price Control Inputs'!$D$20:$F$20,,0) -> 0.028
B16: Weighted Average Price Control (WAPC) | C16: =(SUMPRODUCT('Price and Quantity'!G$11:G$13,'Price and Quantity'!F$299:F$301) + SUMPRODUCT('Price and Quantity'!G$15:G$18,'Price and Quantity'!F$303:F$306) + SUMPRODUCT('Price and Quantity'!G$20:G$74,'Price and Quantity'!F$308:F$362) + SUMPRODUCT('Price and Quantity'!G$77:G$94,'Price and Quantity'!F$365:F$382) + SUMPRODUCT('Price and Quantity'!G$96:G$291,'Price and Quantity'!F$384:F$579)) / (SUMPRODUCT('Price and Quantity'!F$11:F$13,'Price and Quantity'!F$299:F$301) + SUMPRODUCT('Price and Quantity'!F$15:F$18,'Price and Quantity'!F$303:F$306) + SUMPRODUCT('Price and Quantity'!F$20:F$74,'Price and Quantity'!F$308:F$362) + SUMPRODUCT('Price and Quantity'!F$77:F$94,'Price and Quantity'!F$365:F$382) + SUMPRODUCT('Price and Quantity'!F$96:F$291,'Price and Quantity'!F$384:F$579))-1 -> 0.04080025099 | D16: =SUMPRODUCT('Price and Quantity'!H$11:H$289,'Price and Quantity'!G$299:G$577)/SUMPRODUCT('Price and Quantity'!G$11:G$289,'Price and Quantity'!G$299:G$577)-1 -> 0.03146059558 | E16: =SUMPRODUCT('Price and Quantity'!I$11:I$289,'Price and Quantity'!H$299:H$577)/SUMPRODUCT('Price and Quantity'!H$11:H$289,'Price and Quantity'!H$299:H$577)-1 -> 0.0270762779
C17: =IF(C16<=C14,"Compliant","Not Compliant") -> Compliant | D17: =IF(D16<=D14,"Compliant","Not Compliant") -> Compliant | E17: Compliant
B19: Individual Price Controls
B20: Note: For the first financial year (i.e. prices that are stated in the Tariff List), nbn has confirmed that the prices comply with the Individual Price Controls. For the second and third financial years in the Pricing Roadmap, nbn has assessed whether the prices are expected to comply with the Individual Price Controls based on forecasts of CPI and Forecast Average Combined Charges for Bundled TC-4 Offers.
C22: Price Increase Limit
B23: Individual Price Control Category | C23: =C13 -> FY25 | D23: FY26 | E23: FY27
B24: Entry level TC-4 | C24: =HLOOKUP('Compliance Summary'!C13,'Price Control Inputs'!$C$10:$F$20,4,0) -> 0.041 | D24: =HLOOKUP('Compliance Summary'!D13,'Price Control Inputs'!$C$10:$F$20,4,0) -> 0.032 | E24: =HLOOKUP('Compliance Summary'!E13,'Price Control Inputs'!$C$10:$F$20,4,0) -> 0.028
B25: Other fixed line and fixed wireless TC-4 | C25: =MAX(C24,5%) -> 0.05 | D25: =MAX(D24,5%) -> 0.05 | E25: 0.05
B26: Satellite AVC TC-4 | C26: =C24 -> 0.041 | D26: =D24 -> 0.032 | E26: 0.028
B27: Satellite CVC TC-4 | C27: 0 | D27: 0 | E27: 0
C29: Maximum Tariff Change (within each group)
B30: Individual Price Control Category | C30: =C13 -> FY25 | D30: =D13 -> FY26 | E30: =E13 -> FY27
B31: Entry level TC-4 | C31: =_xlfn.MAXIFS('Price and Quantity'!K$11:K$291,'Price and Quantity'!$E$11:$E$291,'Compliance Summary'!$B31) -> 0.04079110012 | D31: =_xlfn.MAXIFS('Price and Quantity'!L$11:L$291,'Price and Quantity'!$E$11:$E$291,'Compliance Summary'!$B31) -> 0.0317695962 | E31: =_xlfn.MAXIFS('Price and Quantity'!M$11:M$291,'Price and Quantity'!$E$11:$E$291,'Compliance Summary'!$B31) -> 0.02762589928
B32: Other fixed line and fixed wireless TC-4 | C32: =_xlfn.MAXIFS('Price and Quantity'!K$11:K$291,'Price and Quantity'!$E$11:$E$291,'Compliance Summary'!$B32) -> 0.04973992198 | D32: =_xlfn.MAXIFS('Price and Quantity'!L$11:L$291,'Price and Quantity'!$E$11:$E$291,'Compliance Summary'!$B32) -> 0.04955094456 | E32: =_xlfn.MAXIFS('Price and Quantity'!M$11:M$291,'Price and Quantity'!$E$11:$E$291,'Compliance Summary'!$B32) -> 0.04986721747
B33: Satellite AVC TC-4 | C33: =_xlfn.MAXIFS('Price and Quantity'!K$11:K$291,'Price and Quantity'!$E$11:$E$291,'Compliance Summary'!$B33) -> 0 | D33: =_xlfn.MAXIFS('Price and Quantity'!L$11:L$291,'Price and Quantity'!$E$11:$E$291,'Compliance Summary'!$B33) -> 0 | E33: =_xlfn.MAXIFS('Price and Quantity'!M$11:M$291,'Price and Quantity'!$E$11:$E$291,'Compliance Summary'!$B33) -> 0
B34: Satellite CVC TC-4 | C34: =_xlfn.MAXIFS('Price and Quantity'!K$11:K$291,'Price and Quantity'!$E$11:$E$291,'Compliance Summary'!$B34) -> 0 | D34: =_xlfn.MAXIFS('Price and Quantity'!L$11:L$291,'Price and Quantity'!$E$11:$E$291,'Compliance Summary'!$B34) -> 0 | E34: =_xlfn.MAXIFS('Price and Quantity'!M$11:M$291,'Price and Quantity'!$E$11:$E$291,'Compliance Summary'!$B34) -> 0
B38: Individual Price Control Groups | C38: WAPC Charge Components | D38: NBN Co Network | E38: =C13 -> FY25 | F38: FY26 | G38: FY27
B39: Entry level TC-4 | E39: =IF($C39="",IF(VLOOKUP($B39,$B$31:$E$34,MATCH(E$38,$B$23:$E$23,0),0)<=VLOOKUP($B39,$B$24:$E$27,MATCH(E$38,$B$23:$E$23,0),0),"Compliant","Not Compliant"),IF(INDEX('Price and Quantity'!$C$11:$M$291,MATCH($C39,'Price and Quantity'!$C$11:$C$291,0),MATCH(E$38,'Price and Quantity'!$C$10:$M$10,0))<=VLOOKUP($B39,$B$24:$E$27,MATCH(E$38,$B$23:$E$23,0),0),"Compliant","Not Compliant")) -> Compliant | F39: =IF($C39="",IF(VLOOKUP($B39,$B$31:$E$34,MATCH(F$38,$B$23:$E$23,0),0)<=VLOOKUP($B39,$B$24:$E$27,MATCH(F$38,$B$23:$E$23,0),0),"Compliant","Not Compliant"),IF(INDEX('Price and Quantity'!$C$11:$M$291,MATCH($C39,'Price and Quantity'!$C$11:$C$291,0),MATCH(F$38,'Price and Quantity'!$C$10:$M$10,0))<=VLOOKUP($B39,$B$24:$E$27,MATCH(F$38,$B$23:$E$23,0),0),"Compliant","Not Compliant")) -> Compliant | G39: =IF($C39="",IF(VLOOKUP($B39,$B$31:$E$34,MATCH(G$38,$B$23:$E$23,0),0)<=VLOOKUP($B39,$B$24:$E$27,MATCH(G$38,$B$23:$E$23,0),0),"Compliant","Not Compliant"),IF(INDEX('Price and Quantity'!$C$11:$M$291,MATCH($C39,'Price and Quantity'!$C$11:$C$291,0),MATCH(G$38,'Price and Quantity'!$C$10:$M$10,0))<=VLOOKUP($B39,$B$24:$E$27,MATCH(G$38,$B$23:$E$23,0),0),"Compliant","Not Compliant")) -> Compliant
B40: Entry level TC-4 | C40: AVC TC-4 25/5 Mbps | D40: Fibre, FTTB, FTTN,FTTC,HFC and Wireless | E40: =IF($C40="",IF(VLOOKUP($B40,$B$31:$E$34,MATCH(E$38,$B$23:$E$23,0),0)<=VLOOKUP($B40,$B$24:$E$27,MATCH(E$38,$B$23:$E$23,0),0),"Compliant","Not Compliant"),IF(INDEX('Price and Quantity'!$C$11:$M$291,MATCH($C40,'Price and Quantity'!$C$11:$C$291,0),MATCH(E$38,'Price and Quantity'!$C$10:$M$10,0))<=VLOOKUP($B40,$B$24:$E$27,MATCH(E$38,$B$23:$E$23,0),0),"Compliant","Not Compliant")) -> Compliant | F40: =IF($C40="",IF(VLOOKUP($B40,$B$31:$E$34,MATCH(F$38,$B$23:$E$23,0),0)<=VLOOKUP($B40,$B$24:$E$27,MATCH(F$38,$B$23:$E$23,0),0),"Compliant","Not Compliant"),IF(INDEX('Price and Quantity'!$C$11:$M$291,MATCH($C40,'Price and Quantity'!$C$11:$C$291,0),MATCH(F$38,'Price and Quantity'!$C$10:$M$10,0))<=VLOOKUP($B40,$B$24:$E$27,MATCH(F$38,$B$23:$E$23,0),0),"Compliant","Not Compliant")) -> Compliant | G40: =IF($C40="",IF(VLOOKUP($B40,$B$31:$E$34,MATCH(G$38,$B$23:$E$23,0),0)<=VLOOKUP($B40,$B$24:$E$27,MATCH(G$38,$B$23:$E$23,0),0),"Compliant","Not Compliant"),IF(INDEX('Price and Quantity'!$C$11:$M$291,MATCH($C40,'Price and Quantity'!$C$11:$C$291,0),MATCH(G$38,'Price and Quantity'!$C$10:$M$10,0))<=VLOOKUP($B40,$B$24:$E$27,MATCH(G$38,$B$23:$E$23,0),0),"Compliant","Not Compliant")) -> Compliant
B42: Other fixed line and fixed wireless TC-4 | E42: =IF($C42="",IF(VLOOKUP($B42,$B$31:$E$34,MATCH(E$38,$B$23:$E$23,0),0)<=VLOOKUP($B42,$B$24:$E$27,MATCH(E$38,$B$23:$E$23,0),0),"Compliant","Not Compliant"),IF(INDEX('Price and Quantity'!$C$11:$M$291,MATCH($C42,'Price and Quantity'!$C$11:$C$291,0),MATCH(E$38,'Price and Quantity'!$C$10:$M$10,0))<=VLOOKUP($B42,$B$24:$E$27,MATCH(E$38,$B$23:$E$23,0),0),"Compliant","Not Compliant")) -> Compliant | F42: =IF($C42="",IF(VLOOKUP($B42,$B$31:$E$34,MATCH(F$38,$B$23:$E$23,0),0)<=VLOOKUP($B42,$B$24:$E$27,MATCH(F$38,$B$23:$E$23,0),0),"Compliant","Not Compliant"),IF(INDEX('Price and Quantity'!$C$11:$M$291,MATCH($C42,'Price and Quantity'!$C$11:$C$291,0),MATCH(F$38,'Price and Quantity'!$C$10:$M$10,0))<=VLOOKUP($B42,$B$24:$E$27,MATCH(F$38,$B$23:$E$23,0),0),"Compliant","Not Compliant")) -> Compliant | G42: =IF($C42="",IF(VLOOKUP($B42,$B$31:$E$34,MATCH(G$38,$B$23:$E$23,0),0)<=VLOOKUP($B42,$B$24:$E$27,MATCH(G$38,$B$23:$E$23,0),0),"Compliant","Not Compliant"),IF(INDEX('Price and Quantity'!$C$11:$M$291,MATCH($C42,'Price and Quantity'!$C$11:$C$291,0),MATCH(G$38,'Price and Quantity'!$C$10:$M$10,0))<=VLOOKUP($B42,$B$24:$E$27,MATCH(G$38,$B$23:$E$23,0),0),"Compliant","Not Compliant")) -> Compliant
B43: Other fixed line and fixed wireless TC-4 | C43: AVC TC-4 25-100/5-20 Mbps | D43: FTTB and FTTN | E43: =IF($C43="",IF(VLOOKUP($B43,$B$31:$E$34,MATCH(E$38,$B$23:$E$23,0),0)<=VLOOKUP($B43,$B$24:$E$27,MATCH(E$38,$B$23:$E$23,0),0),"Compliant","Not Compliant"),IF(INDEX('Price and Quantity'!$C$11:$M$291,MATCH($C43,'Price and Quantity'!$C$11:$C$291,0),MATCH(E$38,'Price and Quantity'!$C$10:$M$10,0))<=VLOOKUP($B43,$B$24:$E$27,MATCH(E$38,$B$23:$E$23,0),0),"Compliant","Not Compliant")) -> Compliant | F43: =IF($C43="",IF(VLOOKUP($B43,$B$31:$E$34,MATCH(F$38,$B$23:$E$23,0),0)<=VLOOKUP($B43,$B$24:$E$27,MATCH(F$38,$B$23:$E$23,0),0),"Compliant","Not Compliant"),IF(INDEX('Price and Quantity'!$C$11:$M$291,MATCH($C43,'Price and Quantity'!$C$11:$C$291,0),MATCH(F$38,'Price and Quantity'!$C$10:$M$10,0))<=VLOOKUP($B43,$B$24:$E$27,MATCH(F$38,$B$23:$E$23,0),0),"Compliant","Not Compliant")) -> Compliant | G43: =IF($C43="",IF(VLOOKUP($B43,$B$31:$E$34,MATCH(G$38,$B$23:$E$23,0),0)<=VLOOKUP($B43,$B$24:$E$27,MATCH(G$38,$B$23:$E$23,0),0),"Compliant","Not Compliant"),IF(INDEX('Price and Quantity'!$C$11:$M$291,MATCH($C43,'Price and Quantity'!$C$11:$C$291,0),MATCH(G$38,'Price and Quantity'!$C$10:$M$10,0))<=VLOOKUP($B43,$B$24:$E$27,MATCH(G$38,$B$23:$E$23,0),0),"Compliant","Not Compliant")) -> Compliant
B44: Other fixed line and fixed wireless TC-4 | C44: AVC TC-4 50-100/20 Mbps | D44: FTTC | E44: =IF($C44="",IF(VLOOKUP($B44,$B$31:$E$34,MATCH(E$38,$B$23:$E$23,0),0)<=VLOOKUP($B44,$B$24:$E$27,MATCH(E$38,$B$23:$E$23,0),0),"Compliant","Not Compliant"),IF(INDEX('Price and Quantity'!$C$11:$M$291,MATCH($C44,'Price and Quantity'!$C$11:$C$291,0),MATCH(E$38,'Price and Quantity'!$C$10:$M$10,0))<=VLOOKUP($B44,$B$24:$E$27,MATCH(E$38,$B$23:$E$23,0),0),"Compliant","Not Compliant")) -> Compliant | F44: =IF($C44="",IF(VLOOKUP($B44,$B$31:$E$34,MATCH(F$38,$B$23:$E$23,0),0)<=VLOOKUP($B44,$B$24:$E$27,MATCH(F$38,$B$23:$E$23,0),0),"Compliant","Not Compliant"),IF(INDEX('Price and Quantity'!$C$11:$M$291,MATCH($C44,'Price and Quantity'!$C$11:$C$291,0),MATCH(F$38,'Price and Quantity'!$C$10:$M$10,0))<=VLOOKUP($B44,$B$24:$E$27,MATCH(F$38,$B$23:$E$23,0),0),"Compliant","Not Compliant")) -> Compliant | G44: =IF($C44="",IF(VLOOKUP($B44,$B$31:$E$34,MATCH(G$38,$B$23:$E$23,0),0)<=VLOOKUP($B44,$B$24:$E$27,MATCH(G$38,$B$23:$E$23,0),0),"Compliant","Not Compliant"),IF(INDEX('Price and Quantity'!$C$11:$M$291,MATCH($C44,'Price and Quantity'!$C$11:$C$291,0),MATCH(G$38,'Price and Quantity'!$C$10:$M$10,0))<=VLOOKUP($B44,$B$24:$E$27,MATCH(G$38,$B$23:$E$23,0),0),"Compliant","Not Compliant")) -> Compliant
B45: Other fixed line and fixed wireless TC-4 | C45: AVC TC-4 200-250/8-20 Mbps | D45: Wireless | E45: =IF($C45="",IF(VLOOKUP($B45,$B$31:$E$34,MATCH(E$38,$B$23:$E$23,0),0)<=VLOOKUP($B45,$B$24:$E$27,MATCH(E$38,$B$23:$E$23,0),0),"Compliant","Not Compliant"),IF(INDEX('Price and Quantity'!$C$11:$M$291,MATCH($C45,'Price and Quantity'!$C$11:$C$291,0),MATCH(E$38,'Price and Quantity'!$C$10:$M$10,0))<=VLOOKUP($B45,$B$24:$E$27,MATCH(E$38,$B$23:$E$23,0),0),"Compliant","Not Compliant")) -> Compliant | F45: =IF($C45="",IF(VLOOKUP($B45,$B$31:$E$34,MATCH(F$38,$B$23:$E$23,0),0)<=VLOOKUP($B45,$B$24:$E$27,MATCH(F$38,$B$23:$E$23,0),0),"Compliant","Not Compliant"),IF(INDEX('Price and Quantity'!$C$11:$M$291,MATCH($C45,'Price and Quantity'!$C$11:$C$291,0),MATCH(F$38,'Price and Quantity'!$C$10:$M$10,0))<=VLOOKUP($B45,$B$24:$E$27,MATCH(F$38,$B$23:$E$23,0),0),"Compliant","Not Compliant")) -> Compliant | G45: =IF($C45="",IF(VLOOKUP($B45,$B$31:$E$34,MATCH(G$38,$B$23:$E$23,0),0)<=VLOOKUP($B45,$B$24:$E$27,MATCH(G$38,$B$23:$E$23,0),0),"Compliant","Not Compliant"),IF(INDEX('Price and Quantity'!$C$11:$M$291,MATCH($C45,'Price and Quantity'!$C$11:$C$291,0),MATCH(G$38,'Price and Quantity'!$C$10:$M$10,0))<=VLOOKUP($B45,$B$24:$E$27,MATCH(G$38,$B$23:$E$23,0),0),"Compliant","Not Compliant")) -> Compliant
B46: Other fixed line and fixed wireless TC-4 | C46: AVC TC-4 100/20 Mbps | D46: Fibre and HFC | E46: =IF($C46="",IF(VLOOKUP($B46,$B$31:$E$34,MATCH(E$38,$B$23:$E$23,0),0)<=VLOOKUP($B46,$B$24:$E$27,MATCH(E$38,$B$23:$E$23,0),0),"Compliant","Not Compliant"),IF(INDEX('Price and Quantity'!$C$11:$M$291,MATCH($C46,'Price and Quantity'!$C$11:$C$291,0),MATCH(E$38,'Price and Quantity'!$C$10:$M$10,0))<=VLOOKUP($B46,$B$24:$E$27,MATCH(E$38,$B$23:$E$23,0),0),"Compliant","Not Compliant")) -> Compliant | F46: =IF($C46="",IF(VLOOKUP($B46,$B$31:$E$34,MATCH(F$38,$B$23:$E$23,0),0)<=VLOOKUP($B46,$B$24:$E$27,MATCH(F$38,$B$23:$E$23,0),0),"Compliant","Not Compliant"),IF(INDEX('Price and Quantity'!$C$11:$M$291,MATCH($C46,'Price and Quantity'!$C$11:$C$291,0),MATCH(F$38,'Price and Quantity'!$C$10:$M$10,0))<=VLOOKUP($B46,$B$24:$E$27,MATCH(F$38,$B$23:$E$23,0),0),"Compliant","Not Compliant")) -> Compliant | G46: =IF($C46="",IF(VLOOKUP($B46,$B$31:$E$34,MATCH(G$38,$B$23:$E$23,0),0)<=VLOOKUP($B46,$B$24:$E$27,MATCH(G$38,$B$23:$E$23,0),0),"Compliant","Not Compliant"),IF(INDEX('Price and Quantity'!$C$11:$M$291,MATCH($C46,'Price and Quantity'!$C$11:$C$291,0),MATCH(G$38,'Price and Quantity'!$C$10:$M$10,0))<=VLOOKUP($B46,$B$24:$E$27,MATCH(G$38,$B$23:$E$23,0),0),"Compliant","Not Compliant")) -> Compliant
B47: Other fixed line and fixed wireless TC-4 | C47: AVC TC-4 25-100/5-40 Mbps | D47: FTTB and FTTN | E47: =IF($C47="",IF(VLOOKUP($B47,$B$31:$E$34,MATCH(E$38,$B$23:$E$23,0),0)<=VLOOKUP($B47,$B$24:$E$27,MATCH(E$38,$B$23:$E$23,0),0),"Compliant","Not Compliant"),IF(INDEX('Price and Quantity'!$C$11:$M$291,MATCH($C47,'Price and Quantity'!$C$11:$C$291,0),MATCH(E$38,'Price and Quantity'!$C$10:$M$10,0))<=VLOOKUP($B47,$B$24:$E$27,MATCH(E$38,$B$23:$E$23,0),0),"Compliant","Not Compliant")) -> Compliant | F47: =IF($C47="",IF(VLOOKUP($B47,$B$31:$E$34,MATCH(F$38,$B$23:$E$23,0),0)<=VLOOKUP($B47,$B$24:$E$27,MATCH(F$38,$B$23:$E$23,0),0),"Compliant","Not Compliant"),IF(INDEX('Price and Quantity'!$C$11:$M$291,MATCH($C47,'Price and Quantity'!$C$11:$C$291,0),MATCH(F$38,'Price and Quantity'!$C$10:$M$10,0))<=VLOOKUP($B47,$B$24:$E$27,MATCH(F$38,$B$23:$E$23,0),0),"Compliant","Not Compliant")) -> Compliant | G47: =IF($C47="",IF(VLOOKUP($B47,$B$31:$E$34,MATCH(G$38,$B$23:$E$23,0),0)<=VLOOKUP($B47,$B$24:$E$27,MATCH(G$38,$B$23:$E$23,0),0),"Compliant","Not Compliant"),IF(INDEX('Price and Quantity'!$C$11:$M$291,MATCH($C47,'Price and Quantity'!$C$11:$C$291,0),MATCH(G$38,'Price and Quantity'!$C$10:$M$10,0))<=VLOOKUP($B47,$B$24:$E$27,MATCH(G$38,$B$23:$E$23,0),0),"Compliant","Not Compliant")) -> Compliant
B48: Other fixed line and fixed wireless TC-4 | C48: AVC TC-4 50-100/20-40 Mbps | D48: FTTC | E48: =IF($C48="",IF(VLOOKUP($B48,$B$31:$E$34,MATCH(E$38,$B$23:$E$23,0),0)<=VLOOKUP($B48,$B$24:$E$27,MATCH(E$38,$B$23:$E$23,0),0),"Compliant","Not Compliant"),IF(INDEX('Price and Quantity'!$C$11:$M$291,MATCH($C48,'Price and Quantity'!$C$11:$C$291,0),MATCH(E$38,'Price and Quantity'!$C$10:$M$10,0))<=VLOOKUP($B48,$B$24:$E$27,MATCH(E$38,$B$23:$E$23,0),0),"Compliant","Not Compliant")) -> Compliant | F48: =IF($C48="",IF(VLOOKUP($B48,$B$31:$E$34,MATCH(F$38,$B$23:$E$23,0),0)<=VLOOKUP($B48,$B$24:$E$27,MATCH(F$38,$B$23:$E$23,0),0),"Compliant","Not Compliant"),IF(INDEX('Price and Quantity'!$C$11:$M$291,MATCH($C48,'Price and Quantity'!$C$11:$C$291,0),MATCH(F$38,'Price and Quantity'!$C$10:$M$10,0))<=VLOOKUP($B48,$B$24:$E$27,MATCH(F$38,$B$23:$E$23,0),0),"Compliant","Not Compliant")) -> Compliant | G48: =IF($C48="",IF(VLOOKUP($B48,$B$31:$E$34,MATCH(G$38,$B$23:$E$23,0),0)<=VLOOKUP($B48,$B$24:$E$27,MATCH(G$38,$B$23:$E$23,0),0),"Compliant","Not Compliant"),IF(INDEX('Price and Quantity'!$C$11:$M$291,MATCH($C48,'Price and Quantity'!$C$11:$C$291,0),MATCH(G$38,'Price and Quantity'!$C$10:$M$10,0))<=VLOOKUP($B48,$B$24:$E$27,MATCH(G$38,$B$23:$E$23,0),0),"Compliant","Not Compliant")) -> Compliant
B49: Other fixed line and fixed wireless TC-4 | C49: AVC TC-4 100/40 Mbps | D49: Fibre and HFC | E49: =IF($C49="",IF(VLOOKUP($B49,$B$31:$E$34,MATCH(E$38,$B$23:$E$23,0),0)<=VLOOKUP($B49,$B$24:$E$27,MATCH(E$38,$B$23:$E$23,0),0),"Compliant","Not Compliant"),IF(INDEX('Price and Quantity'!$C$11:$M$291,MATCH($C49,'Price and Quantity'!$C$11:$C$291,0),MATCH(E$38,'Price and Quantity'!$C$10:$M$10,0))<=VLOOKUP($B49,$B$24:$E$27,MATCH(E$38,$B$23:$E$23,0),0),"Compliant","Not Compliant")) -> Compliant | F49: =IF($C49="",IF(VLOOKUP($B49,$B$31:$E$34,MATCH(F$38,$B$23:$E$23,0),0)<=VLOOKUP($B49,$B$24:$E$27,MATCH(F$38,$B$23:$E$23,0),0),"Compliant","Not Compliant"),IF(INDEX('Price and Quantity'!$C$11:$M$291,MATCH($C49,'Price and Quantity'!$C$11:$C$291,0),MATCH(F$38,'Price and Quantity'!$C$10:$M$10,0))<=VLOOKUP($B49,$B$24:$E$27,MATCH(F$38,$B$23:$E$23,0),0),"Compliant","Not Compliant")) -> Compliant | G49: =IF($C49="",IF(VLOOKUP($B49,$B$31:$E$34,MATCH(G$38,$B$23:$E$23,0),0)<=VLOOKUP($B49,$B$24:$E$27,MATCH(G$38,$B$23:$E$23,0),0),"Compliant","Not Compliant"),IF(INDEX('Price and Quantity'!$C$11:$M$291,MATCH($C49,'Price and Quantity'!$C$11:$C$291,0),MATCH(G$38,'Price and Quantity'!$C$10:$M$10,0))<=VLOOKUP($B49,$B$24:$E$27,MATCH(G$38,$B$23:$E$23,0),0),"Compliant","Not Compliant")) -> Compliant
B50: Other fixed line and fixed wireless TC-4 | C50: AVC TC-4 400/10-40 Mbps | D50: Wireless | E50: =IF($C50="",IF(VLOOKUP($B50,$B$31:$E$34,MATCH(E$38,$B$23:$E$23,0),0)<=VLOOKUP($B50,$B$24:$E$27,MATCH(E$38,$B$23:$E$23,0),0),"Compliant","Not Compliant"),IF(INDEX('Price and Quantity'!$C$11:$M$291,MATCH($C50,'Price and Quantity'!$C$11:$C$291,0),MATCH(E$38,'Price and Quantity'!$C$10:$M$10,0))<=VLOOKUP($B50,$B$24:$E$27,MATCH(E$38,$B$23:$E$23,0),0),"Compliant","Not Compliant")) -> Compliant | F50: =IF($C50="",IF(VLOOKUP($B50,$B$31:$E$34,MATCH(F$38,$B$23:$E$23,0),0)<=VLOOKUP($B50,$B$24:$E$27,MATCH(F$38,$B$23:$E$23,0),0),"Compliant","Not Compliant"),IF(INDEX('Price and Quantity'!$C$11:$M$291,MATCH($C50,'Price and Quantity'!$C$11:$C$291,0),MATCH(F$38,'Price and Quantity'!$C$10:$M$10,0))<=VLOOKUP($B50,$B$24:$E$27,MATCH(F$38,$B$23:$E$23,0),0),"Compliant","Not Compliant")) -> Compliant | G50: =IF($C50="",IF(VLOOKUP($B50,$B$31:$E$34,MATCH(G$38,$B$23:$E$23,0),0)<=VLOOKUP($B50,$B$24:$E$27,MATCH(G$38,$B$23:$E$23,0),0),"Compliant","Not Compliant"),IF(INDEX('Price and Quantity'!$C$11:$M$291,MATCH($C50,'Price and Quantity'!$C$11:$C$291,0),MATCH(G$38,'Price and Quantity'!$C$10:$M$10,0))<=VLOOKUP($B50,$B$24:$E$27,MATCH(G$38,$B$23:$E$23,0),0),"Compliant","Not Compliant")) -> Compliant
B51: Other fixed line and fixed wireless TC-4 | C51: AVC TC-4 250/25 Mbps | D51: Fibre and HFC | E51: =IF($C51="",IF(VLOOKUP($B51,$B$31:$E$34,MATCH(E$38,$B$23:$E$23,0),0)<=VLOOKUP($B51,$B$24:$E$27,MATCH(E$38,$B$23:$E$23,0),0),"Compliant","Not Compliant"),IF(INDEX('Price and Quantity'!$C$11:$M$291,MATCH($C51,'Price and Quantity'!$C$11:$C$291,0),MATCH(E$38,'Price and Quantity'!$C$10:$M$10,0))<=VLOOKUP($B51,$B$24:$E$27,MATCH(E$38,$B$23:$E$23,0),0),"Compliant","Not Compliant")) -> Compliant | F51: =IF($C51="",IF(VLOOKUP($B51,$B$31:$E$34,MATCH(F$38,$B$23:$E$23,0),0)<=VLOOKUP($B51,$B$24:$E$27,MATCH(F$38,$B$23:$E$23,0),0),"Compliant","Not Compliant"),IF(INDEX('Price and Quantity'!$C$11:$M$291,MATCH($C51,'Price and Quantity'!$C$11:$C$291,0),MATCH(F$38,'Price and Quantity'!$C$10:$M$10,0))<=VLOOKUP($B51,$B$24:$E$27,MATCH(F$38,$B$23:$E$23,0),0),"Compliant","Not Compliant")) -> Compliant | G51: =IF($C51="",IF(VLOOKUP($B51,$B$31:$E$34,MATCH(G$38,$B$23:$E$23,0),0)<=VLOOKUP($B51,$B$24:$E$27,MATCH(G$38,$B$23:$E$23,0),0),"Compliant","Not Compliant"),IF(INDEX('Price and Quantity'!$C$11:$M$291,MATCH($C51,'Price and Quantity'!$C$11:$C$291,0),MATCH(G$38,'Price and Quantity'!$C$10:$M$10,0))<=VLOOKUP($B51,$B$24:$E$27,MATCH(G$38,$B$23:$E$23,0),0),"Compliant","Not Compliant")) -> Compliant
B52: Other fixed line and fixed wireless TC-4 | C52: AVC TC-4 250/100 Mbps | D52: Fibre | E52: =IF($C52="",IF(VLOOKUP($B52,$B$31:$E$34,MATCH(E$38,$B$23:$E$23,0),0)<=VLOOKUP($B52,$B$24:$E$27,MATCH(E$38,$B$23:$E$23,0),0),"Compliant","Not Compliant"),IF(INDEX('Price and Quantity'!$C$11:$M$291,MATCH($C52,'Price and Quantity'!$C$11:$C$291,0),MATCH(E$38,'Price and Quantity'!$C$10:$M$10,0))<=VLOOKUP($B52,$B$24:$E$27,MATCH(E$38,$B$23:$E$23,0),0),"Compliant","Not Compliant")) -> Compliant | F52: =IF($C52="",IF(VLOOKUP($B52,$B$31:$E$34,MATCH(F$38,$B$23:$E$23,0),0)<=VLOOKUP($B52,$B$24:$E$27,MATCH(F$38,$B$23:$E$23,0),0),"Compliant","Not Compliant"),IF(INDEX('Price and Quantity'!$C$11:$M$291,MATCH($C52,'Price and Quantity'!$C$11:$C$291,0),MATCH(F$38,'Price and Quantity'!$C$10:$M$10,0))<=VLOOKUP($B52,$B$24:$E$27,MATCH(F$38,$B$23:$E$23,0),0),"Compliant","Not Compliant")) -> Compliant | G52: =IF($C52="",IF(VLOOKUP($B52,$B$31:$E$34,MATCH(G$38,$B$23:$E$23,0),0)<=VLOOKUP($B52,$B$24:$E$27,MATCH(G$38,$B$23:$E$23,0),0),"Compliant","Not Compliant"),IF(INDEX('Price and Quantity'!$C$11:$M$291,MATCH($C52,'Price and Quantity'!$C$11:$C$291,0),MATCH(G$38,'Price and Quantity'!$C$10:$M$10,0))<=VLOOKUP($B52,$B$24:$E$27,MATCH(G$38,$B$23:$E$23,0),0),"Compliant","Not Compliant")) -> Compliant
B53: Other fixed line and fixed wireless TC-4 | C53: AVC TC-4 500/200 Mbps | D53: Fibre | E53: =IF($C53="",IF(VLOOKUP($B53,$B$31:$E$34,MATCH(E$38,$B$23:$E$23,0),0)<=VLOOKUP($B53,$B$24:$E$27,MATCH(E$38,$B$23:$E$23,0),0),"Compliant","Not Compliant"),IF(INDEX('Price and Quantity'!$C$11:$M$291,MATCH($C53,'Price and Quantity'!$C$11:$C$291,0),MATCH(E$38,'Price and Quantity'!$C$10:$M$10,0))<=VLOOKUP($B53,$B$24:$E$27,MATCH(E$38,$B$23:$E$23,0),0),"Compliant","Not Compliant")) -> Compliant | F53: =IF($C53="",IF(VLOOKUP($B53,$B$31:$E$34,MATCH(F$38,$B$23:$E$23,0),0)<=VLOOKUP($B53,$B$24:$E$27,MATCH(F$38,$B$23:$E$23,0),0),"Compliant","Not Compliant"),IF(INDEX('Price and Quantity'!$C$11:$M$291,MATCH($C53,'Price and Quantity'!$C$11:$C$291,0),MATCH(F$38,'Price and Quantity'!$C$10:$M$10,0))<=VLOOKUP($B53,$B$24:$E$27,MATCH(F$38,$B$23:$E$23,0),0),"Compliant","Not Compliant")) -> Compliant | G53: =IF($C53="",IF(VLOOKUP($B53,$B$31:$E$34,MATCH(G$38,$B$23:$E$23,0),0)<=VLOOKUP($B53,$B$24:$E$27,MATCH(G$38,$B$23:$E$23,0),0),"Compliant","Not Compliant"),IF(INDEX('Price and Quantity'!$C$11:$M$291,MATCH($C53,'Price and Quantity'!$C$11:$C$291,0),MATCH(G$38,'Price and Quantity'!$C$10:$M$10,0))<=VLOOKUP($B53,$B$24:$E$27,MATCH(G$38,$B$23:$E$23,0),0),"Compliant","Not Compliant")) -> Compliant
B54: Other fixed line and fixed wireless TC-4 | C54: AVC TC-4 1000/50 Mbps | D54: Fibre and HFC | E54: =IF($C54="",IF(VLOOKUP($B54,$B$31:$E$34,MATCH(E$38,$B$23:$E$23,0),0)<=VLOOKUP($B54,$B$24:$E$27,MATCH(E$38,$B$23:$E$23,0),0),"Compliant","Not Compliant"),IF(INDEX('Price and Quantity'!$C$11:$M$291,MATCH($C54,'Price and Quantity'!$C$11:$C$291,0),MATCH(E$38,'Price and Quantity'!$C$10:$M$10,0))<=VLOOKUP($B54,$B$24:$E$27,MATCH(E$38,$B$23:$E$23,0),0),"Compliant","Not Compliant")) -> Compliant | F54: =IF($C54="",IF(VLOOKUP($B54,$B$31:$E$34,MATCH(F$38,$B$23:$E$23,0),0)<=VLOOKUP($B54,$B$24:$E$27,MATCH(F$38,$B$23:$E$23,0),0),"Compliant","Not Compliant"),IF(INDEX('Price and Quantity'!$C$11:$M$291,MATCH($C54,'Price and Quantity'!$C$11:$C$291,0),MATCH(F$38,'Price and Quantity'!$C$10:$M$10,0))<=VLOOKUP($B54,$B$24:$E$27,MATCH(F$38,$B$23:$E$23,0),0),"Compliant","Not Compliant")) -> Compliant | G54: =IF($C54="",IF(VLOOKUP($B54,$B$31:$E$34,MATCH(G$38,$B$23:$E$23,0),0)<=VLOOKUP($B54,$B$24:$E$27,MATCH(G$38,$B$23:$E$23,0),0),"Compliant","Not Compliant"),IF(INDEX('Price and Quantity'!$C$11:$M$291,MATCH($C54,'Price and Quantity'!$C$11:$C$291,0),MATCH(G$38,'Price and Quantity'!$C$10:$M$10,0))<=VLOOKUP($B54,$B$24:$E$27,MATCH(G$38,$B$23:$E$23,0),0),"Compliant","Not Compliant")) -> Compliant
B55: Other fixed line and fixed wireless TC-4 | C55: AVC TC-4 1000/400 Mbps | D55: Fibre | E55: =IF($C55="",IF(VLOOKUP($B55,$B$31:$E$34,MATCH(E$38,$B$23:$E$23,0),0)<=VLOOKUP($B55,$B$24:$E$27,MATCH(E$38,$B$23:$E$23,0),0),"Compliant","Not Compliant"),IF(INDEX('Price and Quantity'!$C$11:$M$291,MATCH($C55,'Price and Quantity'!$C$11:$C$291,0),MATCH(E$38,'Price and Quantity'!$C$10:$M$10,0))<=VLOOKUP($B55,$B$24:$E$27,MATCH(E$38,$B$23:$E$23,0),0),"Compliant","Not Compliant")) -> Compliant | F55: =IF($C55="",IF(VLOOKUP($B55,$B$31:$E$34,MATCH(F$38,$B$23:$E$23,0),0)<=VLOOKUP($B55,$B$24:$E$27,MATCH(F$38,$B$23:$E$23,0),0),"Compliant","Not Compliant"),IF(INDEX('Price and Quantity'!$C$11:$M$291,MATCH($C55,'Price and Quantity'!$C$11:$C$291,0),MATCH(F$38,'Price and Quantity'!$C$10:$M$10,0))<=VLOOKUP($B55,$B$24:$E$27,MATCH(F$38,$B$23:$E$23,0),0),"Compliant","Not Compliant")) -> Compliant | G55: =IF($C55="",IF(VLOOKUP($B55,$B$31:$E$34,MATCH(G$38,$B$23:$E$23,0),0)<=VLOOKUP($B55,$B$24:$E$27,MATCH(G$38,$B$23:$E$23,0),0),"Compliant","Not Compliant"),IF(INDEX('Price and Quantity'!$C$11:$M$291,MATCH($C55,'Price and Quantity'!$C$11:$C$291,0),MATCH(G$38,'Price and Quantity'!$C$10:$M$10,0))<=VLOOKUP($B55,$B$24:$E$27,MATCH(G$38,$B$23:$E$23,0),0),"Compliant","Not Compliant")) -> Compliant
B56: Other fixed line and fixed wireless TC-4 | C56: Smart Places - AVC TC-4 100/40 Mbps | D56: Fibre | E56: =IF($C56="",IF(VLOOKUP($B56,$B$31:$E$34,MATCH(E$38,$B$23:$E$23,0),0)<=VLOOKUP($B56,$B$24:$E$27,MATCH(E$38,$B$23:$E$23,0),0),"Compliant","Not Compliant"),IF(INDEX('Price and Quantity'!$C$11:$M$291,MATCH($C56,'Price and Quantity'!$C$11:$C$291,0),MATCH(E$38,'Price and Quantity'!$C$10:$M$10,0))<=VLOOKUP($B56,$B$24:$E$27,MATCH(E$38,$B$23:$E$23,0),0),"Compliant","Not Compliant")) -> Compliant | F56: =IF($C56="",IF(VLOOKUP($B56,$B$31:$E$34,MATCH(F$38,$B$23:$E$23,0),0)<=VLOOKUP($B56,$B$24:$E$27,MATCH(F$38,$B$23:$E$23,0),0),"Compliant","Not Compliant"),IF(INDEX('Price and Quantity'!$C$11:$M$291,MATCH($C56,'Price and Quantity'!$C$11:$C$291,0),MATCH(F$38,'Price and Quantity'!$C$10:$M$10,0))<=VLOOKUP($B56,$B$24:$E$27,MATCH(F$38,$B$23:$E$23,0),0),"Compliant","Not Compliant")) -> Compliant | G56: =IF($C56="",IF(VLOOKUP($B56,$B$31:$E$34,MATCH(G$38,$B$23:$E$23,0),0)<=VLOOKUP($B56,$B$24:$E$27,MATCH(G$38,$B$23:$E$23,0),0),"Compliant","Not Compliant"),IF(INDEX('Price and Quantity'!$C$11:$M$291,MATCH($C56,'Price and Quantity'!$C$11:$C$291,0),MATCH(G$38,'Price and Quantity'!$C$10:$M$10,0))<=VLOOKUP($B56,$B$24:$E$27,MATCH(G$38,$B$23:$E$23,0),0),"Compliant","Not Compliant")) -> Compliant
B57: Other fixed line and fixed wireless TC-4 | C57: Smart Places - AVC TC-4 250/100 Mbps | D57: Fibre | E57: =IF($C57="",IF(VLOOKUP($B57,$B$31:$E$34,MATCH(E$38,$B$23:$E$23,0),0)<=VLOOKUP($B57,$B$24:$E$27,MATCH(E$38,$B$23:$E$23,0),0),"Compliant","Not Compliant"),IF(INDEX('Price and Quantity'!$C$11:$M$291,MATCH($C57,'Price and Quantity'!$C$11:$C$291,0),MATCH(E$38,'Price and Quantity'!$C$10:$M$10,0))<=VLOOKUP($B57,$B$24:$E$27,MATCH(E$38,$B$23:$E$23,0),0),"Compliant","Not Compliant")) -> Compliant | F57: =IF($C57="",IF(VLOOKUP($B57,$B$31:$E$34,MATCH(F$38,$B$23:$E$23,0),0)<=VLOOKUP($B57,$B$24:$E$27,MATCH(F$38,$B$23:$E$23,0),0),"Compliant","Not Compliant"),IF(INDEX('Price and Quantity'!$C$11:$M$291,MATCH($C57,'Price and Quantity'!$C$11:$C$291,0),MATCH(F$38,'Price and Quantity'!$C$10:$M$10,0))<=VLOOKUP($B57,$B$24:$E$27,MATCH(F$38,$B$23:$E$23,0),0),"Compliant","Not Compliant")) -> Compliant | G57: =IF($C57="",IF(VLOOKUP($B57,$B$31:$E$34,MATCH(G$38,$B$23:$E$23,0),0)<=VLOOKUP($B57,$B$24:$E$27,MATCH(G$38,$B$23:$E$23,0),0),"Compliant","Not Compliant"),IF(INDEX('Price and Quantity'!$C$11:$M$291,MATCH($C57,'Price and Quantity'!$C$11:$C$291,0),MATCH(G$38,'Price and Quantity'!$C$10:$M$10,0))<=VLOOKUP($B57,$B$24:$E$27,MATCH(G$38,$B$23:$E$23,0),0),"Compliant","Not Compliant")) -> Compliant
B58: Other fixed line and fixed wireless TC-4 | C58: Smart Places - AVC TC-4 500/200 Mbps | D58: Fibre | E58: =IF($C58="",IF(VLOOKUP($B58,$B$31:$E$34,MATCH(E$38,$B$23:$E$23,0),0)<=VLOOKUP($B58,$B$24:$E$27,MATCH(E$38,$B$23:$E$23,0),0),"Compliant","Not Compliant"),IF(INDEX('Price and Quantity'!$C$11:$M$291,MATCH($C58,'Price and Quantity'!$C$11:$C$291,0),MATCH(E$38,'Price and Quantity'!$C$10:$M$10,0))<=VLOOKUP($B58,$B$24:$E$27,MATCH(E$38,$B$23:$E$23,0),0),"Compliant","Not Compliant")) -> Compliant | F58: =IF($C58="",IF(VLOOKUP($B58,$B$31:$E$34,MATCH(F$38,$B$23:$E$23,0),0)<=VLOOKUP($B58,$B$24:$E$27,MATCH(F$38,$B$23:$E$23,0),0),"Compliant","Not Compliant"),IF(INDEX('Price and Quantity'!$C$11:$M$291,MATCH($C58,'Price and Quantity'!$C$11:$C$291,0),MATCH(F$38,'Price and Quantity'!$C$10:$M$10,0))<=VLOOKUP($B58,$B$24:$E$27,MATCH(F$38,$B$23:$E$23,0),0),"Compliant","Not Compliant")) -> Compliant | G58: =IF($C58="",IF(VLOOKUP($B58,$B$31:$E$34,MATCH(G$38,$B$23:$E$23,0),0)<=VLOOKUP($B58,$B$24:$E$27,MATCH(G$38,$B$23:$E$23,0),0),"Compliant","Not Compliant"),IF(INDEX('Price and Quantity'!$C$11:$M$291,MATCH($C58,'Price and Quantity'!$C$11:$C$291,0),MATCH(G$38,'Price and Quantity'!$C$10:$M$10,0))<=VLOOKUP($B58,$B$24:$E$27,MATCH(G$38,$B$23:$E$23,0),0),"Compliant","Not Compliant")) -> Compliant
B59: Other fixed line and fixed wireless TC-4 | C59: Smart Places - AVC TC-4 1000/400 Mbps | D59: Fibre | E59: =IF($C59="",IF(VLOOKUP($B59,$B$31:$E$34,MATCH(E$38,$B$23:$E$23,0),0)<=VLOOKUP($B59,$B$24:$E$27,MATCH(E$38,$B$23:$E$23,0),0),"Compliant","Not Compliant"),IF(INDEX('Price and Quantity'!$C$11:$M$291,MATCH($C59,'Price and Quantity'!$C$11:$C$291,0),MATCH(E$38,'Price and Quantity'!$C$10:$M$10,0))<=VLOOKUP($B59,$B$24:$E$27,MATCH(E$38,$B$23:$E$23,0),0),"Compliant","Not Compliant")) -> Compliant | F59: =IF($C59="",IF(VLOOKUP($B59,$B$31:$E$34,MATCH(F$38,$B$23:$E$23,0),0)<=VLOOKUP($B59,$B$24:$E$27,MATCH(F$38,$B$23:$E$23,0),0),"Compliant","Not Compliant"),IF(INDEX('Price and Quantity'!$C$11:$M$291,MATCH($C59,'Price and Quantity'!$C$11:$C$291,0),MATCH(F$38,'Price and Quantity'!$C$10:$M$10,0))<=VLOOKUP($B59,$B$24:$E$27,MATCH(F$38,$B$23:$E$23,0),0),"Compliant","Not Compliant")) -> Compliant | G59: =IF($C59="",IF(VLOOKUP($B59,$B$31:$E$34,MATCH(G$38,$B$23:$E$23,0),0)<=VLOOKUP($B59,$B$24:$E$27,MATCH(G$38,$B$23:$E$23,0),0),"Compliant","Not Compliant"),IF(INDEX('Price and Quantity'!$C$11:$M$291,MATCH($C59,'Price and Quantity'!$C$11:$C$291,0),MATCH(G$38,'Price and Quantity'!$C$10:$M$10,0))<=VLOOKUP($B59,$B$24:$E$27,MATCH(G$38,$B$23:$E$23,0),0),"Compliant","Not Compliant")) -> Compliant
B60: Other fixed line and fixed wireless TC-4 | C60: AVC TC-4 12/1 (Basic Bundled Offer) | D60: Fibre, FTTB, FTTN, FTTC, HFC | E60: =IF($C60="",IF(VLOOKUP($B60,$B$31:$E$34,MATCH(E$38,$B$23:$E$23,0),0)<=VLOOKUP($B60,$B$24:$E$27,MATCH(E$38,$B$23:$E$23,0),0),"Compliant","Not Compliant"),IF(INDEX('Price and Quantity'!$C$11:$M$291,MATCH($C60,'Price and Quantity'!$C$11:$C$291,0),MATCH(E$38,'Price and Quantity'!$C$10:$M$10,0))<=VLOOKUP($B60,$B$24:$E$27,MATCH(E$38,$B$23:$E$23,0),0),"Compliant","Not Compliant")) -> Compliant | F60: =IF($C60="",IF(VLOOKUP($B60,$B$31:$E$34,MATCH(F$38,$B$23:$E$23,0),0)<=VLOOKUP($B60,$B$24:$E$27,MATCH(F$38,$B$23:$E$23,0),0),"Compliant","Not Compliant"),IF(INDEX('Price and Quantity'!$C$11:$M$291,MATCH($C60,'Price and Quantity'!$C$11:$C$291,0),MATCH(F$38,'Price and Quantity'!$C$10:$M$10,0))<=VLOOKUP($B60,$B$24:$E$27,MATCH(F$38,$B$23:$E$23,0),0),"Compliant","Not Compliant")) -> Compliant | G60: =IF($C60="",IF(VLOOKUP($B60,$B$31:$E$34,MATCH(G$38,$B$23:$E$23,0),0)<=VLOOKUP($B60,$B$24:$E$27,MATCH(G$38,$B$23:$E$23,0),0),"Compliant","Not Compliant"),IF(INDEX('Price and Quantity'!$C$11:$M$291,MATCH($C60,'Price and Quantity'!$C$11:$C$291,0),MATCH(G$38,'Price and Quantity'!$C$10:$M$10,0))<=VLOOKUP($B60,$B$24:$E$27,MATCH(G$38,$B$23:$E$23,0),0),"Compliant","Not Compliant")) -> Compliant
B61: Other fixed line and fixed wireless TC-4 | C61: AVC TC-4 12/1 Mbps | D61: Fibre, FTTB, FTTN, FTTC, HFC and Wireless | E61: =IF($C61="",IF(VLOOKUP($B61,$B$31:$E$34,MATCH(E$38,$B$23:$E$23,0),0)<=VLOOKUP($B61,$B$24:$E$27,MATCH(E$38,$B$23:$E$23,0),0),"Compliant","Not Compliant"),IF(INDEX('Price and Quantity'!$C$11:$M$291,MATCH($C61,'Price and Quantity'!$C$11:$C$291,0),MATCH(E$38,'Price and Quantity'!$C$10:$M$10,0))<=VLOOKUP($B61,$B$24:$E$27,MATCH(E$38,$B$23:$E$23,0),0),"Compliant","Not Compliant")) -> Compliant | F61: =IF($C61="",IF(VLOOKUP($B61,$B$31:$E$34,MATCH(F$38,$B$23:$E$23,0),0)<=VLOOKUP($B61,$B$24:$E$27,MATCH(F$38,$B$23:$E$23,0),0),"Compliant","Not Compliant"),IF(INDEX('Price and Quantity'!$C$11:$M$291,MATCH($C61,'Price and Quantity'!$C$11:$C$291,0),MATCH(F$38,'Price and Quantity'!$C$10:$M$10,0))<=VLOOKUP($B61,$B$24:$E$27,MATCH(F$38,$B$23:$E$23,0),0),"Compliant","Not Compliant")) -> Compliant | G61: =IF($C61="",IF(VLOOKUP($B61,$B$31:$E$34,MATCH(G$38,$B$23:$E$23,0),0)<=VLOOKUP($B61,$B$24:$E$27,MATCH(G$38,$B$23:$E$23,0),0),"Compliant","Not Compliant"),IF(INDEX('Price and Quantity'!$C$11:$M$291,MATCH($C61,'Price and Quantity'!$C$11:$C$291,0),MATCH(G$38,'Price and Quantity'!$C$10:$M$10,0))<=VLOOKUP($B61,$B$24:$E$27,MATCH(G$38,$B$23:$E$23,0),0),"Compliant","Not Compliant")) -> Compliant
B62: Other fixed line and fixed wireless TC-4 | C62: AVC TC-4 25-50/5-20 Mbps | D62: FTTB,FTTN | E62: =IF($C62="",IF(VLOOKUP($B62,$B$31:$E$34,MATCH(E$38,$B$23:$E$23,0),0)<=VLOOKUP($B62,$B$24:$E$27,MATCH(E$38,$B$23:$E$23,0),0),"Compliant","Not Compliant"),IF(INDEX('Price and Quantity'!$C$11:$M$291,MATCH($C62,'Price and Quantity'!$C$11:$C$291,0),MATCH(E$38,'Price and Quantity'!$C$10:$M$10,0))<=VLOOKUP($B62,$B$24:$E$27,MATCH(E$38,$B$23:$E$23,0),0),"Compliant","Not Compliant")) -> Compliant | F62: =IF($C62="",IF(VLOOKUP($B62,$B$31:$E$34,MATCH(F$38,$B$23:$E$23,0),0)<=VLOOKUP($B62,$B$24:$E$27,MATCH(F$38,$B$23:$E$23,0),0),"Compliant","Not Compliant"),IF(INDEX('Price and Quantity'!$C$11:$M$291,MATCH($C62,'Price and Quantity'!$C$11:$C$291,0),MATCH(F$38,'Price and Quantity'!$C$10:$M$10,0))<=VLOOKUP($B62,$B$24:$E$27,MATCH(F$38,$B$23:$E$23,0),0),"Compliant","Not Compliant")) -> Compliant | G62: =IF($C62="",IF(VLOOKUP($B62,$B$31:$E$34,MATCH(G$38,$B$23:$E$23,0),0)<=VLOOKUP($B62,$B$24:$E$27,MATCH(G$38,$B$23:$E$23,0),0),"Compliant","Not Compliant"),IF(INDEX('Price and Quantity'!$C$11:$M$291,MATCH($C62,'Price and Quantity'!$C$11:$C$291,0),MATCH(G$38,'Price and Quantity'!$C$10:$M$10,0))<=VLOOKUP($B62,$B$24:$E$27,MATCH(G$38,$B$23:$E$23,0),0),"Compliant","Not Compliant")) -> Compliant
B63: Other fixed line and fixed wireless TC-4 | C63: AVC TC-4 50/20 Mbps | D63: Fibre, FTTC, HFC | E63: =IF($C63="",IF(VLOOKUP($B63,$B$31:$E$34,MATCH(E$38,$B$23:$E$23,0),0)<=VLOOKUP($B63,$B$24:$E$27,MATCH(E$38,$B$23:$E$23,0),0),"Compliant","Not Compliant"),IF(INDEX('Price and Quantity'!$C$11:$M$291,MATCH($C63,'Price and Quantity'!$C$11:$C$291,0),MATCH(E$38,'Price and Quantity'!$C$10:$M$10,0))<=VLOOKUP($B63,$B$24:$E$27,MATCH(E$38,$B$23:$E$23,0),0),"Compliant","Not Compliant")) -> Compliant | F63: =IF($C63="",IF(VLOOKUP($B63,$B$31:$E$34,MATCH(F$38,$B$23:$E$23,0),0)<=VLOOKUP($B63,$B$24:$E$27,MATCH(F$38,$B$23:$E$23,0),0),"Compliant","Not Compliant"),IF(INDEX('Price and Quantity'!$C$11:$M$291,MATCH($C63,'Price and Quantity'!$C$11:$C$291,0),MATCH(F$38,'Price and Quantity'!$C$10:$M$10,0))<=VLOOKUP($B63,$B$24:$E$27,MATCH(F$38,$B$23:$E$23,0),0),"Compliant","Not Compliant")) -> Compliant | G63: =IF($C63="",IF(VLOOKUP($B63,$B$31:$E$34,MATCH(G$38,$B$23:$E$23,0),0)<=VLOOKUP($B63,$B$24:$E$27,MATCH(G$38,$B$23:$E$23,0),0),"Compliant","Not Compliant"),IF(INDEX('Price and Quantity'!$C$11:$M$291,MATCH($C63,'Price and Quantity'!$C$11:$C$291,0),MATCH(G$38,'Price and Quantity'!$C$10:$M$10,0))<=VLOOKUP($B63,$B$24:$E$27,MATCH(G$38,$B$23:$E$23,0),0),"Compliant","Not Compliant")) -> Compliant
B64: Other fixed line and fixed wireless TC-4 | C64: AVC TC-4 up to 100/up to 20 Mbps | D64: Wireless | E64: =IF($C64="",IF(VLOOKUP($B64,$B$31:$E$34,MATCH(E$38,$B$23:$E$23,0),0)<=VLOOKUP($B64,$B$24:$E$27,MATCH(E$38,$B$23:$E$23,0),0),"Compliant","Not Compliant"),IF(INDEX('Price and Quantity'!$C$11:$M$291,MATCH($C64,'Price and Quantity'!$C$11:$C$291,0),MATCH(E$38,'Price and Quantity'!$C$10:$M$10,0))<=VLOOKUP($B64,$B$24:$E$27,MATCH(E$38,$B$23:$E$23,0),0),"Compliant","Not Compliant")) -> Compliant | F64: =IF($C64="",IF(VLOOKUP($B64,$B$31:$E$34,MATCH(F$38,$B$23:$E$23,0),0)<=VLOOKUP($B64,$B$24:$E$27,MATCH(F$38,$B$23:$E$23,0),0),"Compliant","Not Compliant"),IF(INDEX('Price and Quantity'!$C$11:$M$291,MATCH($C64,'Price and Quantity'!$C$11:$C$291,0),MATCH(F$38,'Price and Quantity'!$C$10:$M$10,0))<=VLOOKUP($B64,$B$24:$E$27,MATCH(F$38,$B$23:$E$23,0),0),"Compliant","Not Compliant")) -> Compliant | G64: =IF($C64="",IF(VLOOKUP($B64,$B$31:$E$34,MATCH(G$38,$B$23:$E$23,0),0)<=VLOOKUP($B64,$B$24:$E$27,MATCH(G$38,$B$23:$E$23,0),0),"Compliant","Not Compliant"),IF(INDEX('Price and Quantity'!$C$11:$M$291,MATCH($C64,'Price and Quantity'!$C$11:$C$291,0),MATCH(G$38,'Price and Quantity'!$C$10:$M$10,0))<=VLOOKUP($B64,$B$24:$E$27,MATCH(G$38,$B$23:$E$23,0),0),"Compliant","Not Compliant")) -> Compliant
B65: Other fixed line and fixed wireless TC-4 | C65: Smart Places - AVC TC-4 25/10 Mbps | D65: Fibre | E65: =IF($C65="",IF(VLOOKUP($B65,$B$31:$E$34,MATCH(E$38,$B$23:$E$23,0),0)<=VLOOKUP($B65,$B$24:$E$27,MATCH(E$38,$B$23:$E$23,0),0),"Compliant","Not Compliant"),IF(INDEX('Price and Quantity'!$C$11:$M$291,MATCH($C65,'Price and Quantity'!$C$11:$C$291,0),MATCH(E$38,'Price and Quantity'!$C$10:$M$10,0))<=VLOOKUP($B65,$B$24:$E$27,MATCH(E$38,$B$23:$E$23,0),0),"Compliant","Not Compliant")) -> Compliant | F65: =IF($C65="",IF(VLOOKUP($B65,$B$31:$E$34,MATCH(F$38,$B$23:$E$23,0),0)<=VLOOKUP($B65,$B$24:$E$27,MATCH(F$38,$B$23:$E$23,0),0),"Compliant","Not Compliant"),IF(INDEX('Price and Quantity'!$C$11:$M$291,MATCH($C65,'Price and Quantity'!$C$11:$C$291,0),MATCH(F$38,'Price and Quantity'!$C$10:$M$10,0))<=VLOOKUP($B65,$B$24:$E$27,MATCH(F$38,$B$23:$E$23,0),0),"Compliant","Not Compliant")) -> Compliant | G65: =IF($C65="",IF(VLOOKUP($B65,$B$31:$E$34,MATCH(G$38,$B$23:$E$23,0),0)<=VLOOKUP($B65,$B$24:$E$27,MATCH(G$38,$B$23:$E$23,0),0),"Compliant","Not Compliant"),IF(INDEX('Price and Quantity'!$C$11:$M$291,MATCH($C65,'Price and Quantity'!$C$11:$C$291,0),MATCH(G$38,'Price and Quantity'!$C$10:$M$10,0))<=VLOOKUP($B65,$B$24:$E$27,MATCH(G$38,$B$23:$E$23,0),0),"Compliant","Not Compliant")) -> Compliant
B66: Other fixed line and fixed wireless TC-4 | C66: Smart Places - AVC TC-4 50/20 Mbps | D66: Fibre | E66: =IF($C66="",IF(VLOOKUP($B66,$B$31:$E$34,MATCH(E$38,$B$23:$E$23,0),0)<=VLOOKUP($B66,$B$24:$E$27,MATCH(E$38,$B$23:$E$23,0),0),"Compliant","Not Compliant"),IF(INDEX('Price and Quantity'!$C$11:$M$291,MATCH($C66,'Price and Quantity'!$C$11:$C$291,0),MATCH(E$38,'Price and Quantity'!$C$10:$M$10,0))<=VLOOKUP($B66,$B$24:$E$27,MATCH(E$38,$B$23:$E$23,0),0),"Compliant","Not Compliant")) -> Compliant | F66: =IF($C66="",IF(VLOOKUP($B66,$B$31:$E$34,MATCH(F$38,$B$23:$E$23,0),0)<=VLOOKUP($B66,$B$24:$E$27,MATCH(F$38,$B$23:$E$23,0),0),"Compliant","Not Compliant"),IF(INDEX('Price and Quantity'!$C$11:$M$291,MATCH($C66,'Price and Quantity'!$C$11:$C$291,0),MATCH(F$38,'Price and Quantity'!$C$10:$M$10,0))<=VLOOKUP($B66,$B$24:$E$27,MATCH(F$38,$B$23:$E$23,0),0),"Compliant","Not Compliant")) -> Compliant | G66: =IF($C66="",IF(VLOOKUP($B66,$B$31:$E$34,MATCH(G$38,$B$23:$E$23,0),0)<=VLOOKUP($B66,$B$24:$E$27,MATCH(G$38,$B$23:$E$23,0),0),"Compliant","Not Compliant"),IF(INDEX('Price and Quantity'!$C$11:$M$291,MATCH($C66,'Price and Quantity'!$C$11:$C$291,0),MATCH(G$38,'Price and Quantity'!$C$10:$M$10,0))<=VLOOKUP($B66,$B$24:$E$27,MATCH(G$38,$B$23:$E$23,0),0),"Compliant","Not Compliant")) -> Compliant
B67: Other fixed line and fixed wireless TC-4 | C67: AVC TC-4 25/5-10 Mbps | D67: FTTB,FTTN | E67: =IF($C67="",IF(VLOOKUP($B67,$B$31:$E$34,MATCH(E$38,$B$23:$E$23,0),0)<=VLOOKUP($B67,$B$24:$E$27,MATCH(E$38,$B$23:$E$23,0),0),"Compliant","Not Compliant"),IF(INDEX('Price and Quantity'!$C$11:$M$291,MATCH($C67,'Price and Quantity'!$C$11:$C$291,0),MATCH(E$38,'Price and Quantity'!$C$10:$M$10,0))<=VLOOKUP($B67,$B$24:$E$27,MATCH(E$38,$B$23:$E$23,0),0),"Compliant","Not Compliant")) -> Compliant | F67: =IF($C67="",IF(VLOOKUP($B67,$B$31:$E$34,MATCH(F$38,$B$23:$E$23,0),0)<=VLOOKUP($B67,$B$24:$E$27,MATCH(F$38,$B$23:$E$23,0),0),"Compliant","Not Compliant"),IF(INDEX('Price and Quantity'!$C$11:$M$291,MATCH($C67,'Price and Quantity'!$C$11:$C$291,0),MATCH(F$38,'Price and Quantity'!$C$10:$M$10,0))<=VLOOKUP($B67,$B$24:$E$27,MATCH(F$38,$B$23:$E$23,0),0),"Compliant","Not Compliant")) -> Compliant | G67: =IF($C67="",IF(VLOOKUP($B67,$B$31:$E$34,MATCH(G$38,$B$23:$E$23,0),0)<=VLOOKUP($B67,$B$24:$E$27,MATCH(G$38,$B$23:$E$23,0),0),"Compliant","Not Compliant"),IF(INDEX('Price and Quantity'!$C$11:$M$291,MATCH($C67,'Price and Quantity'!$C$11:$C$291,0),MATCH(G$38,'Price and Quantity'!$C$10:$M$10,0))<=VLOOKUP($B67,$B$24:$E$27,MATCH(G$38,$B$23:$E$23,0),0),"Compliant","Not Compliant")) -> Compliant
B68: Other fixed line and fixed wireless TC-4 | C68: AVC TC-4 25/10 Mbps | D68: Fibre, FTTC, HFC | E68: =IF($C68="",IF(VLOOKUP($B68,$B$31:$E$34,MATCH(E$38,$B$23:$E$23,0),0)<=VLOOKUP($B68,$B$24:$E$27,MATCH(E$38,$B$23:$E$23,0),0),"Compliant","Not Compliant"),IF(INDEX('Price and Quantity'!$C$11:$M$291,MATCH($C68,'Price and Quantity'!$C$11:$C$291,0),MATCH(E$38,'Price and Quantity'!$C$10:$M$10,0))<=VLOOKUP($B68,$B$24:$E$27,MATCH(E$38,$B$23:$E$23,0),0),"Compliant","Not Compliant")) -> Compliant | F68: =IF($C68="",IF(VLOOKUP($B68,$B$31:$E$34,MATCH(F$38,$B$23:$E$23,0),0)<=VLOOKUP($B68,$B$24:$E$27,MATCH(F$38,$B$23:$E$23,0),0),"Compliant","Not Compliant"),IF(INDEX('Price and Quantity'!$C$11:$M$291,MATCH($C68,'Price and Quantity'!$C$11:$C$291,0),MATCH(F$38,'Price and Quantity'!$C$10:$M$10,0))<=VLOOKUP($B68,$B$24:$E$27,MATCH(F$38,$B$23:$E$23,0),0),"Compliant","Not Compliant")) -> Compliant | G68: =IF($C68="",IF(VLOOKUP($B68,$B$31:$E$34,MATCH(G$38,$B$23:$E$23,0),0)<=VLOOKUP($B68,$B$24:$E$27,MATCH(G$38,$B$23:$E$23,0),0),"Compliant","Not Compliant"),IF(INDEX('Price and Quantity'!$C$11:$M$291,MATCH($C68,'Price and Quantity'!$C$11:$C$291,0),MATCH(G$38,'Price and Quantity'!$C$10:$M$10,0))<=VLOOKUP($B68,$B$24:$E$27,MATCH(G$38,$B$23:$E$23,0),0),"Compliant","Not Compliant")) -> Compliant
B70: Satellite AVC TC-4 | E70: =IF($C70="",IF(VLOOKUP($B70,$B$31:$E$34,MATCH(E$38,$B$23:$E$23,0),0)<=VLOOKUP($B70,$B$24:$E$27,MATCH(E$38,$B$23:$E$23,0),0),"Compliant","Not Compliant"),IF(INDEX('Price and Quantity'!$C$11:$M$291,MATCH($C70,'Price and Quantity'!$C$11:$C$291,0),MATCH(E$38,'Price and Quantity'!$C$10:$M$10,0))<=VLOOKUP($B70,$B$24:$E$27,MATCH(E$38,$B$23:$E$23,0),0),"Compliant","Not Compliant")) -> Compliant | F70: =IF($C70="",IF(VLOOKUP($B70,$B$31:$E$34,MATCH(F$38,$B$23:$E$23,0),0)<=VLOOKUP($B70,$B$24:$E$27,MATCH(F$38,$B$23:$E$23,0),0),"Compliant","Not Compliant"),IF(INDEX('Price and Quantity'!$C$11:$M$291,MATCH($C70,'Price and Quantity'!$C$11:$C$291,0),MATCH(F$38,'Price and Quantity'!$C$10:$M$10,0))<=VLOOKUP($B70,$B$24:$E$27,MATCH(F$38,$B$23:$E$23,0),0),"Compliant","Not Compliant")) -> Compliant | G70: =IF($C70="",IF(VLOOKUP($B70,$B$31:$E$34,MATCH(G$38,$B$23:$E$23,0),0)<=VLOOKUP($B70,$B$24:$E$27,MATCH(G$38,$B$23:$E$23,0),0),"Compliant","Not Compliant"),IF(INDEX('Price and Quantity'!$C$11:$M$291,MATCH($C70,'Price and Quantity'!$C$11:$C$291,0),MATCH(G$38,'Price and Quantity'!$C$10:$M$10,0))<=VLOOKUP($B70,$B$24:$E$27,MATCH(G$38,$B$23:$E$23,0),0),"Compliant","Not Compliant")) -> Compliant
B71: Satellite AVC TC-4 | C71: AVC TC-4 12/1 Mbps | D71: Satellite | E71: =IF($C71="",IF(VLOOKUP($B71,$B$31:$E$34,MATCH(E$38,$B$23:$E$23,0),0)<=VLOOKUP($B71,$B$24:$E$27,MATCH(E$38,$B$23:$E$23,0),0),"Compliant","Not Compliant"),IF(INDEX('Price and Quantity'!$C$11:$M$291,MATCH($C71,'Price and Quantity'!$C$11:$C$291,0),MATCH(E$38,'Price and Quantity'!$C$10:$M$10,0))<=VLOOKUP($B71,$B$24:$E$27,MATCH(E$38,$B$23:$E$23,0),0),"Compliant","Not Compliant")) -> Compliant | F71: =IF($C71="",IF(VLOOKUP($B71,$B$31:$E$34,MATCH(F$38,$B$23:$E$23,0),0)<=VLOOKUP($B71,$B$24:$E$27,MATCH(F$38,$B$23:$E$23,0),0),"Compliant","Not Compliant"),IF(INDEX('Price and Quantity'!$C$11:$M$291,MATCH($C71,'Price and Quantity'!$C$11:$C$291,0),MATCH(F$38,'Price and Quantity'!$C$10:$M$10,0))<=VLOOKUP($B71,$B$24:$E$27,MATCH(F$38,$B$23:$E$23,0),0),"Compliant","Not Compliant")) -> Compliant | G71: =IF($C71="",IF(VLOOKUP($B71,$B$31:$E$34,MATCH(G$38,$B$23:$E$23,0),0)<=VLOOKUP($B71,$B$24:$E$27,MATCH(G$38,$B$23:$E$23,0),0),"Compliant","Not Compliant"),IF(INDEX('Price and Quantity'!$C$11:$M$291,MATCH($C71,'Price and Quantity'!$C$11:$C$291,0),MATCH(G$38,'Price and Quantity'!$C$10:$M$10,0))<=VLOOKUP($B71,$B$24:$E$27,MATCH(G$38,$B$23:$E$23,0),0),"Compliant","Not Compliant")) -> Compliant
B72: Satellite AVC TC-4 | C72: AVC TC-4 25/5 Mbps | D72: Satellite | E72: =IF($C72="",IF(VLOOKUP($B72,$B$31:$E$34,MATCH(E$38,$B$23:$E$23,0),0)<=VLOOKUP($B72,$B$24:$E$27,MATCH(E$38,$B$23:$E$23,0),0),"Compliant","Not Compliant"),IF(INDEX('Price and Quantity'!$C$11:$M$291,MATCH($C72,'Price and Quantity'!$C$11:$C$291,0),MATCH(E$38,'Price and Quantity'!$C$10:$M$10,0))<=VLOOKUP($B72,$B$24:$E$27,MATCH(E$38,$B$23:$E$23,0),0),"Compliant","Not Compliant")) -> Compliant | F72: =IF($C72="",IF(VLOOKUP($B72,$B$31:$E$34,MATCH(F$38,$B$23:$E$23,0),0)<=VLOOKUP($B72,$B$24:$E$27,MATCH(F$38,$B$23:$E$23,0),0),"Compliant","Not Compliant"),IF(INDEX('Price and Quantity'!$C$11:$M$291,MATCH($C72,'Price and Quantity'!$C$11:$C$291,0),MATCH(F$38,'Price and Quantity'!$C$10:$M$10,0))<=VLOOKUP($B72,$B$24:$E$27,MATCH(F$38,$B$23:$E$23,0),0),"Compliant","Not Compliant")) -> Compliant | G72: =IF($C72="",IF(VLOOKUP($B72,$B$31:$E$34,MATCH(G$38,$B$23:$E$23,0),0)<=VLOOKUP($B72,$B$24:$E$27,MATCH(G$38,$B$23:$E$23,0),0),"Compliant","Not Compliant"),IF(INDEX('Price and Quantity'!$C$11:$M$291,MATCH($C72,'Price and Quantity'!$C$11:$C$291,0),MATCH(G$38,'Price and Quantity'!$C$10:$M$10,0))<=VLOOKUP($B72,$B$24:$E$27,MATCH(G$38,$B$23:$E$23,0),0),"Compliant","Not Compliant")) -> Compliant
B74: Satellite CVC TC-4 | E74: =IF($C74="",IF(VLOOKUP($B74,$B$31:$E$34,MATCH(E$38,$B$23:$E$23,0),0)<=VLOOKUP($B74,$B$24:$E$27,MATCH(E$38,$B$23:$E$23,0),0),"Compliant","Not Compliant"),IF(INDEX('Price and Quantity'!$C$11:$M$291,MATCH($C74,'Price and Quantity'!$C$11:$C$291,0),MATCH(E$38,'Price and Quantity'!$C$10:$M$10,0))<=VLOOKUP($B74,$B$24:$E$27,MATCH(E$38,$B$23:$E$23,0),0),"Compliant","Not Compliant")) -> Compliant | F74: =IF($C74="",IF(VLOOKUP($B74,$B$31:$E$34,MATCH(F$38,$B$23:$E$23,0),0)<=VLOOKUP($B74,$B$24:$E$27,MATCH(F$38,$B$23:$E$23,0),0),"Compliant","Not Compliant"),IF(INDEX('Price and Quantity'!$C$11:$M$291,MATCH($C74,'Price and Quantity'!$C$11:$C$291,0),MATCH(F$38,'Price and Quantity'!$C$10:$M$10,0))<=VLOOKUP($B74,$B$24:$E$27,MATCH(F$38,$B$23:$E$23,0),0),"Compliant","Not Compliant")) -> Compliant | G74: =IF($C74="",IF(VLOOKUP($B74,$B$31:$E$34,MATCH(G$38,$B$23:$E$23,0),0)<=VLOOKUP($B74,$B$24:$E$27,MATCH(G$38,$B$23:$E$23,0),0),"Compliant","Not Compliant"),IF(INDEX('Price and Quantity'!$C$11:$M$291,MATCH($C74,'Price and Quantity'!$C$11:$C$291,0),MATCH(G$38,'Price and Quantity'!$C$10:$M$10,0))<=VLOOKUP($B74,$B$24:$E$27,MATCH(G$38,$B$23:$E$23,0),0),"Compliant","Not Compliant")) -> Compliant
B75: Satellite CVC TC-4 | C75: CVC TC-4 (Satellite) | D75: Satellite | E75: =IF($C75="",IF(VLOOKUP($B75,$B$31:$E$34,MATCH(E$38,$B$23:$E$23,0),0)<=VLOOKUP($B75,$B$24:$E$27,MATCH(E$38,$B$23:$E$23,0),0),"Compliant","Not Compliant"),IF(INDEX('Price and Quantity'!$C$11:$M$291,MATCH($C75,'Price and Quantity'!$C$11:$C$291,0),MATCH(E$38,'Price and Quantity'!$C$10:$M$10,0))<=VLOOKUP($B75,$B$24:$E$27,MATCH(E$38,$B$23:$E$23,0),0),"Compliant","Not Compliant")) -> Compliant | F75: =IF($C75="",IF(VLOOKUP($B75,$B$31:$E$34,MATCH(F$38,$B$23:$E$23,0),0)<=VLOOKUP($B75,$B$24:$E$27,MATCH(F$38,$B$23:$E$23,0),0),"Compliant","Not Compliant"),IF(INDEX('Price and Quantity'!$C$11:$M$291,MATCH($C75,'Price and Quantity'!$C$11:$C$291,0),MATCH(F$38,'Price and Quantity'!$C$10:$M$10,0))<=VLOOKUP($B75,$B$24:$E$27,MATCH(F$38,$B$23:$E$23,0),0),"Compliant","Not Compliant")) -> Compliant | G75: =IF($C75="",IF(VLOOKUP($B75,$B$31:$E$34,MATCH(G$38,$B$23:$E$23,0),0)<=VLOOKUP($B75,$B$24:$E$27,MATCH(G$38,$B$23:$E$23,0),0),"Compliant","Not Compliant"),IF(INDEX('Price and Quantity'!$C$11:$M$291,MATCH($C75,'Price and Quantity'!$C$11:$C$291,0),MATCH(G$38,'Price and Quantity'!$C$10:$M$10,0))<=VLOOKUP($B75,$B$24:$E$27,MATCH(G$38,$B$23:$E$23,0),0),"Compliant","Not Compliant")) -> Compliant
B76: Satellite CVC TC-4 | C76: CVC Class 0 | D76: Satellite | E76: =IF($C76="",IF(VLOOKUP($B76,$B$31:$E$34,MATCH(E$38,$B$23:$E$23,0),0)<=VLOOKUP($B76,$B$24:$E$27,MATCH(E$38,$B$23:$E$23,0),0),"Compliant","Not Compliant"),IF(INDEX('Price and Quantity'!$C$11:$M$291,MATCH($C76,'Price and Quantity'!$C$11:$C$291,0),MATCH(E$38,'Price and Quantity'!$C$10:$M$10,0))<=VLOOKUP($B76,$B$24:$E$27,MATCH(E$38,$B$23:$E$23,0),0),"Compliant","Not Compliant")) -> Compliant | F76: =IF($C76="",IF(VLOOKUP($B76,$B$31:$E$34,MATCH(F$38,$B$23:$E$23,0),0)<=VLOOKUP($B76,$B$24:$E$27,MATCH(F$38,$B$23:$E$23,0),0),"Compliant","Not Compliant"),IF(INDEX('Price and Quantity'!$C$11:$M$291,MATCH($C76,'Price and Quantity'!$C$11:$C$291,0),MATCH(F$38,'Price and Quantity'!$C$10:$M$10,0))<=VLOOKUP($B76,$B$24:$E$27,MATCH(F$38,$B$23:$E$23,0),0),"Compliant","Not Compliant")) -> Compliant | G76: =IF($C76="",IF(VLOOKUP($B76,$B$31:$E$34,MATCH(G$38,$B$23:$E$23,0),0)<=VLOOKUP($B76,$B$24:$E$27,MATCH(G$38,$B$23:$E$23,0),0),"Compliant","Not Compliant"),IF(INDEX('Price and Quantity'!$C$11:$M$291,MATCH($C76,'Price and Quantity'!$C$11:$C$291,0),MATCH(G$38,'Price and Quantity'!$C$10:$M$10,0))<=VLOOKUP($B76,$B$24:$E$27,MATCH(G$38,$B$23:$E$23,0),0),"Compliant","Not Compliant")) -> Compliant
B77: Satellite CVC TC-4 | C77: CVC Class 1 | D77: Satellite | E77: =IF($C77="",IF(VLOOKUP($B77,$B$31:$E$34,MATCH(E$38,$B$23:$E$23,0),0)<=VLOOKUP($B77,$B$24:$E$27,MATCH(E$38,$B$23:$E$23,0),0),"Compliant","Not Compliant"),IF(INDEX('Price and Quantity'!$C$11:$M$291,MATCH($C77,'Price and Quantity'!$C$11:$C$291,0),MATCH(E$38,'Price and Quantity'!$C$10:$M$10,0))<=VLOOKUP($B77,$B$24:$E$27,MATCH(E$38,$B$23:$E$23,0),0),"Compliant","Not Compliant")) -> Compliant | F77: =IF($C77="",IF(VLOOKUP($B77,$B$31:$E$34,MATCH(F$38,$B$23:$E$23,0),0)<=VLOOKUP($B77,$B$24:$E$27,MATCH(F$38,$B$23:$E$23,0),0),"Compliant","Not Compliant"),IF(INDEX('Price and Quantity'!$C$11:$M$291,MATCH($C77,'Price and Quantity'!$C$11:$C$291,0),MATCH(F$38,'Price and Quantity'!$C$10:$M$10,0))<=VLOOKUP($B77,$B$24:$E$27,MATCH(F$38,$B$23:$E$23,0),0),"Compliant","Not Compliant")) -> Compliant | G77: =IF($C77="",IF(VLOOKUP($B77,$B$31:$E$34,MATCH(G$38,$B$23:$E$23,0),0)<=VLOOKUP($B77,$B$24:$E$27,MATCH(G$38,$B$23:$E$23,0),0),"Compliant","Not Compliant"),IF(INDEX('Price and Quantity'!$C$11:$M$291,MATCH($C77,'Price and Quantity'!$C$11:$C$291,0),MATCH(G$38,'Price and Quantity'!$C$10:$M$10,0))<=VLOOKUP($B77,$B$24:$E$27,MATCH(G$38,$B$23:$E$23,0),0),"Compliant","Not Compliant")) -> Compliant
B78: Satellite CVC TC-4 | C78: CVC Class 2 | D78: Satellite | E78: =IF($C78="",IF(VLOOKUP($B78,$B$31:$E$34,MATCH(E$38,$B$23:$E$23,0),0)<=VLOOKUP($B78,$B$24:$E$27,MATCH(E$38,$B$23:$E$23,0),0),"Compliant","Not Compliant"),IF(INDEX('Price and Quantity'!$C$11:$M$291,MATCH($C78,'Price and Quantity'!$C$11:$C$291,0),MATCH(E$38,'Price and Quantity'!$C$10:$M$10,0))<=VLOOKUP($B78,$B$24:$E$27,MATCH(E$38,$B$23:$E$23,0),0),"Compliant","Not Compliant")) -> Compliant | F78: =IF($C78="",IF(VLOOKUP($B78,$B$31:$E$34,MATCH(F$38,$B$23:$E$23,0),0)<=VLOOKUP($B78,$B$24:$E$27,MATCH(F$38,$B$23:$E$23,0),0),"Compliant","Not Compliant"),IF(INDEX('Price and Quantity'!$C$11:$M$291,MATCH($C78,'Price and Quantity'!$C$11:$C$291,0),MATCH(F$38,'Price and Quantity'!$C$10:$M$10,0))<=VLOOKUP($B78,$B$24:$E$27,MATCH(F$38,$B$23:$E$23,0),0),"Compliant","Not Compliant")) -> Compliant | G78: =IF($C78="",IF(VLOOKUP($B78,$B$31:$E$34,MATCH(G$38,$B$23:$E$23,0),0)<=VLOOKUP($B78,$B$24:$E$27,MATCH(G$38,$B$23:$E$23,0),0),"Compliant","Not Compliant"),IF(INDEX('Price and Quantity'!$C$11:$M$291,MATCH($C78,'Price and Quantity'!$C$11:$C$291,0),MATCH(G$38,'Price and Quantity'!$C$10:$M$10,0))<=VLOOKUP($B78,$B$24:$E$27,MATCH(G$38,$B$23:$E$23,0),0),"Compliant","Not Compliant")) -> Compliant
B81: TC-4 Price Relativity Restriction (FY25 prices)
B82: Note: The reference to 'Year 2 indicative prices in Roadmap t-1' is to the indicative FY25 prices included in Year 2 of the Pricing Roadmap FY24-FY26 published by nbn in November 2023.
B84: TC-4 Price Relativity Restriction (FY25 prices)
C85: Minimum price difference | D85: Maximum price difference | E85: Price difference delta
C86: =MIN(F91:F119) -> 0 | D86: =MAX(F91:F119) -> 0.27 | E86: =D86-C86 -> 0.27 | F86: =IF(AND(E86<=1,E86>=-1),"Compliant", "Not Compliant") -> Compliant
B90: ='Price and Quantity'!B10 -> Table references | C90: ='Price and Quantity'!C10 -> WAPC Charge Component | D90: Year 2 indicative prices in Roadmap t-1 | E90: FY25 Tariff list | F90: Price difference
B91: 1.1 Flat-Rate Offers | C91: AVC TC-4 25-100/5-20 Mbps | D91: =_xlfn.XLOOKUP(C91,'Prior Year Inputs FY24'!$C$11:$C$31,'Prior Year Inputs FY24'!$F$11:$F$31,D92,0) -> 57.22 | E91: =_xlfn.XLOOKUP(C91,'Price and Quantity'!$C$11:$C$291,'Price and Quantity'!$G$11:$G$291,"n/a",0) -> 57.22 | F91: =E91-D91 -> 0
B92: 1.1 Flat-Rate Offers | C92: AVC TC-4 50-100/20 Mbps | D92: =_xlfn.XLOOKUP(C92,'Prior Year Inputs FY24'!$C$11:$C$31,'Prior Year Inputs FY24'!$F$11:$F$31,D93,0) -> 57.22 | E92: =_xlfn.XLOOKUP(C92,'Price and Quantity'!$C$11:$C$291,'Price and Quantity'!$G$11:$G$291,"n/a",0) -> 57.22 | F92: =E92-D92 -> 0
B93: 1.1 Flat-Rate Offers | C93: AVC TC-4 200-250/8-20 Mbps | D93: =_xlfn.XLOOKUP(C93,'Prior Year Inputs FY24'!$C$11:$C$31,'Prior Year Inputs FY24'!$F$11:$F$31,D94,0) -> 57.22 | E93: =_xlfn.XLOOKUP(C93,'Price and Quantity'!$C$11:$C$291,'Price and Quantity'!$G$11:$G$291,"n/a",0) -> 57.22 | F93: 0
B94: 1.1 Flat-Rate Offers | C94: AVC TC-4 100/20 Mbps | D94: =_xlfn.XLOOKUP(C94,'Prior Year Inputs FY24'!$C$11:$C$31,'Prior Year Inputs FY24'!$F$11:$F$31,D95,0) -> 57.22 | E94: =_xlfn.XLOOKUP(C94,'Price and Quantity'!$C$11:$C$291,'Price and Quantity'!$G$11:$G$291,"n/a",0) -> 57.22 | F94: 0
B95: 1.1 Flat-Rate Offers | C95: AVC TC-4 25-100/5-40 Mbps | D95: =_xlfn.XLOOKUP(C95,'Prior Year Inputs FY24'!$C$11:$C$31,'Prior Year Inputs FY24'!$F$11:$F$31,D96,0) -> 60.22 | E95: =_xlfn.XLOOKUP(C95,'Price and Quantity'!$C$11:$C$291,'Price and Quantity'!$G$11:$G$291,"n/a",0) -> 60.22 | F95: 0
B96: 1.1 Flat-Rate Offers | C96: AVC TC-4 50-100/20-40 Mbps | D96: =_xlfn.XLOOKUP(C96,'Prior Year Inputs FY24'!$C$11:$C$31,'Prior Year Inputs FY24'!$F$11:$F$31,D97,0) -> 60.22 | E96: =_xlfn.XLOOKUP(C96,'Price and Quantity'!$C$11:$C$291,'Price and Quantity'!$G$11:$G$291,"n/a",0) -> 60.22 | F96: 0
B97: 1.1 Flat-Rate Offers | C97: AVC TC-4 100/40 Mbps | D97: =_xlfn.XLOOKUP(C97,'Prior Year Inputs FY24'!$C$11:$C$31,'Prior Year Inputs FY24'!$F$11:$F$31,D98,0) -> 60.22 | E97: =_xlfn.XLOOKUP(C97,'Price and Quantity'!$C$11:$C$291,'Price and Quantity'!$G$11:$G$291,"n/a",0) -> 60.22 | F97: 0
B98: 1.1 Flat-Rate Offers | C98: AVC TC-4 400/10-40 Mbps | D98: =_xlfn.XLOOKUP(C98,'Prior Year Inputs FY24'!$C$11:$C$31,'Prior Year Inputs FY24'!$F$11:$F$31,D99,0) -> 62.22 | E98: =_xlfn.XLOOKUP(C98,'Price and Quantity'!$C$11:$C$291,'Price and Quantity'!$G$11:$G$291,"n/a",0) -> 62.22 | F98: 0
B99: 1.1 Flat-Rate Offers | C99: AVC TC-4 250/25 Mbps | D99: =_xlfn.XLOOKUP(C99,'Prior Year Inputs FY24'!$C$11:$C$31,'Prior Year Inputs FY24'!$F$11:$F$31,D100,0) -> 62.22 | E99: =_xlfn.XLOOKUP(C99,'Price and Quantity'!$C$11:$C$291,'Price and Quantity'!$G$11:$G$291,"n/a",0) -> 62.22 | F99: 0
B100: 1.1 Flat-Rate Offers | C100: AVC TC-4 250/100 Mbps | D100: =_xlfn.XLOOKUP(C100,'Prior Year Inputs FY24'!$C$11:$C$31,'Prior Year Inputs FY24'!$F$11:$F$31,D101,0) -> 75 | E100: =_xlfn.XLOOKUP(C100,'Price and Quantity'!$C$11:$C$291,'Price and Quantity'!$G$11:$G$291,"n/a",0) -> 75 | F100: 0
B101: 1.1 Flat-Rate Offers | C101: AVC TC-4 500/200 Mbps | D101: =_xlfn.XLOOKUP(C101,'Prior Year Inputs FY24'!$C$11:$C$31,'Prior Year Inputs FY24'!$F$11:$F$31,D102,0) -> 100 | E101: =_xlfn.XLOOKUP(C101,'Price and Quantity'!$C$11:$C$291,'Price and Quantity'!$G$11:$G$291,"n/a",0) -> 100 | F101: 0
B102: 1.1 Flat-Rate Offers | C102: AVC TC-4 1000/50 Mbps | D102: =_xlfn.XLOOKUP(C102,'Prior Year Inputs FY24'!$C$11:$C$31,'Prior Year Inputs FY24'!$F$11:$F$31,D103,0) -> 72.22 | E102: =_xlfn.XLOOKUP(C102,'Price and Quantity'!$C$11:$C$291,'Price and Quantity'!$G$11:$G$291,"n/a",0) -> 72.22 | F102: 0
B103: 1.1 Flat-Rate Offers | C103: AVC TC-4 1000/400 Mbps | D103: =_xlfn.XLOOKUP(C103,'Prior Year Inputs FY24'!$C$11:$C$31,'Prior Year Inputs FY24'!$F$11:$F$31,D104,0) -> 125 | E103: =_xlfn.XLOOKUP(C103,'Price and Quantity'!$C$11:$C$291,'Price and Quantity'!$G$11:$G$291,"n/a",0) -> 125 | F103: 0
B104: 1.2 Flat-Rate Offers - Smart Places | C104: Smart Places - AVC TC-4 100/40 Mbps | D104: =_xlfn.XLOOKUP(C104,'Prior Year Inputs FY24'!$C$11:$C$31,'Prior Year Inputs FY24'!$F$11:$F$31,D105,0) -> 60.22 | E104: =_xlfn.XLOOKUP(C104,'Price and Quantity'!$C$11:$C$291,'Price and Quantity'!$G$11:$G$291,"n/a",0) -> 60.22 | F104: 0
B105: 1.2 Flat-Rate Offers - Smart Places | C105: Smart Places - AVC TC-4 250/100 Mbps | D105: =_xlfn.XLOOKUP(C105,'Prior Year Inputs FY24'!$C$11:$C$31,'Prior Year Inputs FY24'!$F$11:$F$31,D106,0) -> 75 | E105: =_xlfn.XLOOKUP(C105,'Price and Quantity'!$C$11:$C$291,'Price and Quantity'!$G$11:$G$291,"n/a",0) -> 75 | F105: 0
B106: 1.2 Flat-Rate Offers - Smart Places | C106: Smart Places - AVC TC-4 500/200 Mbps | D106: =_xlfn.XLOOKUP(C106,'Prior Year Inputs FY24'!$C$11:$C$31,'Prior Year Inputs FY24'!$F$11:$F$31,D107,0) -> 100 | E106: =_xlfn.XLOOKUP(C106,'Price and Quantity'!$C$11:$C$291,'Price and Quantity'!$G$11:$G$291,"n/a",0) -> 100 | F106: 0
B107: 1.2 Flat-Rate Offers - Smart Places | C107: Smart Places - AVC TC-4 1000/400 Mbps | D107: =_xlfn.XLOOKUP(C107,'Prior Year Inputs FY24'!$C$11:$C$31,'Prior Year Inputs FY24'!$F$11:$F$31,D108,0) -> 125 | E107: =_xlfn.XLOOKUP(C107,'Price and Quantity'!$C$11:$C$291,'Price and Quantity'!$G$11:$G$291,"n/a",0) -> 125 | F107: 0
B108: 1.3 Bundled TC-4 Offers | C108: AVC TC-4 12/1 (Basic Bundled Offer) | D108: =_xlfn.XLOOKUP(C108,'Prior Year Inputs FY24'!$C$11:$C$31,'Prior Year Inputs FY24'!$F$11:$F$31,D109,0) -> 12 | E108: =_xlfn.XLOOKUP(C108,'Price and Quantity'!$C$11:$C$291,'Price and Quantity'!$G$11:$G$291,"n/a",0) -> 12.01 | F108: 0.01
B109: 1.3 Bundled TC-4 Offers | C109: AVC TC-4 12/1 Mbps | D109: =_xlfn.XLOOKUP(C109,'Prior Year Inputs FY24'!$C$11:$C$31,'Prior Year Inputs FY24'!$F$11:$F$31,D110,0) -> 32.02 | E109: =_xlfn.XLOOKUP(C109,'Price and Quantity'!$C$11:$C$291,'Price and Quantity'!$G$11:$G$291,"n/a",0) -> 32.29 | F109: 0.27
B110: 1.3 Bundled TC-4 Offers | C110: AVC TC-4 25/5 Mbps | D110: =_xlfn.XLOOKUP(C110,'Prior Year Inputs FY24'!$C$11:$C$31,'Prior Year Inputs FY24'!$F$11:$F$31,D111,0) -> 33.47 | E110: =_xlfn.XLOOKUP(C110,'Price and Quantity'!$C$11:$C$291,'Price and Quantity'!$G$11:$G$291,"n/a",0) -> 33.68 | F110: 0.21
B111: 1.3 Bundled TC-4 Offers | C111: AVC TC-4 25/5-10 Mbps | D111: =_xlfn.XLOOKUP(C111,'Prior Year Inputs FY24'!$C$11:$C$31,'Prior Year Inputs FY24'!$F$11:$F$31,D112,0) -> 33.47 | E111: =_xlfn.XLOOKUP(C111,'Price and Quantity'!$C$11:$C$291,'Price and Quantity'!$G$11:$G$291,"n/a",0) -> 33.68 | F111: 0.21
B112: 1.3 Bundled TC-4 Offers | C112: AVC TC-4 25/10 Mbps | D112: =_xlfn.XLOOKUP(C112,'Prior Year Inputs FY24'!$C$11:$C$31,'Prior Year Inputs FY24'!$F$11:$F$31,D113,0) -> 33.47 | E112: =_xlfn.XLOOKUP(C112,'Price and Quantity'!$C$11:$C$291,'Price and Quantity'!$G$11:$G$291,"n/a",0) -> 33.68 | F112: 0.21
B113: 1.3 Bundled TC-4 Offers | C113: AVC TC-4 25-50/5-20 Mbps | D113: =_xlfn.XLOOKUP(C113,'Prior Year Inputs FY24'!$C$11:$C$31,'Prior Year Inputs FY24'!$F$11:$F$31,D114,0) -> 53.6 | E113: =_xlfn.XLOOKUP(C113,'Price and Quantity'!$C$11:$C$291,'Price and Quantity'!$G$11:$G$291,"n/a",0) -> 53.68 | F113: 0.08
B114: 1.3 Bundled TC-4 Offers | C114: AVC TC-4 50/20 Mbps | D114: =_xlfn.XLOOKUP(C114,'Prior Year Inputs FY24'!$C$11:$C$31,'Prior Year Inputs FY24'!$F$11:$F$31,D115,0) -> 53.6 | E114: =_xlfn.XLOOKUP(C114,'Price and Quantity'!$C$11:$C$291,'Price and Quantity'!$G$11:$G$291,"n/a",0) -> 53.68 | F114: 0.08
A115: AVC TC-4 up to 75/up to 10 Mbps | B115: 1.3 Bundled TC-4 Offers | C115: AVC TC-4 up to 100/up to 20 Mbps | D115: =_xlfn.XLOOKUP(A115,'Prior Year Inputs FY24'!$C$11:$C$31,'Prior Year Inputs FY24'!$F$11:$F$31,D116,0) -> 53.6 | E115: =_xlfn.XLOOKUP(C115,'Price and Quantity'!$C$11:$C$291,'Price and Quantity'!$G$11:$G$291,"n/a",0) -> 53.68 | F115: 0.08
B116: 1.4 Bundled TC-4 Offers: Smart Places | C116: Smart Places - AVC TC-4 25/10 Mbps | D116: =_xlfn.XLOOKUP(C116,'Prior Year Inputs FY24'!$C$11:$C$31,'Prior Year Inputs FY24'!$F$11:$F$31,D117,0) -> 33.47 | E116: =_xlfn.XLOOKUP(C116,'Price and Quantity'!$C$11:$C$291,'Price and Quantity'!$G$11:$G$291,"n/a",0) -> 33.68 | F116: 0.21
B117: 1.4 Bundled TC-4 Offers: Smart Places | C117: Smart Places - AVC TC-4 50/20 Mbps | D117: =_xlfn.XLOOKUP(C117,'Prior Year Inputs FY24'!$C$11:$C$31,'Prior Year Inputs FY24'!$F$11:$F$31,D118,0) -> 53.6 | E117: =_xlfn.XLOOKUP(C117,'Price and Quantity'!$C$11:$C$291,'Price and Quantity'!$G$11:$G$291,"n/a",0) -> 53.68 | F117: 0.08
B118: 1.5 Asymmetric AVC Offers in respect of the NBN Co Satellite Network | C118: AVC TC-4 12/1 Mbps | D118: =_xlfn.XLOOKUP(C118,'Prior Year Inputs FY24'!$C$11:$C$31,'Prior Year Inputs FY24'!$F$11:$F$31,D119,0) -> 24 | E118: =_xlfn.XLOOKUP(C118,'Price and Quantity'!$C$11:$C$291,'Price and Quantity'!$G$11:$G$291,"n/a",0) -> 24 | F118: 0
B119: 1.5 Asymmetric AVC Offers in respect of the NBN Co Satellite Network | C119: AVC TC-4 25/5 Mbps | D119: =_xlfn.XLOOKUP(C119,'Prior Year Inputs FY24'!$C$11:$C$31,'Prior Year Inputs FY24'!$F$11:$F$31,D120,0) -> 27 | E119: =_xlfn.XLOOKUP(C119,'Price and Quantity'!$C$11:$C$291,'Price and Quantity'!$G$11:$G$291,"n/a",0) -> 27 | F119: 0
B123: Other Charges based on hourly labour rate and/or cost of materials
B126: The SAU provides that, in respect of an Other Charge that consists of an hourly labour rate (or such other labour-based charge) and/or costs of materials:
B127: (a) the labour-based component of the Other Charge may only be increased by indexing it to the ABS Wage Price Index for Private Sector Construction or by periodically resetting it with reference to the relevant rates charged to NBN Co by its contractors; and
B128: (b) materials will be charged at cost.
B130: nbn is not increasing the labour-based component of any such Other Charge in FY25 and is not forecasting any increase to the labour-based component in FY26 and FY27.

Sheet Prior year inputs ->

Sheet Prior Year Inputs FY24
A1: Cell colour meanings
B2: Input cell
B3: Calculation cell
B4: Inputs used in FY24 WAPC model
B6: Model start financial year (t-1) | C6: 2024
B7: Forecast December Quarter CPI | C7: 0.041
B9: Prices in nbn's Pricing Roadmap published for FY24 to FY26 | E9: FY24 | F9: FY25
B10: Roadmap table | C10: Tariff List | D10: Side Constraint Identifier
B11: 1.1 Flat-Rate Offers | C11: AVC TC-4 100/20 Mbps | D11: Other fixed line and fixed wireless TC-4 | F11: 57.22
B12: 1.1 Flat-Rate Offers | C12: AVC TC-4 100/40 Mbps | D12: Other fixed line and fixed wireless TC-4 | F12: 60.22
B13: 1.1 Flat-Rate Offers | C13: AVC TC-4 250/25 Mbps | D13: Other fixed line and fixed wireless TC-4 | F13: 62.22
B14: 1.1 Flat-Rate Offers | C14: AVC TC-4 250/100 Mbps | D14: Other fixed line and fixed wireless TC-4 | F14: 75
B15: 1.1 Flat-Rate Offers | C15: AVC TC-4 500/200 Mbps | D15: Other fixed line and fixed wireless TC-4 | F15: 100
B16: 1.1 Flat-Rate Offers | C16: AVC TC-4 1000/50 Mbps | D16: Other fixed line and fixed wireless TC-4 | F16: 72.22
B17: 1.1 Flat-Rate Offers | C17: AVC TC-4 1000/400 Mbps | D17: Other fixed line and fixed wireless TC-4 | F17: 125
B18: 1.2 Flat-Rate Offers - Smart Places | C18: Smart Places - AVC TC-4 100/40 Mbps | D18: Other fixed line and fixed wireless TC-4 | F18: 60.22
B19: 1.2 Flat-Rate Offers - Smart Places | C19: Smart Places - AVC TC-4 250/100 Mbps | D19: Other fixed line and fixed wireless TC-4 | F19: 75
B20: 1.2 Flat-Rate Offers - Smart Places | C20: Smart Places - AVC TC-4 500/200 Mbps | D20: Other fixed line and fixed wireless TC-4 | F20: 100
B21: 1.2 Flat-Rate Offers - Smart Places | C21: Smart Places - AVC TC-4 1000/400 Mbps | D21: Other fixed line and fixed wireless TC-4 | F21: 125
B22: 1.3 Bundled TC-4 Offers | C22: AVC TC-4 12/1 (Basic Bundled Offer) | D22: Other fixed line and fixed wireless TC-4 | F22: 12
B23: 1.3 Bundled TC-4 Offers | C23: AVC TC-4 12/1 Mbps | D23: Other fixed line and fixed wireless TC-4 | F23: 32.02
B24: 1.3 Bundled TC-4 Offers | C24: AVC TC-4 25/5 Mbps | D24: Entry level TC-4 | F24: 33.47
B25: 1.3 Bundled TC-4 Offers | C25: AVC TC-4 25/10 Mbps | D25: Other fixed line and fixed wireless TC-4 | F25: 33.47
B26: 1.3 Bundled TC-4 Offers | C26: AVC TC-4 50/20 Mbps | D26: Other fixed line and fixed wireless TC-4 | F26: 53.6
B27: 1.3 Bundled TC-4 Offers | C27: AVC TC-4 up to 75/up to 10 Mbps | D27: Other fixed line and fixed wireless TC-4 | F27: 53.6
B28: 1.4 Bundled TC-4 Offers: Smart Places | C28: Smart Places - AVC TC-4 25/10 Mbps | D28: Other fixed line and fixed wireless TC-4 | F28: 33.47
B29: 1.4 Bundled TC-4 Offers: Smart Places | C29: Smart Places - AVC TC-4 50/20 Mbps | D29: Other fixed line and fixed wireless TC-4 | F29: 53.6
B30: 1.5 Asymmetric AVC Offers in respect of the NBN Co Satellite Network | C30: AVC TC-4 12/1 Mbps | D30: Satellite AVC TC-4 | F30: 24
B31: 1.5 Asymmetric AVC Offers in respect of the NBN Co Satellite Network | C31: AVC TC-4 25/5 Mbps | D31: Satellite AVC TC-4 | F31: 27
